Authority,Department,Spending Area,Expense Type,Posting Date,Reference,Amount,Supplier
OXFORDSHIRE CC,CUSTOMER AND CULTURE,"MARKETING, COMMUNICATIONS & ENGAGEMENT","PUBLICITY, PROMOTIONS AND ADVERTISEMENT",28/03/2024,11486343881,500,GOOGLE ADS4896546035
OXFORDSHIRE CC,RESOURCES,CORPORATE FINANCE,OTHER TRAINING COURSES AND QUALIFICATION,28/03/2024,11486343135,234,WWW.ACCOUNTS@IIA.ORG.U
OXFORDSHIRE CC,CUSTOMER AND CULTURE,COMMUNITY PARTNERSHIP TEAM,CATERING PROVISIONS,28/03/2024,11486341787,-7.83,AMAZON  026-3569708-88
OXFORDSHIRE CC,CHILDREN'S & EDUCATION,"	LEAVING CARE CITY 2",PAYMENTS TO TRANSPORT OPERATORS,28/03/2024,11486342985,65,OXFORD PARKWAY SSTP
OXFORDSHIRE CC,CHILDREN'S & EDUCATION,"	LEAVING CARE SOUTH",PAYMENTS TO TRANSPORT OPERATORS,28/03/2024,11486342549,34.13,TRAINLINE
OXFORDSHIRE CC,ENVIRONMENT AND PLACE,COUNTRYSIDE PREMISES,GENERAL REFUSE COLLECTION AND DISPOSAL,28/03/2024,11486342677,438,M & M SKIP HIRE
OXFORDSHIRE CC,ADULTS,CSS WANTAGE,ENTERTAINMENT EXPENSES,28/03/2024,11486343715,10.95,HOLLYWOOD BOWL
OXFORDSHIRE CC,ADULTS,CSS BICESTER,MATERIALS,28/03/2024,11486341481,4,POUNDLAND - 2826
OXFORDSHIRE CC,ADULTS,CSS - OXFORD,CATERING PROVISIONS,28/03/2024,11486342461,15.96,ALDI STORES 775-142
OXFORDSHIRE CC,CHILDREN'S & EDUCATION,"	LAC PUPIL PREMIUM","SUPPLIES, STATIONERY AND MATERIALS",28/03/2024,11486342593,120,AMAZON.CO.UK UG3L35GC5
OXFORDSHIRE CC,CHILDREN'S & EDUCATION,CHILDREN IN CARE NON-STAFFING - CENTRL 1,PAYMENT TO GOVERNMENT DEPARTMENTS,28/03/2024,11486341615,-11,READING BOROUGH COUNCI
OXFORDSHIRE CC,CUSTOMER AND CULTURE,HOLTON SITE,CATERING PROVISIONS,28/03/2024,11486341677,-5,MILK AND MORE
OXFORDSHIRE CC,CHILDREN'S & EDUCATION,PAUSE PROGRAMME,CATERING,28/03/2024,11486342639,7.2,CAFE LOCO
OXFORDSHIRE CC,CUSTOMER AND CULTURE,OPERATIONS,DOMESTIC AND CLEANING EQUIPMENT,28/03/2024,11486343101,12.99,AMAZON  203-1884292-93
OXFORDSHIRE CC,CHILDREN'S & EDUCATION,40 THE MOORS,OTHER EXPENSES,28/03/2024,11486341933,19.5,TESCO STORES 2788
OXFORDSHIRE CC,CUSTOMER AND CULTURE,SCHOOLS FM CATERING AREA 4,CATERING PROVISIONS,28/03/2024,11486341585,13.4,TESCO STORES 6426
OXFORDSHIRE CC,CHILDREN'S & EDUCATION,"	LEAVING CARE CITY 2",OTHER EXPENSES,28/03/2024,11486341603,43,AQA.ORG.UK
OXFORDSHIRE CC,CUSTOMER AND CULTURE,HOLTON SITE,CATERING PROVISIONS,28/03/2024,11486341663,-2.5,MILK AND MORE
OXFORDSHIRE CC,CHILDREN'S & EDUCATION,"	LEAVING CARE CITY 1",MATERIALS,28/03/2024,11486342275,-480,WWW.ARGOS.CO.UK
OXFORDSHIRE CC,CHILDREN'S & EDUCATION,UASC POST 18,CATERING,28/03/2024,11486342129,7.99,"KFC OXFORD, TEMPLARS S"
OXFORDSHIRE CC,ADULTS,PAUSE PROGRAMME,MATERIALS,28/03/2024,11486342083,25.3,THE RANGE
OXFORDSHIRE CC,CHILDREN'S & EDUCATION,40 THE MOORS,CATERING PROVISIONS,28/03/2024,11486342213,33.73,TESCO STORES 2788
OXFORDSHIRE CC,CUSTOMER AND CULTURE,LIBRARY COLLECTIONS,"BOOKS, DVDS AND CDS",28/03/2024,11486342729,170.91,OVERDRIVE DIST
OXFORDSHIRE CC,CHILDREN'S & EDUCATION,DIDCOT MOVE-ON HOME,CATERING PROVISIONS,28/03/2024,11486341823,35.95,SAINSBURYS SMKT
OXFORDSHIRE CC,ADULTS,PAUSE PROGRAMME,CATERING PROVISIONS,28/03/2024,11486342091,18.98,WM MORRISONS STORE
OXFORDSHIRE CC,CUSTOMER AND CULTURE,LIBRARY COLLECTIONS,"BOOKS, DVDS AND CDS",28/03/2024,11486342735,262.53,OVERDRIVE DIST
OXFORDSHIRE CC,CHILDREN'S & EDUCATION,PAUSE PROGRAMME,CATERING,28/03/2024,11486345699,4.65,COSTA COFFEE 43011690
OXFORDSHIRE CC,CHILDREN'S & EDUCATION,40 THE MOORS,CATERING PROVISIONS,28/03/2024,11486341927,9.29,TESCO STORES 2788
OXFORDSHIRE CC,CHILDREN'S & EDUCATION,"	LOOKED AFTER NORTH",CATERING PROVISIONS,28/03/2024,11486342179,45.64,SAINSBURYS S/MKTS
OXFORDSHIRE CC,CUSTOMER AND CULTURE,MUSEUM CAFE,PURCHASE OF IT EQUIPMENT,28/03/2024,11486343519,"1,077.43",IZMSAB_HARDWARE
OXFORDSHIRE CC,ADULTS,CSS WANTAGE,ENTERTAINMENT EXPENSES,28/03/2024,11486343709,10.95,HOLLYWOOD BOWL
OXFORDSHIRE CC,CHILDREN'S & EDUCATION,"	RIVERSIDE CENTRE",SUBSCRIPTIONS,28/03/2024,11486344255,100,BRITISH CANOEING
OXFORDSHIRE CC,CHILDREN'S & EDUCATION,UASC 16&17,ENTERTAINMENT EXPENSES,28/03/2024,11486344505,26,AMZNMKTPLACE
OXFORDSHIRE CC,ENVIRONMENT AND PLACE,HWAYS NETWORK MGT,PURCHASE OF IT EQUIPMENT,28/03/2024,11486344589,83.52,AMAZON  202-3169578-82
OXFORDSHIRE CC,CHILDREN'S & EDUCATION,OTFC TEAM,VEHICLE FUEL,28/03/2024,11486344675,1.79,SHELL MAPLE RISE
OXFORDSHIRE CC,CUSTOMER AND CULTURE,RFID PROJECT,MATERIALS,28/03/2024,11486344609,17.46,CJ CLARKE TIMBER MERCH
OXFORDSHIRE CC,CHILDREN'S & EDUCATION,FSP NON-STAFFING - CENTRAL,MATERIALS,28/03/2024,11486345515,477.95,WWW.ARGOS.CO.UK
OXFORDSHIRE CC,ENVIRONMENT AND PLACE,HWAYS NETWORK MGT,PURCHASE OF IT EQUIPMENT,28/03/2024,11486344583,22.77,AMAZON  202-0823685-46
OXFORDSHIRE CC,CHILDREN'S & EDUCATION,FAMILY SOLUTIONS PLUS NON-STAFF - NORTH,MATERIALS,28/03/2024,11486344691,319.92,EBAY O 20-11358-41113
OXFORDSHIRE CC,ADULTS,CSS WITNEY,CATERING PROVISIONS,28/03/2024,11486344737,17.84,SAINSBURYS S/MKTS
OXFORDSHIRE CC,CORPORATE CORE,"MARKETING, COMMUNICATIONS & ENGAGEMENT","PUBLICITY, PROMOTIONS AND ADVERTISEMENT",28/03/2024,11486345305,29.26,SNAP INC SNAP SNAP ADS
OXFORDSHIRE CC,CUSTOMER AND CULTURE,MUSIC UNALLOCABLE,VEHICLE FUEL,28/03/2024,11486345411,10,TESCO PFS 3700
OXFORDSHIRE CC,CHILDREN'S & EDUCATION,FSP NON-STAFFING - CENTRAL,HIRE OF ACCOMMODATION AND FACILITIES,28/03/2024,11486344023,130.91,TRAVELODGE
OXFORDSHIRE CC,CUSTOMER AND CULTURE,RFID PROJECT,MATERIALS,28/03/2024,11486344617,8.18,CJ CLARKE TIMBER MERCH
OXFORDSHIRE CC,CHILDREN'S & EDUCATION,UASC 16&17,ENTERTAINMENT EXPENSES,28/03/2024,11486344499,10.99,AMZNMKTPLACE
OXFORDSHIRE CC,ENVIRONMENT AND PLACE,HWAYS NETWORK MGT,PURCHASE OF IT EQUIPMENT,28/03/2024,11486344587,20.87,AMAZON  202-2135913-92
OXFORDSHIRE CC,CHILDREN'S & EDUCATION,FAMILY SOLUTIONS PLUS NON-STAFF � SOUTH,FURNITURE,28/03/2024,11486344641,158.95,DUNELM SOFTFURNISHINGS
OXFORDSHIRE CC,CHILDREN'S & EDUCATION,FAMILY SOLUTIONS PLUS NON-STAFF - NORTH,PAYMENTS TO TRANSPORT OPERATORS,28/03/2024,11486344703,20.27,TRAINLINE
OXFORDSHIRE CC,CHILDREN'S & EDUCATION,FAMILY SOLUTIONS PLUS NON-STAFF - NORTH,PAYMENT TO GOVERNMENT DEPARTMENTS,28/03/2024,11486345093,11,OXFORDSHIRE CC WEB1
OXFORDSHIRE CC,CHILDREN'S & EDUCATION,THAME E&A HOME,CATERING PROVISIONS,28/03/2024,11486345153,2,MARTIN MCCOLL
OXFORDSHIRE CC,CHILDREN'S & EDUCATION,FAMILY SOLUTIONS PLUS NON-STAFF - NORTH,PAYMENTS TO TRANSPORT OPERATORS,28/03/2024,11486344705,26.99,TRAINLINE
OXFORDSHIRE CC,CHILDREN'S & EDUCATION,CHILDREN IN CARE NON-STAFFING - SOUTH,OTHER TRANSPORT ARRANGEMENTS,28/03/2024,11486345071,10,NEALES TAXIS LTD
OXFORDSHIRE CC,CHILDREN'S & EDUCATION,FAMILY HELP NORTH,MATERIALS,28/03/2024,11486345097,6,WWW.ARGOS.CO.UK
OXFORDSHIRE CC,CHILDREN'S & EDUCATION,CHILDREN IN CARE NON-STAFFING - SOUTH,OTHER TRANSPORT ARRANGEMENTS,28/03/2024,11486345077,17.83,TRAINLINE
OXFORDSHIRE CC,CHILDREN'S & EDUCATION,FAMILY HELP NORTH,CATERING PROVISIONS,28/03/2024,11486345105,44.94,AMAZON  204-0116392-27
OXFORDSHIRE CC,CUSTOMER AND CULTURE,MUSEUMS COLLECTIONS,OTHER PREMISES RELATED COSTS,28/03/2024,11486345023,24.61,ROTADEX SYSTEMS LTD
OXFORDSHIRE CC,CHILDREN'S & EDUCATION,FAMILY HELP NORTH,CATERING PROVISIONS,28/03/2024,11486345087,244.92,AMAZON  204-5849617-00
OXFORDSHIRE CC,ENVIRONMENT AND PLACE,TVERC,PAYMENT TO GOVERNMENT DEPARTMENTS,28/03/2024,11486341419,3,LAND REGISTRY ECOM CCC
OXFORDSHIRE CC,ENVIRONMENT AND PLACE,TVERC,PAYMENT TO GOVERNMENT DEPARTMENTS,28/03/2024,11486341439,3,LAND REGISTRY ECOM CCC
OXFORDSHIRE CC,ENVIRONMENT AND PLACE,TVERC,PAYMENT TO GOVERNMENT DEPARTMENTS,28/03/2024,11486341429,3,LAND REGISTRY ECOM CCC
OXFORDSHIRE CC,ENVIRONMENT AND PLACE,TVERC,PAYMENT TO GOVERNMENT DEPARTMENTS,28/03/2024,11486341449,3,LAND REGISTRY ECOM CCC
OXFORDSHIRE CC,ENVIRONMENT AND PLACE,TVERC,PAYMENT TO GOVERNMENT DEPARTMENTS,28/03/2024,11486341435,3,LAND REGISTRY ECOM CCC
OXFORDSHIRE CC,ENVIRONMENT AND PLACE,TVERC,PAYMENT TO GOVERNMENT DEPARTMENTS,28/03/2024,11486341453,3,LAND REGISTRY ECOM CCC
OXFORDSHIRE CC,ENVIRONMENT AND PLACE,TVERC,PAYMENT TO GOVERNMENT DEPARTMENTS,28/03/2024,11486341425,3,LAND REGISTRY ECOM CCC
OXFORDSHIRE CC,ENVIRONMENT AND PLACE,TVERC,PAYMENT TO GOVERNMENT DEPARTMENTS,28/03/2024,11486341445,3,LAND REGISTRY ECOM CCC
OXFORDSHIRE CC,ENVIRONMENT AND PLACE,TVERC,PAYMENT TO GOVERNMENT DEPARTMENTS,28/03/2024,11486341463,3,LAND REGISTRY ECOM CCC
OXFORDSHIRE CC,CHILDREN'S & EDUCATION,"	LEAVING CARE SOUTH",EDUCATIONAL AND VOCATIONAL TRAINING ,28/03/2024,11486342543,65,CONSTRUCTCERTIFICATION
OXFORDSHIRE CC,CHILDREN'S & EDUCATION,PAUSE PROGRAMME,OTHER TRANSPORT ARRANGEMENTS,28/03/2024,11486342647,5,REDBRIDGE PARK AND RID
OXFORDSHIRE CC,CHILDREN'S & EDUCATION,"	LOOKED AFTER CITY 2",PAYMENTS TO TRANSPORT OPERATORS,28/03/2024,11486342913,5.55,TRAINLINE
OXFORDSHIRE CC,CHILDREN'S & EDUCATION,"	LEAVING CARE CITY 2",CATERING,28/03/2024,11486342991,8.48,KFC SITTINGBOURNE
OXFORDSHIRE CC,ADULTS,CSS - OXFORD,CATERING PROVISIONS,28/03/2024,11486343119,305.64,TESCO STORES 2994
OXFORDSHIRE CC,CUSTOMER AND CULTURE,SCHOOLS FM CATERING AREA 3,CATERING PROVISIONS,28/03/2024,11486342349,30.32,B&M 514 - DICOT
OXFORDSHIRE CC,CHILDREN'S & EDUCATION,FAMILY SOLUTIONS PLUS NON-STAFF - NORTH,PAYMENTS TO TRANSPORT OPERATORS,28/03/2024,11486344699,24.65,TRAINLINE
OXFORDSHIRE CC,CHILDREN'S & EDUCATION,DIDCOT MOVE-ON HOME,CATERING PROVISIONS,28/03/2024,11486344747,21.7,SAINSBURYS S/MKTS
OXFORDSHIRE CC,CHILDREN'S & EDUCATION,EYNSHAM,CATERING,28/03/2024,11486341081,20.73,HOME BARGAINS
OXFORDSHIRE CC,CUSTOMER AND CULTURE,HARD FM,PREMISES REPAIRS,28/03/2024,11486341279,34.99,WWW.SCREWFIX.COM
OXFORDSHIRE CC,CORPORATE CORE,,STATIONERY,28/03/2024,11486344375,55.68,LYRECO UK LTD
OXFORDSHIRE CC,CHILDREN'S & EDUCATION,DIDCOT MOVE-ON HOME,CATERING PROVISIONS,28/03/2024,11486344753,51.12,SAINSBURYS S/MKTS
OXFORDSHIRE CC,ADULTS,START WELL STAFFING,PURCHASE OF ADMIN IT EQUIPMENT,28/03/2024,11486341105,44.98,AMAZON  204-6819117-72
OXFORDSHIRE CC,CHILDREN'S & EDUCATION,"	MALTFIELD HOUSE",CATERING PROVISIONS,28/03/2024,11486344315,31.99,AMAZON  206-9313624-38
OXFORDSHIRE CC,CHILDREN'S & EDUCATION,"	MALTFIELD HOUSE",PURCHASE OF IT EQUIPMENT,28/03/2024,11486344341,-248.91,AMAZON  206-9681925-84
OXFORDSHIRE CC,CHILDREN'S & EDUCATION,"	LAC PUPIL PREMIUM",CATERING PROVISIONS,28/03/2024,11486344981,12.73,AMAZON  204-7496406-41
OXFORDSHIRE CC,CHILDREN'S & EDUCATION,"	MALTFIELD HOUSE",CATERING PROVISIONS,28/03/2024,11486344321,25.28,AMAZON  206-7139955-33
OXFORDSHIRE CC,CORPORATE CORE,,STATIONERY,28/03/2024,11486344351,86.16,LYRECO UK LTD
OXFORDSHIRE CC,CHILDREN'S & EDUCATION,"	LEAVING CARE NORTH",PAYMENTS TO TRANSPORT OPERATORS,28/03/2024,11486344449,97.2,TRAINLINE
OXFORDSHIRE CC,CHILDREN'S & EDUCATION,KINGFISHER,CATERING PROVISIONS,28/03/2024,11486341173,100,TESCO GIFT CARD
OXFORDSHIRE CC,CUSTOMER AND CULTURE,CATERING MANAGEMENT SOFT FM,FURNITURE,28/03/2024,11486345139,12.16,THE RANGE
OXFORDSHIRE CC,CHILDREN'S & EDUCATION,FAMILY SOLUTIONS PLUS NON-STAFF - NORTH,TELEPHONE - EQUIPMENT,28/03/2024,11486344793,10,GIFFGAFF
OXFORDSHIRE CC,CHILDREN'S & EDUCATION,"	LAC PUPIL PREMIUM",MATERIALS,28/03/2024,11486344995,2.19,AMAZON  204-8806259-33
OXFORDSHIRE CC,CHILDREN'S & EDUCATION,"	MALTFIELD HOUSE",RESIDENTIAL ACTIVITIES,28/03/2024,11486344325,469.98,WWW.ARGOS.CO.UK
OXFORDSHIRE CC,CHILDREN'S & EDUCATION,"	MALTFIELD HOUSE",EQUIPMENT,28/03/2024,11486344311,19.98,AMAZON  206-2369465-65
OXFORDSHIRE CC,CHILDREN'S & EDUCATION,WITNEY,CATERING PROVISIONS,28/03/2024,11486344941,75.43,SAINSBURYS S/MKTS
OXFORDSHIRE CC,CHILDREN'S & EDUCATION,REACTIVE MAINTENANCE,HARDWARE AND CROCKERY,28/03/2024,11486345209,21.36,MKM BUILDING SUPPLIES
OXFORDSHIRE CC,CHILDREN'S & EDUCATION,QUALITY ASSURANCE NORTH TEAM,HIRE OF ACCOMMODATION AND FACILITIES,28/03/2024,11486345279,35.01,TRAVELODGE
OXFORDSHIRE CC,ENVIRONMENT AND PLACE,TVERC,PAYMENT TO GOVERNMENT DEPARTMENTS,28/03/2024,11486341459,3,LAND REGISTRY ECOM CCC
OXFORDSHIRE CC,CHILDREN'S & EDUCATION,THAME E&A HOME,CATERING PROVISIONS,28/03/2024,11486345169,1.1,SAINSBURYS S/MKTS
OXFORDSHIRE CC,CHILDREN'S & EDUCATION,PARTNERSHIP YOUTH OFFER,MATERIALS,28/03/2024,11486345191,156.31,AMAZON  204-6598436-17
OXFORDSHIRE CC,CHILDREN'S & EDUCATION,QUALITY ASSURANCE SOUTH TEAM,HIRE OF ACCOMMODATION AND FACILITIES,28/03/2024,11486345273,36.01,TRAVELODGE
OXFORDSHIRE CC,CHILDREN'S & EDUCATION,"	MALTFIELD HOUSE",FURNITURE,28/03/2024,11486344335,46,WM MORRISONS STORE
OXFORDSHIRE CC,CORPORATE CORE,,STATIONERY,28/03/2024,11486344367,72.72,LYRECO UK LTD
OXFORDSHIRE CC,CHILDREN'S & EDUCATION,THAME E&A HOME,CATERING PROVISIONS,28/03/2024,11486345159,51.79,SAINSBURYS S/MKTS
OXFORDSHIRE CC,ADULTS,CSS WALLINGFORD,MATERIALS,28/03/2024,11486345233,19.99,AMAZON  026-7204955-14
OXFORDSHIRE CC,CHILDREN'S & EDUCATION,QUALITY ASSURANCE SOUTH TEAM,HIRE OF ACCOMMODATION AND FACILITIES,28/03/2024,11486345283,36.01,TRAVELODGE
OXFORDSHIRE CC,ADULTS,CSS WALLINGFORD,MATERIALS,28/03/2024,11486345237,9,WAITROSE 675
OXFORDSHIRE CC,CORPORATE CORE,"MARKETING, COMMUNICATIONS & ENGAGEMENT","PUBLICITY, PROMOTIONS AND ADVERTISEMENT",28/03/2024,11486345297,500,FACEBK  XG6DK24AZ2
OXFORDSHIRE CC,ENVIRONMENT AND PLACE,TVERC,PAYMENT TO GOVERNMENT DEPARTMENTS,28/03/2024,11486341401,3,LAND REGISTRY ECOM CCC
OXFORDSHIRE CC,CHILDREN'S & EDUCATION,UASC 16&17,AFTER SCHOOL ACTIVITIES,28/03/2024,11486344493,13,NEXT DIRECTORY
OXFORDSHIRE CC,CHILDREN'S & EDUCATION,"	LAC PUPIL PREMIUM",MATERIALS,28/03/2024,11486344989,12.07,AMAZON  204-7599022-48
OXFORDSHIRE CC,ENVIRONMENT AND PLACE,TVERC,PAYMENT TO GOVERNMENT DEPARTMENTS,28/03/2024,11486341397,3,LAND REGISTRY ECOM CCC
OXFORDSHIRE CC,ENVIRONMENT AND PLACE,TVERC,PAYMENT TO GOVERNMENT DEPARTMENTS,28/03/2024,11486341393,3,LAND REGISTRY ECOM CCC
OXFORDSHIRE CC,ENVIRONMENT AND PLACE,TVERC,PAYMENT TO GOVERNMENT DEPARTMENTS,28/03/2024,11486341411,3,LAND REGISTRY ECOM CCC
OXFORDSHIRE CC,CUSTOMER AND CULTURE,HARD FM,PREMISES REPAIRS,28/03/2024,11486341305,53.65,WICKES BICESTER
OXFORDSHIRE CC,ENVIRONMENT AND PLACE,TVERC,PAYMENT TO GOVERNMENT DEPARTMENTS,28/03/2024,11486341385,3,LAND REGISTRY ECOM CCC
OXFORDSHIRE CC,ENVIRONMENT AND PLACE,TVERC,PAYMENT TO GOVERNMENT DEPARTMENTS,28/03/2024,11486341407,3,LAND REGISTRY ECOM CCC
OXFORDSHIRE CC,CORPORATE CORE,,STATIONERY,28/03/2024,11486344359,15.14,LYRECO UK LTD
OXFORDSHIRE CC,ADULTS,FPT SOUTH/VALE,HOSPITALITY EXPENSES,28/03/2024,11486345675,28.49,BUNCHES
OXFORDSHIRE CC,ENTERPRISEVC,,CAR LEASING - PRIVATE RENTALS,27/03/2024,11480743269,217.57,ENTERPRISE RENT-A-CAR
OXFORDSHIRE CC,ENTERPRISEVC,,CAR LEASING - PRIVATE RENTALS,27/03/2024,11480743295,47.69,ENTERPRISE RENT-A-CAR
OXFORDSHIRE CC,ENTERPRISEVC,,CAR LEASING - PRIVATE RENTALS,27/03/2024,11480743325,114.62,ENTERPRISE RENT-A-CAR
OXFORDSHIRE CC,CHILDREN'S & EDUCATION,"	MALTFIELD HOUSE",MATERIALS,27/03/2024,11480743179,25.47,HOBBYCRAFT TRADING LIM
OXFORDSHIRE CC,ENTERPRISEVC,,CAR LEASING - PRIVATE RENTALS,27/03/2024,11480743279,"1,941.07",ENTERPRISE RENT-A-CAR
OXFORDSHIRE CC,ADULTS,CSS - BANBURY,CATERING PROVISIONS,27/03/2024,11480743457,-38.98,AMAZON  204-9763965-29
OXFORDSHIRE CC,CHILDREN'S & EDUCATION,OTFC TEAM,CATERING,27/03/2024,11480743535,41.2,PIZZA EXPRESS
OXFORDSHIRE CC,PUBLIC HEALTH,CHILDREN IN CARE NON-STAFFING - NORTH,VEHICLE FUEL,27/03/2024,11480742159,50.08,TESCO PFS 4267
OXFORDSHIRE CC,RESOURCES,SUMMERTOWN LIBRARY,"NEWSPAPERS, PERIODICALS AND PUBLICATIONS",27/03/2024,11480743035,68,SUMUP   T J GRESSWELL
OXFORDSHIRE CC,CHILDREN'S & EDUCATION,"	MALTFIELD HOUSE",CATERING PROVISIONS,27/03/2024,11480743137,13.99,AMAZON  206-4953145-77
OXFORDSHIRE CC,CUSTOMER AND CULTURE,TRANSPORT GENERAL,PAYMENTS TO TRANSPORT OPERATORS,27/03/2024,11480742045,90.7,ENTERPRISE RENT A CAR
OXFORDSHIRE CC,ENTERPRISEVC,,CAR LEASING - PRIVATE RENTALS,27/03/2024,11480743365,74.75,ENTERPRISE RENT-A-CAR
OXFORDSHIRE CC,ENTERPRISEVC,,CAR LEASING - PRIVATE RENTALS,27/03/2024,11480743401,89,ENTERPRISE RENT-A-CAR
OXFORDSHIRE CC,CHILDREN'S & EDUCATION,FAMILY SOLUTIONS PLUS NON-STAFF - NORTH,PAYMENT TO GOVERNMENT DEPARTMENTS,27/03/2024,11480741963,14,GEN REGISTER OFFICE
OXFORDSHIRE CC,ENTERPRISEVC,,CAR LEASING - PRIVATE RENTALS,27/03/2024,11480743285,57.22,ENTERPRISE RENT-A-CAR
OXFORDSHIRE CC,ENTERPRISEVC,,CAR LEASING - PRIVATE RENTALS,27/03/2024,11480743305,148.03,ENTERPRISE RENT-A-CAR
OXFORDSHIRE CC,ADULTS,CSS - BANBURY,CATERING PROVISIONS,27/03/2024,11480743441,47.98,AMAZON  204-4016257-25
OXFORDSHIRE CC,ENTERPRISEVC,,CAR LEASING - PRIVATE RENTALS,27/03/2024,11480743261,130.3,ENTERPRISE RENT-A-CAR
OXFORDSHIRE CC,CUSTOMER AND CULTURE,HARD FM,PREMISES REPAIRS,27/03/2024,11480741911,80.1,B AND Q
OXFORDSHIRE CC,CHILDREN'S & EDUCATION,"	LEAVING CARE CITY 1",OTHER EXPENSES,27/03/2024,11480741945,-4,ASDA GEORGE COM LEEDS
OXFORDSHIRE CC,ADULTS,CSS - OXFORD,MATERIALS,27/03/2024,11480742091,20.18,ROBERT DYAS THAME
OXFORDSHIRE CC,ADULTS,CSS - BANBURY,CATERING PROVISIONS,27/03/2024,11480743451,10,TESCO STORES 2064
OXFORDSHIRE CC,CHILDREN'S & EDUCATION,OTFC TEAM,OTHER TRANSPORT ARRANGEMENTS,27/03/2024,11480743527,1.7,PARKING-CENTRAL
OXFORDSHIRE CC,ENTERPRISEVC,,CAR LEASING - PRIVATE RENTALS,27/03/2024,11480743337,41.98,ENTERPRISE RENT-A-CAR
OXFORDSHIRE CC,ADULTS,CSS BICESTER,CATERING PROVISIONS,27/03/2024,11480742031,68.97,AMAZON  202-8284662-10
OXFORDSHIRE CC,ENTERPRISEVC,,CAR LEASING - PRIVATE RENTALS,27/03/2024,11480743379,114.64,ENTERPRISE RENT-A-CAR
OXFORDSHIRE CC,ENVIRONMENT AND PLACE,TREE MAINT OPS,RECRUTIMENT EXPENSES (EXCL. ADVERTISING),27/03/2024,11480743419,12,WP-COUNTRYSIDE JOB
OXFORDSHIRE CC,ADULTS,SHARED LIVES,OTHER EXPENSES,27/03/2024,11480743577,179.5,AMAZON  206-3128520-74
OXFORDSHIRE CC,CHILDREN'S & EDUCATION,EYNSHAM,CATERING PROVISIONS,27/03/2024,11480742197,5,ASDA SUPERSTORE
OXFORDSHIRE CC,CHILDREN'S & EDUCATION,"	MALTFIELD HOUSE",CATERING PROVISIONS,27/03/2024,11480743131,22.99,AMAZON  206-2655501-95
OXFORDSHIRE CC,CHILDREN'S & EDUCATION,FAMILY HELP SOUTH,MATERIALS,27/03/2024,11480742005,3.93,AMAZON.CO.UK 8G3ZC21P5
OXFORDSHIRE CC,CUSTOMER AND CULTURE,TRANSPORT GENERAL,PAYMENTS TO TRANSPORT OPERATORS,27/03/2024,11480742041,278.35,ENTERPRISE RENT A CAR
OXFORDSHIRE CC,ENTERPRISEVC,,CAR LEASING - PRIVATE RENTALS,27/03/2024,11480743357,74.75,ENTERPRISE RENT-A-CAR
OXFORDSHIRE CC,ENTERPRISEVC,,CAR LEASING - PRIVATE RENTALS,27/03/2024,11480743389,81.1,ENTERPRISE RENT-A-CAR
OXFORDSHIRE CC,ENTERPRISEVC,,CAR LEASING - PRIVATE RENTALS,27/03/2024,11480743301,38.06,ENTERPRISE RENT-A-CAR
OXFORDSHIRE CC,CHILDREN'S & EDUCATION,"	MALTFIELD HOUSE",EQUIPMENT,27/03/2024,11480743159,17.38,AMAZON  206-3459559-37
OXFORDSHIRE CC,CHILDREN'S & EDUCATION,"	MALTFIELD HOUSE",CATERING PROVISIONS,27/03/2024,11480743165,7.28,AMAZON  206-5475862-84
OXFORDSHIRE CC,CORPORATE CORE,,STATIONERY,27/03/2024,11480743199,97.62,LYRECO UK LTD
OXFORDSHIRE CC,ENVIRONMENT AND PLACE,TREE MAINT OPS,RECRUTIMENT EXPENSES (EXCL. ADVERTISING),27/03/2024,11480743431,150,WP-COUNTRYSIDE JOB
OXFORDSHIRE CC,CHILDREN'S & EDUCATION,"	LEAVING CARE NORTH",CATERING,27/03/2024,11480743509,13.02,COSTA COFFEE 43010605
OXFORDSHIRE CC,CUSTOMER AND CULTURE,ABINGDON LIBRARY,EQUIPMENT,27/03/2024,11480743047,71.48,AMAZON.CO.UK JE8F653A5
OXFORDSHIRE CC,CHILDREN'S & EDUCATION,EYNSHAM,OTHER SERVICES,27/03/2024,11480741843,7.99,TESCO SUBSCRIPTION
OXFORDSHIRE CC,ENTERPRISEVC,,CAR LEASING - PRIVATE RENTALS,27/03/2024,11480743229,142.01,ENTERPRISE RENT-A-CAR
OXFORDSHIRE CC,ENTERPRISEVC,,CAR LEASING - PRIVATE RENTALS,27/03/2024,11480743255,81.1,ENTERPRISE RENT-A-CAR
OXFORDSHIRE CC,CHILDREN'S & EDUCATION,"	LAC PUPIL PREMIUM",CATERING PROVISIONS,27/03/2024,11480743681,22.21,AMAZON  204-5386476-61
OXFORDSHIRE CC,ENTERPRISEVC,,CAR LEASING - PRIVATE RENTALS,27/03/2024,11480743291,48.89,ENTERPRISE RENT-A-CAR
OXFORDSHIRE CC,ENTERPRISEVC,,CAR LEASING - PRIVATE RENTALS,27/03/2024,11480743313,142.01,ENTERPRISE RENT-A-CAR
OXFORDSHIRE CC,CUSTOMER AND CULTURE,THAME LIBRARY,"NEWSPAPERS, PERIODICALS AND PUBLICATIONS",27/03/2024,11480743065,5.8,SAINSBURYS S/MKTS
OXFORDSHIRE CC,CHILDREN'S & EDUCATION,"	MALTFIELD HOUSE",EQUIPMENT,27/03/2024,11480743121,14.84,AMAZON  206-2335473-38
OXFORDSHIRE CC,CUSTOMER AND CULTURE,LIBRARY COLLECTIONS,"BOOKS, DVDS AND CDS",27/03/2024,11480742639,"2,132.39",OVERDRIVE DIST
OXFORDSHIRE CC,ADULTS,FAMILY SOLUTIONS PLUS NON-STAFF - SOUTH,HIRE OF ACCOMMODATION AND FACILITIES,27/03/2024,11480742731,404,PREMIER INN
OXFORDSHIRE CC,CUSTOMER AND CULTURE,OPERATIONS,MATERIALS,27/03/2024,11480742833,6.99,AMAZON  203-2804401-35
OXFORDSHIRE CC,ADULTS,PAUSE PROGRAMME,OTHER TRANSPORT ARRANGEMENTS,27/03/2024,11480742231,4.5,OXFORDBUS.CO.UK
OXFORDSHIRE CC,ADULTS,UASC 16&17,CATERING PROVISIONS,27/03/2024,11480742321,2.88,ALDI 112 775
OXFORDSHIRE CC,CHILDREN'S & EDUCATION,FAMILY HELP NORTH,CATERING PROVISIONS,27/03/2024,11480743827,285,B&M 811 BANBURY
OXFORDSHIRE CC,ADULTS,CSS - ABINGDON,CATERING PROVISIONS,27/03/2024,11480744183,33.4,ALDI STORES
OXFORDSHIRE CC,CHILDREN'S & EDUCATION,UASC 16&17,OTHER TRANSPORT ARRANGEMENTS,27/03/2024,11480743483,4.25,STAGECOACH SERVICES
OXFORDSHIRE CC,CUSTOMER AND CULTURE,SCHOOLS FM CATERING AREA 1,CATERING PROVISIONS,27/03/2024,11480743547,12,SAINSBURYS S/MKTS
OXFORDSHIRE CC,ENTERPRISEVC,,CAR LEASING - PRIVATE RENTALS,27/03/2024,11480743349,41.98,ENTERPRISE RENT-A-CAR
OXFORDSHIRE CC,CHILDREN'S & EDUCATION,EYNSHAM,CATERING,27/03/2024,11480741837,201.45,TESCO STORES 2008
OXFORDSHIRE CC,ADULTS,CSS WALLINGFORD,MATERIALS,27/03/2024,11480741871,30.9,AMAZON  203-8768782-21
OXFORDSHIRE CC,ENTERPRISEVC,,CAR LEASING - PRIVATE RENTALS,27/03/2024,11480743223,119.95,ENTERPRISE RENT-A-CAR
OXFORDSHIRE CC,ENTERPRISEVC,,CAR LEASING - PRIVATE RENTALS,27/03/2024,11480743249,183.46,ENTERPRISE RENT-A-CAR
OXFORDSHIRE CC,CHILDREN'S & EDUCATION,"	LAC PUPIL PREMIUM",CATERING PROVISIONS,27/03/2024,11480743667,5.75,AMAZON  204-5386476-61
OXFORDSHIRE CC,ADULTS,CSS - OXFORD,CATERING PROVISIONS,27/03/2024,11480741931,23.74,TESCO STORES 2994
OXFORDSHIRE CC,CHILDREN'S & EDUCATION,"	LEAVING CARE NORTH",HIRED AND CONTRACTED SERVICES,27/03/2024,11480742171,83,MAGENTA STORAGE
OXFORDSHIRE CC,CHILDREN'S & EDUCATION,"	MALTFIELD HOUSE",FURNITURE,27/03/2024,11480743141,9.99,AMAZON  206-5962258-63
OXFORDSHIRE CC,CHILDREN'S & EDUCATION,"	MALTFIELD HOUSE",CATERING PROVISIONS,27/03/2024,11480743169,40.76,AMAZON  206-5475862-84
OXFORDSHIRE CC,CORPORATE CORE,,STATIONERY,27/03/2024,11480743207,16.61,LYRECO UK LTD
OXFORDSHIRE CC,ADULTS,CSS BICESTER,MATERIALS,27/03/2024,11480742023,28.44,BUCKINGHAM GARDEN CENT
OXFORDSHIRE CC,ENTERPRISEVC,,CAR LEASING - PRIVATE RENTALS,27/03/2024,11480743371,193.16,ENTERPRISE RENT-A-CAR
OXFORDSHIRE CC,CHILDREN'S & EDUCATION,FAMILY SOLUTIONS PLUS NON-STAFF - NORTH,PAYMENT TO GOVERNMENT DEPARTMENTS,27/03/2024,11480741969,14,GEN REGISTER OFFICE
OXFORDSHIRE CC,CHILDREN'S & EDUCATION,"	MALTFIELD HOUSE",DAY ACTIVITIES,27/03/2024,11480743151,9.99,AMAZON  206-2624117-97
OXFORDSHIRE CC,CHILDREN'S & EDUCATION,"	MALTFIELD HOUSE",MATERIALS,27/03/2024,11480743175,45.08,AMAZON  206-2502136-85
OXFORDSHIRE CC,CORPORATE CORE,,STATIONERY,27/03/2024,11480743213,119.59,LYRECO UK LTD
OXFORDSHIRE CC,ENVIRONMENT AND PLACE,TREE MAINT OPS,RECRUTIMENT EXPENSES (EXCL. ADVERTISING),27/03/2024,11480743411,148.8,WWW.HORTEJOBS.COM
OXFORDSHIRE CC,ENTERPRISEVC,,CAR LEASING - PRIVATE RENTALS,27/03/2024,11480743267,73.63,ENTERPRISE RENT-A-CAR
OXFORDSHIRE CC,PUBLIC HEALTH,CHILDREN IN CARE NON-STAFFING - SOUTH,PAYMENT TO GOVERNMENT DEPARTMENTS,27/03/2024,11480741813,93,HM PASSPORT OFFICE
OXFORDSHIRE CC,PUBLIC HEALTH,WITNEY,CATERING PROVISIONS,27/03/2024,11480741853,7.7,LIDL GB WITNEY
OXFORDSHIRE CC,ENTERPRISEVC,,CAR LEASING - PRIVATE RENTALS,27/03/2024,11480743237,38.75,ENTERPRISE RENT-A-CAR
OXFORDSHIRE CC,CHILDREN'S & EDUCATION,"	LAC PUPIL PREMIUM",MATERIALS,27/03/2024,11480743701,5.99,AMAZON  204-7855035-73
OXFORDSHIRE CC,CUSTOMER AND CULTURE,HARD FM,PREMISES REPAIRS,27/03/2024,11480741917,20.36,B AND Q
OXFORDSHIRE CC,CHILDREN'S & EDUCATION,FAMILY SOLUTIONS PLUS NON-STAFF - NORTH,PAYMENTS TO TRANSPORT OPERATORS,27/03/2024,11480741953,128.89,TRAINLINE
OXFORDSHIRE CC,ENTERPRISEVC,,CAR LEASING - PRIVATE RENTALS,27/03/2024,11480743345,130.14,ENTERPRISE RENT-A-CAR
OXFORDSHIRE CC,CHILDREN'S & EDUCATION,ATV ADOPTION WOODLEY,HIRE OF ACCOMMODATION AND FACILITIES,27/03/2024,11480741829,270,THAMES VALLEY ADVENTUR
OXFORDSHIRE CC,PUBLIC HEALTH,WITNEY,CATERING PROVISIONS,27/03/2024,11480741859,5.78,LIDL GB WITNEY
OXFORDSHIRE CC,CUSTOMER AND CULTURE,HARD FM,PREMISES REPAIRS,27/03/2024,11480741901,261.06,WWW.POWRED.COM
OXFORDSHIRE CC,ENTERPRISEVC,,CAR LEASING - PRIVATE RENTALS,27/03/2024,11480743243,75.22,ENTERPRISE RENT-A-CAR
OXFORDSHIRE CC,CHILDREN'S & EDUCATION,"	LAC PUPIL PREMIUM",MATERIALS,27/03/2024,11480743657,2.82,AMAZON  204-1203152-98
OXFORDSHIRE CC,CHILDREN'S & EDUCATION,"	LAC PUPIL PREMIUM",MATERIALS,27/03/2024,11480743713,67.19,AMAZON  204-5386476-61
OXFORDSHIRE CC,ADULTS,CSS - OXFORD,CATERING PROVISIONS,27/03/2024,11480741925,34.66,ALDI STORES 775-142
OXFORDSHIRE CC,ADULTS,CSS - BANBURY,CATERING PROVISIONS,27/03/2024,11480743841,50.32,AMAZON  026-8898860-11
OXFORDSHIRE CC,ADULTS,THAME E&A HOME,ENTERTAINMENT EXPENSES,27/03/2024,11480743889,8.89,SUPERDRUG STORES PLC
OXFORDSHIRE CC,CUSTOMER AND CULTURE,SCHOOLS FM CATERING AREA 4,MATERIALS,27/03/2024,11480742421,20.59,NISBETS LTD
OXFORDSHIRE CC,CUSTOMER AND CULTURE,LIBRARY COLLECTIONS,"BOOKS, DVDS AND CDS",27/03/2024,11480742663,806.45,OVERDRIVE DIST
OXFORDSHIRE CC,CHILDREN'S & EDUCATION,THAME E&A HOME,CATERING PROVISIONS,27/03/2024,11480742547,18.96,AMAZON  206-6078430-80
OXFORDSHIRE CC,ADULTS,CSS - OXFORD,CATERING PROVISIONS,27/03/2024,11480742313,21.72,ALDI STORES 775-142
OXFORDSHIRE CC,CUSTOMER AND CULTURE,SCHOOLS FM CATERING AREA 4,MATERIALS,27/03/2024,11480742425,167.94,NISBETS LTD
OXFORDSHIRE CC,CHILDREN'S & EDUCATION,DIDCOT MOVE-ON HOME,MATERIALS,27/03/2024,11480742599,24.99,AMAZON  204-0607364-07
OXFORDSHIRE CC,CUSTOMER AND CULTURE,HARD FM,PREMISES REPAIRS,27/03/2024,11480742507,160.51,MKM BUILDING SUPPLIES
OXFORDSHIRE CC,CHILDREN'S & EDUCATION,PAUSE PROGRAMME,CATERING PROVISIONS,27/03/2024,11480742559,5.65,SAINSBURYS S/MKTS
OXFORDSHIRE CC,CHILDREN'S & EDUCATION,DIDCOT MOVE-ON HOME,FIXTURES & FITTINGS,27/03/2024,11480742607,29.82,AMAZON  204-8698013-81
OXFORDSHIRE CC,CUSTOMER AND CULTURE,HEADINGTON LIBRARY,MATERIALS,27/03/2024,11480742775,5,HEADINGTON HOMEWAR
OXFORDSHIRE CC,CHILDREN'S & EDUCATION,CHILDREN IN CARE NON-STAFFING - CENTRL 2,OTHER TRANSPORT ARRANGEMENTS,27/03/2024,11480743799,38.41,TRAINLINE
OXFORDSHIRE CC,ADULTS,LEADERSHIP TEAM,PROFESSIONAL SUBSCRIPTIONS,27/03/2024,11480743911,"3,564.00",WWW.ADASS.ORG.UK
OXFORDSHIRE CC,CHILDREN'S & EDUCATION,"	LEAVING CARE CITY 2",PAYMENTS TO TRANSPORT OPERATORS,27/03/2024,11480743957,105,OXFORDBUS.CO.UK
OXFORDSHIRE CC,CUSTOMER AND CULTURE,REACTIVE MAINTENANCE,PAYMENTS TO VOLUNTARY BODIES,27/03/2024,11480743997,115,JUSTGIVING HAMPSHIREIS
OXFORDSHIRE CC,CHILDREN'S & EDUCATION,PAUSE PROGRAMME,CATERING,27/03/2024,11480742517,5.2,CAFE LOCO
OXFORDSHIRE CC,CUSTOMER AND CULTURE,OPERATIONS,MATERIALS,27/03/2024,11480742839,8.5,AMAZON  203-6170059-95
OXFORDSHIRE CC,CHILDREN'S & EDUCATION,CHILDREN IN CARE NON-STAFFING - CENTRL 2,OTHER TRANSPORT ARRANGEMENTS,27/03/2024,11480743775,6.5,OXFORDBUS.CO.UK
OXFORDSHIRE CC,CHILDREN'S & EDUCATION,CHILDREN IN CARE NON-STAFFING - SOUTH,PAYMENT TO GOVERNMENT DEPARTMENTS,27/03/2024,11480743803,53.5,HM PASSPORT OFFICE
OXFORDSHIRE CC,CHILDREN'S & EDUCATION,FAMILY SOLUTIONS PLUS NON-STAFF - NORTH,MATERIALS,27/03/2024,11480743833,193,WWW.ARGOS.CO.UK
OXFORDSHIRE CC,ADULTS,CSS WALLINGFORD,MATERIALS,27/03/2024,11480743881,23.88,AMAZON  026-3940552-78
OXFORDSHIRE CC,CHILDREN'S & EDUCATION,KINGFISHER,CLOTHING AND UNIFORMS,27/03/2024,11480744107,76.94,SKATEHUT
OXFORDSHIRE CC,CUSTOMER AND CULTURE,LIBRARY COLLECTIONS,"BOOKS, DVDS AND CDS",27/03/2024,11480742659,"1,392.92",OVERDRIVE DIST
OXFORDSHIRE CC,CHILDREN'S & EDUCATION,"	LEAVING CARE CITY 2",CATERING PROVISIONS,27/03/2024,11480742683,15.8,SAINSBURY'S S/MKT
OXFORDSHIRE CC,CHILDREN'S & EDUCATION,NTH EARLY HELP-BCSTR,CATERING,27/03/2024,11480742301,20.7,JUST EAT
OXFORDSHIRE CC,CUSTOMER AND CULTURE,BUSINESS INTELLECTUAL PROPERTY CENTRE,PAYMENTS TO TRANSPORT OPERATORS,27/03/2024,11480742793,30.57,TRAINLINE
OXFORDSHIRE CC,CHILDREN'S & EDUCATION,BANBURY CC,CATERING PROVISIONS,27/03/2024,11480743823,7.25,ALDI 10 775
OXFORDSHIRE CC,ADULTS,CSS WITNEY,CATERING PROVISIONS,27/03/2024,11480742737,36.45,CO-OP GROUP 070582
OXFORDSHIRE CC,ENVIRONMENT AND PLACE,OCCG GRANT,CATERING PROVISIONS,27/03/2024,11480742769,6.45,TESCO STORES 2064
OXFORDSHIRE CC,CUSTOMER AND CULTURE,LEARNING & ACCESS,EDUCATIONAL AND VOCATIONAL TRAINING ,27/03/2024,11480742877,83,EB  TEG CONNECTS 2024
OXFORDSHIRE CC,CHILDREN'S & EDUCATION,PARTNERSHIP YOUTH OFFER,MATERIALS,27/03/2024,11480743859,200,AMAZON.CO.UK 5C97L9Q75
OXFORDSHIRE CC,CORPORATE CORE,"MARKETING, COMMUNICATIONS & ENGAGEMENT","PUBLICITY, PROMOTIONS AND ADVERTISEMENT",27/03/2024,11480743947,12.22,SNAP INC SNAP SNAP ADS
OXFORDSHIRE CC,ADULTS,CSS WANTAGE,CATERING PROVISIONS,27/03/2024,11480744095,12.52,SAINSBURYS S/MKTS
OXFORDSHIRE CC,CUSTOMER AND CULTURE,FINDS LIAISON OFFICER,"BOOKS, DVDS AND CDS",27/03/2024,11480743723,11.04,BLOOMSBURY.COM UK
OXFORDSHIRE CC,ADULTS,UASC 16&17,"SUPPLIES, STATIONERY AND MATERIALS",27/03/2024,11480742331,2.98,HOME BARGAINS
OXFORDSHIRE CC,CUSTOMER AND CULTURE,SCHOOLS FM CATERING AREA 4,MATERIALS,27/03/2024,11480742417,44.38,NISBETS LTD
OXFORDSHIRE CC,CORPORATE CORE,"MARKETING, COMMUNICATIONS & ENGAGEMENT","PUBLICITY, PROMOTIONS AND ADVERTISEMENT",27/03/2024,11480743935,500,FACEBK  LSKL2489Z2
OXFORDSHIRE CC,RESOURCES,ICT OPERATIONS & MAI,PURCHASE OF IT EQUIPMENT,27/03/2024,11480743737,424.96,AMAZON  203-3484322-39
OXFORDSHIRE CC,CUSTOMER AND CULTURE,COUNTY PRINT FINSHRS,MATERIALS,27/03/2024,11480744007,243,WEIRBAGS LTD
OXFORDSHIRE CC,CUSTOMER AND CULTURE,BANBURY LIBRARY,"NEWSPAPERS, PERIODICALS AND PUBLICATIONS",27/03/2024,11480742537,56.99,GUARDIAN NEWS & MEDIA
OXFORDSHIRE CC,CHILDREN'S & EDUCATION,DIDCOT MOVE-ON HOME,CATERING PROVISIONS,27/03/2024,11480742587,20.79,ALDI 99 775
OXFORDSHIRE CC,CUSTOMER AND CULTURE,LIBRARY COLLECTIONS,"BOOKS, DVDS AND CDS",27/03/2024,11480742631,41.77,OVERDRIVE DIST
OXFORDSHIRE CC,CUSTOMER AND CULTURE,SCHOOLS FM CATERING AREA 4,CATERING PROVISIONS,27/03/2024,11480742411,88.83,WM MORRISONS STORE PIC
OXFORDSHIRE CC,CORPORATE CORE,"MARKETING, COMMUNICATIONS & ENGAGEMENT",PURCHASE OF IT EQUIPMENT,27/03/2024,11480743939,209.98,AMAZON.CO.UK W82KK1DE5
OXFORDSHIRE CC,CUSTOMER AND CULTURE,HARD FM,PREMISES REPAIRS,27/03/2024,11480742499,169.46,HOWDENS - OXFORD D879
OXFORDSHIRE CC,CUSTOMER AND CULTURE,LIBRARY COLLECTIONS,"BOOKS, DVDS AND CDS",27/03/2024,11480742671,225.24,OVERDRIVE DIST
OXFORDSHIRE CC,CHILDREN'S & EDUCATION,CHILDREN IN CARE NON-STAFFING - NORTH,OTHER TRANSPORT ARRANGEMENTS,27/03/2024,11480743791,111.98,TRAINLINE
OXFORDSHIRE CC,CUSTOMER AND CULTURE,LIBRARY COLLECTIONS,"BOOKS, DVDS AND CDS",27/03/2024,11480742651,"1,395.16",OVERDRIVE DIST
OXFORDSHIRE CC,CUSTOMER AND CULTURE,LIBRARY COLLECTIONS,"BOOKS, DVDS AND CDS",27/03/2024,11480742675,413.21,OVERDRIVE DIST
OXFORDSHIRE CC,CHILDREN'S & EDUCATION,THAME E&A HOME,TELEPHONE - EQUIPMENT,27/03/2024,11480742725,135,IBRAHIM   RAYAN TECHNO
OXFORDSHIRE CC,CUSTOMER AND CULTURE,SCHOOLS FM CATERING AREA 1,CATERING PROVISIONS,27/03/2024,11480742431,11.15,CO OPERATIVE FOOD
OXFORDSHIRE CC,ADULTS,UASC 16&17,"SUPPLIES, STATIONERY AND MATERIALS",27/03/2024,11480742337,8.25,ASDA STORES
OXFORDSHIRE CC,CUSTOMER AND CULTURE,LIBRARY COLLECTIONS,"BOOKS, DVDS AND CDS",27/03/2024,11480742621,471.34,OVERDRIVE DIST
OXFORDSHIRE CC,CUSTOMER AND CULTURE,BUSINESS INTELLECTUAL PROPERTY CENTRE,TELEPHONE - EQUIPMENT,27/03/2024,11480742785,8,INTERNET AND PHONE ACC
OXFORDSHIRE CC,CHILDREN'S & EDUCATION,PAUSE PROGRAMME,OTHER TRANSPORT ARRANGEMENTS,27/03/2024,11480744217,2.9,RINGGO PARKING
OXFORDSHIRE CC,CUSTOMER AND CULTURE,SCHOOLS FM CATERING AREA 4,VEHICLE FUEL,27/03/2024,11480742407,34.14,BUDGENS PEACHCROFT
OXFORDSHIRE CC,CHILDREN'S & EDUCATION,PAUSE PROGRAMME,OTHER TRANSPORT ARRANGEMENTS,27/03/2024,11480742527,5,REDBRIDGE PARK AND RID
OXFORDSHIRE CC,CHILDREN'S & EDUCATION,CHILDREN IN CARE NON-STAFFING - CENTRL 2,OTHER TRANSPORT ARRANGEMENTS,27/03/2024,11480743785,6.5,OXFORDBUS.CO.UK
OXFORDSHIRE CC,CHILDREN'S & EDUCATION,CHILDREN IN CARE NON-STAFFING - NORTH,PAYMENT TO GOVERNMENT DEPARTMENTS,27/03/2024,11480743807,53.5,HM PASSPORT OFFICE
OXFORDSHIRE CC,CHILDREN'S & EDUCATION,CHILDREN IN CARE NON-STAFFING - NORTH,NON-STAFF SUBSISTENCE AND EXPENSES,27/03/2024,11480743811,50,BLACKHAWK CS   ICELAND
OXFORDSHIRE CC,ADULTS,CSS WITNEY,MATERIALS,26/03/2024,11476099601,34.49,AMAZON.CO.UK E73WC6UK5
OXFORDSHIRE CC,ADULTS,CSS BICESTER,CATERING PROVISIONS,26/03/2024,11476099729,144.24,TESCO STORES 2162
OXFORDSHIRE CC,CUSTOMER AND CULTURE,ABINGDON LIBRARY,EQUIPMENT,26/03/2024,11476100957,59.98,AMAZON  203-4211042-26
OXFORDSHIRE CC,CUSTOMER AND CULTURE,HARD FM,PREMISES REPAIRS,26/03/2024,11476099715,74.29,SAINSBURYS PETROL
OXFORDSHIRE CC,CHILDREN'S & EDUCATION,FAMILY SOLUTIONS PLUS NON-STAFF - NORTH,PAYMENTS TO TRANSPORT OPERATORS,26/03/2024,11476101157,20.27,TRAINLINE
OXFORDSHIRE CC,CHILDREN'S & EDUCATION,FAMILY SOLUTIONS PLUS NON-STAFF - NORTH,PAYMENTS TO TRANSPORT OPERATORS,26/03/2024,11476101229,39.12,TRAINLINE
OXFORDSHIRE CC,CHILDREN'S & EDUCATION,STRATEGY INNOVATION STAFFING,STAFF AND VOLUNTEER TRAVEL EXPENSES,26/03/2024,11476101239,85.18,TRAINLINE
OXFORDSHIRE CC,ADULTS,UASC 16&17,"SUPPLIES, STATIONERY AND MATERIALS",26/03/2024,11476100393,10,CINEWORLD CINEMAS LTD
OXFORDSHIRE CC,ADULTS,CSS WANTAGE,ENTERTAINMENT EXPENSES,26/03/2024,11476100825,14.85,WWW.BETTER.ORG.UK
OXFORDSHIRE CC,ADULTS,CSS - BANBURY,CATERING PROVISIONS,26/03/2024,11476101071,49.98,AMAZON  204-6903078-62
OXFORDSHIRE CC,CHILDREN'S & EDUCATION,EYNSHAM,CATERING,26/03/2024,11476099637,15,MAYFIELDEGGS
OXFORDSHIRE CC,CUSTOMER AND CULTURE,COMMUNITY PARTNERSHIP TEAM,CATERING PROVISIONS,26/03/2024,11476099955,3.99,AMAZON  026-2003685-21
OXFORDSHIRE CC,CHILDREN'S & EDUCATION,EYNSHAM,CATERING PROVISIONS,26/03/2024,11476101273,9.35,CO-OPERATIVE FOOD
OXFORDSHIRE CC,RESOURCES,ICT OPERATIONS & MAI,PURCHASE OF IT EQUIPMENT,26/03/2024,11476101319,199.12,AMAZON.CO.UK E73O96DZ5
OXFORDSHIRE CC,CHILDREN'S & EDUCATION,THAME E&A HOME,CATERING PROVISIONS,26/03/2024,11476099981,259.31,TESCO STORES 2038
OXFORDSHIRE CC,CUSTOMER AND CULTURE,KNIGHTS COURT,CATERING PROVISIONS,26/03/2024,11476100559,10.47,AMAZON  205-2848460-31
OXFORDSHIRE CC,CHILDREN'S & EDUCATION,ATV ADOPTION WOODLEY,HIRE OF ACCOMMODATION AND FACILITIES,26/03/2024,11476099615,822.74,WOODLEY TOWN COUNCIL
OXFORDSHIRE CC,CHILDREN'S & EDUCATION,OTFC TEAM,CATERING,26/03/2024,11476101151,15.2,BOOST JUICE BARS
OXFORDSHIRE CC,ADULTS,CSS - ABINGDON,CATERING PROVISIONS,26/03/2024,11476101389,59.9,TESCO STORES 2008
OXFORDSHIRE CC,CHILDREN'S & EDUCATION,THAME E&A HOME,CATERING PROVISIONS,26/03/2024,11476099987,-23.6,TESCO STORES 2038
OXFORDSHIRE CC,CHILDREN'S & EDUCATION,"	DIRECTOR'S OFFICE",PROFESSIONAL SUBSCRIPTIONS,26/03/2024,11476100015,"1,188.00",WWW.ADASS.ORG.UK
OXFORDSHIRE CC,CHILDREN'S & EDUCATION,"	OCCG GRANT",CATERING,26/03/2024,11476100355,11.98,PIRICO OXFORD
OXFORDSHIRE CC,CHILDREN'S & EDUCATION,"	LEAVING CARE CITY 1",OTHER TRANSPORT ARRANGEMENTS,26/03/2024,11476100251,2,OXFORDBUS.CO.UK
OXFORDSHIRE CC,CUSTOMER AND CULTURE,OPERATIONS,MATERIALS,26/03/2024,11476100675,6.78,AMAZON  203-9655735-81
OXFORDSHIRE CC,CHILDREN'S & EDUCATION,40 THE MOORS,CATERING PROVISIONS,26/03/2024,11476100891,22.35,ALDI STORES 775-142
OXFORDSHIRE CC,CHILDREN'S & EDUCATION,FSP NON-STAFFING - CENTRAL,PAYMENTS TO TRANSPORT OPERATORS,26/03/2024,11476100969,6.9,WWW.GWR.COM
OXFORDSHIRE CC,CHILDREN'S & EDUCATION,FAMILY SOLUTIONS PLUS NON-STAFF - NORTH,PAYMENTS TO TRANSPORT OPERATORS,26/03/2024,11476099767,130.23,TRAINLINE
OXFORDSHIRE CC,CHILDREN'S & EDUCATION,"	LEAVING CARE CITY 1",CATERING PROVISIONS,26/03/2024,11476100269,11.98,AMAZON  204-7277643-80
OXFORDSHIRE CC,ADULTS,CSS - OXFORD,MATERIALS,26/03/2024,11476100695,40.38,AMAZON  026-1585358-85
OXFORDSHIRE CC,CHILDREN'S & EDUCATION,40 THE MOORS,CATERING,26/03/2024,11476100899,208.35,SAINSBURYS.CO.UK
OXFORDSHIRE CC,CUSTOMER AND CULTURE,THAME LIBRARY,CATERING PROVISIONS,26/03/2024,11476100989,5.8,SAINSBURYS S/MKTS
OXFORDSHIRE CC,CUSTOMER AND CULTURE,COMMUNITY PARTNERSHIP TEAM,CATERING PROVISIONS,26/03/2024,11476099959,20.69,AMAZON  026-2192249-80
OXFORDSHIRE CC,RESOURCES,ICT OPERATIONS & MAI,PURCHASE OF IT EQUIPMENT,26/03/2024,11476101327,193.88,AMAZON.CO.UK U812F7BS5
OXFORDSHIRE CC,CHILDREN'S & EDUCATION,"	OCCG GRANT",ENTERTAINMENT EXPENSES,26/03/2024,11476101171,15,WH SMITH BANBURY
OXFORDSHIRE CC,ADULTS,ASC INCOME TEAM,PAYMENT TO GOVERNMENT DEPARTMENTS,26/03/2024,11476100037,1.5,FIND A WILL
OXFORDSHIRE CC,CHILDREN'S & EDUCATION,"	LEAVING CARE CITY 1",PAYMENTS TO TRANSPORT OPERATORS,26/03/2024,11476100279,12.43,TRAINLINE
OXFORDSHIRE CC,CHILDREN'S & EDUCATION,40 THE MOORS,CATERING,26/03/2024,11476100903,-10.8,SAINSBURYS.CO.UK
OXFORDSHIRE CC,CUSTOMER AND CULTURE,KIDLINGTON LIBRARY,"NEWSPAPERS, PERIODICALS AND PUBLICATIONS",26/03/2024,11476100947,108.5,ZETTLE_ OXFORD HOUSE N
OXFORDSHIRE CC,CHILDREN'S & EDUCATION,"	MALTFIELD HOUSE","BOOKS, DVDS AND CDS",26/03/2024,11476101043,27.17,AMAZON  206-2593484-01
OXFORDSHIRE CC,CHILDREN'S & EDUCATION,THAME E&A HOME,CATERING,26/03/2024,11476100421,61.08,HISTORIA MEZE GRILL
OXFORDSHIRE CC,CHILDREN'S & EDUCATION,THAME E&A HOME,CATERING PROVISIONS,26/03/2024,11476100491,44.7,SAINSBURYS S/MKTS
OXFORDSHIRE CC,CHILDREN'S & EDUCATION,WITNEY,CATERING PROVISIONS,26/03/2024,11476101097,10.22,SAINSBURYS S/MKTS
OXFORDSHIRE CC,CHILDREN'S & EDUCATION,OTFC TEAM,CATERING,26/03/2024,11476101133,36.35,NANDOS.CO.UK
OXFORDSHIRE CC,CHILDREN'S & EDUCATION,THAME E&A HOME,OTHER TRANSPORT ARRANGEMENTS,26/03/2024,11476099807,5.2,WESTGATE OXFORD CAR PA
OXFORDSHIRE CC,CHILDREN'S & EDUCATION,"	SEN/ICT EQUIPMENT",PURCHASE OF IT EQUIPMENT,26/03/2024,11476101555,15.99,AMAZON  203-1752487-97
OXFORDSHIRE CC,CHILDREN'S & EDUCATION,"	LEAVING CARE CITY 1",MATERIALS,26/03/2024,11476100247,8.99,AMAZON PRIME 9K1CH7VC5
OXFORDSHIRE CC,CUSTOMER AND CULTURE,SCHOOLS FM CATERING AREA 4,CATERING PROVISIONS,26/03/2024,11476100427,109.94,SAINSBURYS S/MKTS
OXFORDSHIRE CC,CHILDREN'S & EDUCATION,PAUSE PROGRAMME,OTHER TRANSPORT ARRANGEMENTS,26/03/2024,11476100499,5,REDBRIDGE PARK AND RID
OXFORDSHIRE CC,CUSTOMER AND CULTURE,HISTORY SERVICE,FURNITURE,26/03/2024,11476100745,25.62,WWW.PRESERVATIONEQUIPM
OXFORDSHIRE CC,ADULTS,CSS WANTAGE,CATERING PROVISIONS,26/03/2024,11476100833,2.3,CO-OPERATIVE FOOD
OXFORDSHIRE CC,ADULTS,CSS WANTAGE,ENTERTAINMENT EXPENSES,26/03/2024,11476100829,17.85,WWW.BETTER.ORG.UK
OXFORDSHIRE CC,CHILDREN'S & EDUCATION,OTFC TEAM,OTHER TRANSPORT ARRANGEMENTS,26/03/2024,11476101139,5,OXPENS CAR PARK
OXFORDSHIRE CC,CHILDREN'S & EDUCATION,FAMILY SOLUTIONS PLUS NON-STAFF - NORTH,CATERING PROVISIONS,26/03/2024,11476101163,3.6,TESCO STORES 3143
OXFORDSHIRE CC,CHILDREN'S & EDUCATION,CHILDREN IN CARE NON-STAFFING - NORTH,NON-STAFF SUBSISTENCE AND EXPENSES,26/03/2024,11476101365,25,TESCO GIFT CARD
OXFORDSHIRE CC,CHILDREN'S & EDUCATION,THAME E&A HOME,OTHER EXPENSES,26/03/2024,11476099979,6.49,AMAZON  202-2528120-05
OXFORDSHIRE CC,CHILDREN'S & EDUCATION,KINGFISHER,HIRE OF ACCOMMODATION AND FACILITIES,26/03/2024,11476101567,89,GUILDFORD MANOR HOTEL
OXFORDSHIRE CC,CUSTOMER AND CULTURE,KNIGHTS COURT,CATERING PROVISIONS,26/03/2024,11476100551,91.49,AMAZON  205-6717851-39
OXFORDSHIRE CC,ADULTS,CSS WITNEY,CATERING PROVISIONS,26/03/2024,11476100601,12.35,MARKS&SPENCER PLC SACA
OXFORDSHIRE CC,CUSTOMER AND CULTURE,OPERATIONS,MATERIALS,26/03/2024,11476100671,21.62,AMAZON  203-5456386-41
OXFORDSHIRE CC,CHILDREN'S & EDUCATION,OTFC TEAM,CATERING,26/03/2024,11476101145,11.78,"KFC OXFORD, TEMPLARS S"
OXFORDSHIRE CC,CHILDREN'S & EDUCATION,"	LEAVING CARE CITY 2",PAYMENT TO GOVERNMENT DEPARTMENTS,26/03/2024,11476099829,31.25,NHSBSA PPC ONLINE PMT
OXFORDSHIRE CC,CHILDREN'S & EDUCATION,"	LEAVING CARE CITY 1",OTHER EXPENSES,26/03/2024,11476099737,-34.97,AMZNMKTPLACE
OXFORDSHIRE CC,ADULTS,CSS - BANBURY,CATERING PROVISIONS,26/03/2024,11476101383,97,SAINSBURYS.CO.UK
OXFORDSHIRE CC,CUSTOMER AND CULTURE,SCHOOLS FM CATERING AREA 4,MATERIALS,26/03/2024,11476100433,142.34,NISBETS LTD
OXFORDSHIRE CC,CUSTOMER AND CULTURE,KNIGHTS COURT,CATERING PROVISIONS,26/03/2024,11476100561,3,TESCO STORES 2990
OXFORDSHIRE CC,ADULTS,FAMILY SOLUTIONS PLUS NON-STAFF - SOUTH,CATERING PROVISIONS,26/03/2024,11476100583,9.79,AMAZON  203-1577667-53
OXFORDSHIRE CC,CHILDREN'S & EDUCATION,EYNSHAM,CATERING,26/03/2024,11476099641,2,CO-OPERATIVE FOOD
OXFORDSHIRE CC,PUBLIC HEALTH,WITNEY,CATERING PROVISIONS,26/03/2024,11476099659,7.95,AMAZON  205-4515075-89
OXFORDSHIRE CC,CORPORATE CORE,"MARKETING, COMMUNICATIONS & ENGAGEMENT","PUBLICITY, PROMOTIONS AND ADVERTISEMENT",26/03/2024,11476101431,40.51,SNAP INC SNAP SNAP ADS
OXFORDSHIRE CC,PUBLIC HEALTH,CHILDREN IN CARE NON-STAFFING - NORTH,PAYMENTS TO TRANSPORT OPERATORS,26/03/2024,11476100095,6,BICESTER VIL SSTP
OXFORDSHIRE CC,CHILDREN'S & EDUCATION,"	LEAVING CARE NORTH",MATERIALS,26/03/2024,11476100147,8.99,AMAZON PRIME HF8W32HY5
OXFORDSHIRE CC,CHILDREN'S & EDUCATION,"	LEAVING CARE NORTH",MATERIALS,26/03/2024,11476100151,25,VOUCHER EXPRESS
OXFORDSHIRE CC,CUSTOMER AND CULTURE,KNIGHTS COURT,CATERING PROVISIONS,26/03/2024,11476100567,6,TESCO STORES 2990
OXFORDSHIRE CC,CUSTOMER AND CULTURE,CENTRAL LIBRARY,MATERIALS,26/03/2024,11476100757,439.2,SUMUP   T J GRESSWELL
OXFORDSHIRE CC,CHILDREN'S & EDUCATION,"	MALTFIELD HOUSE",CATERING EQUIPMENT,26/03/2024,11476101049,179,SHARKNINJA EUROPE
OXFORDSHIRE CC,CHILDREN'S & EDUCATION,ATV ADOPTION WOODLEY,POSTAGE AND DELIVERY,26/03/2024,11476099621,2.75,POST OFFICE COUNTER
OXFORDSHIRE CC,CHILDREN'S & EDUCATION,40 THE MOORS,CATERING PROVISIONS,26/03/2024,11476100525,2.39,TESCO STORES 2788
OXFORDSHIRE CC,ADULTS,CSS WITNEY,ENTERTAINMENT EXPENSES,26/03/2024,11476100593,9,WWW.BETTER.ORG.UK
OXFORDSHIRE CC,CHILDREN'S & EDUCATION,"	MALTFIELD HOUSE",POSTAGE AND DELIVERY,26/03/2024,11476101057,16.45,POST OFFICE COUNTER
OXFORDSHIRE CC,ADULTS,CSS BICESTER,EQUIPMENT,26/03/2024,11476099881,29.99,AMAZON  202-1911460-63
OXFORDSHIRE CC,CUSTOMER AND CULTURE,MUSEUMS COLLECTIONS,OTHER SERVICES,26/03/2024,11476100771,3.76,AMAZON.CO.UK WU7KA2P85
OXFORDSHIRE CC,CHILDREN'S & EDUCATION,"	MALTFIELD HOUSE",RESIDENTIAL ACTIVITIES,26/03/2024,11476101039,29.69,AMAZON  206-1095512-31
OXFORDSHIRE CC,ADULTS,CSS - BANBURY,CATERING PROVISIONS,26/03/2024,11476101067,5.75,TESCO STORES 2064
OXFORDSHIRE CC,ADULTS,CSS BICESTER,MATERIALS,26/03/2024,11476099889,13.36,AMZNMKTPLACE
OXFORDSHIRE CC,CUSTOMER AND CULTURE,COMMUNITY PARTNERSHIP TEAM,CATERING PROVISIONS,26/03/2024,11476099965,70.96,AMAZON  026-9747920-96
OXFORDSHIRE CC,CUSTOMER AND CULTURE,WALLINGFORD LIBRARY,CATERING PROVISIONS,25/03/2024,11467832657,6.05,WAITROSE 675
OXFORDSHIRE CC,CHILDREN'S & EDUCATION,FAMILY SOLUTIONS PLUS NON-STAFF - NORTH,MATERIALS,25/03/2024,11467832749,13,THEWORKS.CO.UK
OXFORDSHIRE CC,CHILDREN'S & EDUCATION,40 THE MOORS,CATERING,25/03/2024,11467832911,32.35,TESCO STORES 2788
OXFORDSHIRE CC,CUSTOMER AND CULTURE,CATERING MANAGEMENT SOFT FM,CATERING PROVISIONS,25/03/2024,11467833177,51.28,AMAZON  026-2105574-65
OXFORDSHIRE CC,CUSTOMER AND CULTURE,CATERING MANAGEMENT SOFT FM,CATERING PROVISIONS,25/03/2024,11467833229,25.26,AMAZON  026-9215643-19
OXFORDSHIRE CC,CUSTOMER AND CULTURE,LIBRARY COLLECTIONS,"BOOKS, DVDS AND CDS",25/03/2024,11467831157,332.61,OVERDRIVE DIST
OXFORDSHIRE CC,CHILDREN'S & EDUCATION,FAMILY SOLUTIONS PLUS NON-STAFF � SOUTH,DAY ACTIVITIES,25/03/2024,11467832001,26,OXFORD BROOKES UNI
OXFORDSHIRE CC,ADULTS,THAME E&A HOME,CATERING PROVISIONS,25/03/2024,11467832031,4.24,TESCO STORES 2994
OXFORDSHIRE CC,ADULTS,CSS WANTAGE,CATERING PROVISIONS,25/03/2024,11467830715,1.29,HOME BARGAINS
OXFORDSHIRE CC,ADULTS,CSS - OXFORD,DAY ACTIVITIES,25/03/2024,11467830757,17.62,ALDI STORES 775-142
OXFORDSHIRE CC,CHILDREN'S & EDUCATION,HOLIDAY ACTIVITIES & FOOD GRANT,CATERING PROVISIONS,25/03/2024,11467832381,9.95,AMAZON  203-0111621-73
OXFORDSHIRE CC,CHILDREN'S & EDUCATION,THAME E&A HOME,CATERING PROVISIONS,25/03/2024,11467830953,1.1,SAINSBURYS S/MKTS
OXFORDSHIRE CC,CHILDREN'S & EDUCATION,"	LOOKED AFTER NORTH",VEHICLE FUEL,25/03/2024,11467832683,40.18,LEIGH DELAMERE EAST MW
OXFORDSHIRE CC,CHILDREN'S & EDUCATION,DIDCOT MOVE-ON HOME,CLEANING MATERIALS,25/03/2024,11467832791,24.85,TESCO STORES 2413
OXFORDSHIRE CC,"COMMUNICATIONS, STRATEGY AND INSIGHT",STRATEGIC LEADERSHIP TEAM,PAYMENTS TO TRANSPORT OPERATORS,25/03/2024,11467832827,-92,WWW.GWR.COM
OXFORDSHIRE CC,CUSTOMER AND CULTURE,"MARKETING, COMMUNICATIONS & ENGAGEMENT","PUBLICITY, PROMOTIONS AND ADVERTISEMENT",25/03/2024,11467832221,500,GOOGLE ADS4896546035
OXFORDSHIRE CC,CHILDREN'S & EDUCATION,MANAGEMENT RECHARGES,HIRED AND CONTRACTED SERVICES,25/03/2024,11467830631,119.44,AMAZON  204-0837610-74
OXFORDSHIRE CC,CHILDREN'S & EDUCATION,ADMINISTRATION,PURCHASE OF IT EQUIPMENT,25/03/2024,11467830651,84.16,AMAZON  204-7912656-38
OXFORDSHIRE CC,CHILDREN'S & EDUCATION,CHILDREN IN CARE NON-STAFFING - NORTH,PAYMENTS TO TRANSPORT OPERATORS,25/03/2024,11467830899,41.67,TRAINLINE
OXFORDSHIRE CC,CHILDREN'S & EDUCATION,THAME E&A HOME,CATERING PROVISIONS,25/03/2024,11467830947,244.96,TESCO STORES 2038
OXFORDSHIRE CC,CUSTOMER AND CULTURE,HARD FM,PREMISES REPAIRS,25/03/2024,11467830787,107.35,B & Q 1062
OXFORDSHIRE CC,CHILDREN'S & EDUCATION,"	LEAVING CARE CITY 1",OTHER EXPENSES,25/03/2024,11467830835,13.93,AMZNMKTPLACE
OXFORDSHIRE CC,CHILDREN'S & EDUCATION,"	MALTFIELD HOUSE",CATERING EQUIPMENT,25/03/2024,11467832579,8.5,AMZNMKTPLACE
OXFORDSHIRE CC,CHILDREN'S & EDUCATION,FAMILY SOLUTIONS PLUS NON-STAFF � SOUTH,FURNITURE,25/03/2024,11467833067,-128.95,DUNELM SOFTFURNISHINGS
OXFORDSHIRE CC,CHILDREN'S & EDUCATION,"	DISABILITIES TEAM-C",CATERING PROVISIONS,25/03/2024,11467830875,50,TESCO GIFT CARD
OXFORDSHIRE CC,CHILDREN'S & EDUCATION,CHILDREN IN CARE NON-STAFFING - CENTRL 1,PAYMENT TO GOVERNMENT DEPARTMENTS,25/03/2024,11467830909,-4,BIRMINGHAM REGISTER
OXFORDSHIRE CC,CUSTOMER AND CULTURE,HARD FM,PREMISES REPAIRS,25/03/2024,11467830801,40.98,SCREWFIX DIR LTD
OXFORDSHIRE CC,CHILDREN'S & EDUCATION,"	LEAVING CARE CITY 1",OTHER EXPENSES,25/03/2024,11467830841,21.99,AMZNMKTPLACE
OXFORDSHIRE CC,CHILDREN'S & EDUCATION,"	MALTFIELD HOUSE",FURNITURE,25/03/2024,11467832551,122.5,IKEA LTD 461 READING E
OXFORDSHIRE CC,CHILDREN'S & EDUCATION,"	OCCG GRANT",DAY ACTIVITIES,25/03/2024,11467833081,20.5,PRET A MANGER
OXFORDSHIRE CC,CUSTOMER AND CULTURE,HARD FM,PREMISES REPAIRS,25/03/2024,11467830781,98.75,WICKES BANBURY
OXFORDSHIRE CC,CUSTOMER AND CULTURE,ABINGDON LIBRARY,"NEWSPAPERS, PERIODICALS AND PUBLICATIONS",25/03/2024,11467832329,64.99,GUARDIAN NEWS & MEDIA
OXFORDSHIRE CC,CHILDREN'S & EDUCATION,"	DISABILITIES TEAM-C",CATERING PROVISIONS,25/03/2024,11467830881,50,TESCO GIFT CARD
OXFORDSHIRE CC,CHILDREN'S & EDUCATION,"	MALTFIELD HOUSE",DOMESTIC AND CLEANING EQUIPMENT,25/03/2024,11467832583,23.94,AMAZON  206-5981150-17
OXFORDSHIRE CC,ADULTS,CSS BICESTER,MATERIALS,25/03/2024,11467830815,3,POUNDLAND - 2826
OXFORDSHIRE CC,CHILDREN'S & EDUCATION,"	LEAVING CARE CITY 1",OTHER EXPENSES,25/03/2024,11467830845,49.99,PAY.AMAZON.COM
OXFORDSHIRE CC,ADULTS,CSS WITNEY,MATERIALS,25/03/2024,11467832771,2.97,CARD FACTORY
OXFORDSHIRE CC,CHILDREN'S & EDUCATION,FAMILY SOLUTIONS PLUS NON-STAFF - NORTH,MATERIALS,25/03/2024,11467832811,18,AMAZON.CO.UK AL0V22G05
OXFORDSHIRE CC,CHILDREN'S & EDUCATION,FAMILY SOLUTIONS PLUS NON-STAFF - NORTH,CATERING PROVISIONS,25/03/2024,11467833163,52.65,TESCO STORES 2064
OXFORDSHIRE CC,ADULTS,CSS - OXFORD,DAY ACTIVITIES,25/03/2024,11467830751,107.92,CROCODILESOFTHEWORLD
OXFORDSHIRE CC,CHILDREN'S & EDUCATION,HOLIDAY ACTIVITIES & FOOD GRANT,CATERING PROVISIONS,25/03/2024,11467832373,23,AMAZON  203-7491615-77
OXFORDSHIRE CC,CHILDREN'S & EDUCATION,"	MALTFIELD HOUSE",DOMESTIC AND CLEANING EQUIPMENT,25/03/2024,11467832561,22.44,AMAZON  206-2254177-96
OXFORDSHIRE CC,CHILDREN'S & EDUCATION,"	MALTFIELD HOUSE",CATERING EQUIPMENT,25/03/2024,11467832589,19.98,AMZNMKTPLACE
OXFORDSHIRE CC,ADULTS,CSS WITNEY,MATERIALS,25/03/2024,11467832779,6,THEWORKS
OXFORDSHIRE CC,CHILDREN'S & EDUCATION,FAMILY SOLUTIONS PLUS NON-STAFF - NORTH,PAYMENTS TO TRANSPORT OPERATORS,25/03/2024,11467832817,17.82,TRAINLINE
OXFORDSHIRE CC,CUSTOMER AND CULTURE,LEARNING & ACCESS,EQUIPMENT,25/03/2024,11467833105,20.99,AMAZON  202-1425159-98
OXFORDSHIRE CC,CHILDREN'S & EDUCATION,EYNSHAM,CATERING PROVISIONS,25/03/2024,11467832955,3.58,SPAR EYNSHAM
OXFORDSHIRE CC,CUSTOMER AND CULTURE,CATERING MANAGEMENT SOFT FM,CATERING PROVISIONS,25/03/2024,11467833213,24.99,AMAZON  026-9320115-79
OXFORDSHIRE CC,CHILDREN'S & EDUCATION,"	OCCG GRANT",FURNITURE,25/03/2024,11467833277,182.93,WF  UK4219432534
OXFORDSHIRE CC,CHILDREN'S & EDUCATION,FAMILY SOLUTIONS PLUS NON-STAFF � SOUTH,DAY ACTIVITIES,25/03/2024,11467831989,6.5,CENTRE FOR SPORT
OXFORDSHIRE CC,CHILDREN'S & EDUCATION,CHILDREN IN CARE NON-STAFFING - NORTH,OTHER TRANSPORT ARRANGEMENTS,25/03/2024,11467830891,143,WWW.ANYVAN.COM
OXFORDSHIRE CC,CHILDREN'S & EDUCATION,"	LEAVING CARE NORTH",MATERIALS,25/03/2024,11467832615,8.99,AMAZON PRIME QB93Y2A65
OXFORDSHIRE CC,CHILDREN'S & EDUCATION,THAME E&A HOME,FURNITURE,25/03/2024,11467830955,50.5,IKEA LTD 185 MILTON KE
OXFORDSHIRE CC,ENVIRONMENT AND PLACE,P&S OPERATIONAL REV,IT SERVICES,25/03/2024,11467832693,75.53,DNH GO DADDY EUROPE GB
OXFORDSHIRE CC,CHILDREN'S & EDUCATION,WITNEY,CATERING,25/03/2024,11467832729,6.81,MCDONALDS
OXFORDSHIRE CC,CHILDREN'S & EDUCATION,FIELDWORK UASC,CATERING PROVISIONS,25/03/2024,11467832629,23.5,ASDA STORE 4442
OXFORDSHIRE CC,CUSTOMER AND CULTURE,LIBRARY COLLECTIONS,"BOOKS, DVDS AND CDS",25/03/2024,11467831165,743.03,OVERDRIVE DIST
OXFORDSHIRE CC,ADULTS,CSS - OXFORD,EQUIPMENT,25/03/2024,11467831903,469.97,TALMAGES
OXFORDSHIRE CC,ADULTS,CSS WALLINGFORD,"SUPPLIES, STATIONERY AND MATERIALS",25/03/2024,11467830587,63.46,AMAZON  026-2368217-62
OXFORDSHIRE CC,ADULTS,CSS WALLINGFORD,STATIONERY,25/03/2024,11467830607,13.99,AMAZON  026-7384933-21
OXFORDSHIRE CC,CHILDREN'S & EDUCATION,NTS UASC AGENCY,"SUPPLIES, STATIONERY AND MATERIALS",25/03/2024,11467832705,20.99,AMAZON  204-1423966-24
OXFORDSHIRE CC,SOCIAL AND COMMUNITY SERVICES,CO-PRODUCTION TEAM,MATERIALS,25/03/2024,11467832637,100,HIGH STREET VOUCHERS
OXFORDSHIRE CC,CUSTOMER AND CULTURE,OPERATIONS,MATERIALS,25/03/2024,11467831871,3.39,AMAZON  203-5976090-81
OXFORDSHIRE CC,ADULTS,CSS WALLINGFORD,"SUPPLIES, STATIONERY AND MATERIALS",25/03/2024,11467830593,6.95,AMAZON  026-2368217-62
OXFORDSHIRE CC,CHILDREN'S & EDUCATION,MANAGEMENT RECHARGES,HIRED AND CONTRACTED SERVICES,25/03/2024,11467830635,38.67,AMAZON  204-0837610-74
OXFORDSHIRE CC,CHILDREN'S & EDUCATION,MANAGEMENT RECHARGES,HIRED AND CONTRACTED SERVICES,25/03/2024,11467830653,32.25,AMAZON  204-9591511-39
OXFORDSHIRE CC,CHILDREN'S & EDUCATION,HOLIDAY ACTIVITIES & FOOD GRANT,CATERING PROVISIONS,25/03/2024,11467832395,9.95,AMAZON  203-8352495-37
OXFORDSHIRE CC,CHILDREN'S & EDUCATION,CHILDREN IN CARE NON-STAFFING - SOUTH,PAYMENT TO GOVERNMENT DEPARTMENTS,25/03/2024,11467832713,35,OXFORDSHIRE CC WEB1
OXFORDSHIRE CC,CHILDREN'S & EDUCATION,"	LEAVING CARE SOUTH",OTHER TRANSPORT ARRANGEMENTS,25/03/2024,11467831059,-61,OXFORDBUS.CO.UK
OXFORDSHIRE CC,ADULTS,CSS WALLINGFORD,"SUPPLIES, STATIONERY AND MATERIALS",25/03/2024,11467830597,23.62,AMAZON  026-2368217-62
OXFORDSHIRE CC,CHILDREN'S & EDUCATION,40 THE MOORS,CATERING PROVISIONS,25/03/2024,11467832195,31.36,TESCO STORES 2788
OXFORDSHIRE CC,CHILDREN'S & EDUCATION,HOLIDAY ACTIVITIES & FOOD GRANT,CATERING PROVISIONS,25/03/2024,11467832403,91.3,AMAZON  203-8767706-82
OXFORDSHIRE CC,CORPORATE CORE,,STATIONERY,25/03/2024,11467832599,67.49,LYRECO UK LTD
OXFORDSHIRE CC,PUBLIC HEALTH,CHILDREN IN CARE NON-STAFFING - NORTH,OTHER TRANSPORT ARRANGEMENTS,25/03/2024,11467831067,13.2,OCC OXFORD
OXFORDSHIRE CC,CHILDREN'S & EDUCATION,CHILDREN IN CARE NON-STAFFING - SOUTH,HIRED AND CONTRACTED SERVICES,25/03/2024,11467831123,27,EYNSHAM BARBERS
OXFORDSHIRE CC,CHILDREN'S & EDUCATION,"	RIVERSIDE CENTRE",CATERING PROVISIONS,25/03/2024,11467831197,9.55,SAINSBURYS S/MKTS
OXFORDSHIRE CC,CHILDREN'S & EDUCATION,MANAGEMENT RECHARGES,HIRED AND CONTRACTED SERVICES,25/03/2024,11467830641,32.45,AMAZON  204-4156033-65
OXFORDSHIRE CC,CHILDREN'S & EDUCATION,MANAGEMENT RECHARGES,HIRED AND CONTRACTED SERVICES,25/03/2024,11467830659,119.75,AMAZON  204-9591511-39
OXFORDSHIRE CC,CHILDREN'S & EDUCATION,CHILDREN IN CARE NON-STAFFING - SOUTH,CATERING PROVISIONS,25/03/2024,11467832721,100,ASDA STORES LTD
OXFORDSHIRE CC,CUSTOMER AND CULTURE,HARD FM,PREMISES REPAIRS,25/03/2024,11467830783,77,WICKES OXFORD
OXFORDSHIRE CC,CHILDREN'S & EDUCATION,40 THE MOORS,CATERING PROVISIONS,25/03/2024,11467832203,8.9,CO-OPERATIVE FOOD
OXFORDSHIRE CC,ADULTS,CSS WALLINGFORD,"SUPPLIES, STATIONERY AND MATERIALS",25/03/2024,11467830613,14.99,AMAZON  026-9510723-05
OXFORDSHIRE CC,CHILDREN'S & EDUCATION,MANAGEMENT RECHARGES,HIRED AND CONTRACTED SERVICES,25/03/2024,11467830645,34.16,AMAZON  204-9591511-39
OXFORDSHIRE CC,PUBLIC HEALTH,WITNEY,CATERING PROVISIONS,25/03/2024,11467830671,60.15,LIDL GB WITNEY
OXFORDSHIRE CC,ADULTS,CSS BICESTER,MATERIALS,25/03/2024,11467830819,7.99,TESCO SUBSCRIPTION
OXFORDSHIRE CC,CHILDREN'S & EDUCATION,"	MALTFIELD HOUSE",RESIDENTIAL ACTIVITIES,25/03/2024,11467832569,9.94,AMAZON  206-1793985-71
OXFORDSHIRE CC,CHILDREN'S & EDUCATION,"	LOOKED AFTER CITY 2",PAYMENTS TO TRANSPORT OPERATORS,25/03/2024,11467831709,14.93,TRAINLINE
OXFORDSHIRE CC,RESOURCES,EYNSHAM,OTHER TRANSPORT ARRANGEMENTS,25/03/2024,11467833647,25.5,STGCOACH/CTYLINK
OXFORDSHIRE CC,CHILDREN'S & EDUCATION,DIDCOT MOVE-ON HOME,CATERING PROVISIONS,25/03/2024,11467831293,3.55,SAINSBURYS S/MKTS
OXFORDSHIRE CC,CHILDREN'S & EDUCATION,THAME E&A HOME,CATERING PROVISIONS,25/03/2024,11467831671,11.45,WAITROSE 206
OXFORDSHIRE CC,CHILDREN'S & EDUCATION,THAME E&A HOME,CLOTHING AND UNIFORMS,25/03/2024,11467831331,74,PRIMARK 440
OXFORDSHIRE CC,CHILDREN'S & EDUCATION,UASC 16&17,CATERING PROVISIONS,25/03/2024,11467831367,2.39,TESCO STORES 2990
OXFORDSHIRE CC,CORPORATE CORE,"MARKETING, COMMUNICATIONS & ENGAGEMENT",LICENCES,25/03/2024,11467833383,167.44,ADOBE   ADOBE
OXFORDSHIRE CC,ADULTS,CSS WITNEY,MATERIALS,25/03/2024,11467832761,16.25,POUNDLAND LTD - 1912
OXFORDSHIRE CC,CHILDREN'S & EDUCATION,DIDCOT MOVE-ON HOME,CATERING PROVISIONS,25/03/2024,11467832795,86.8,TESCO STORES 2413
OXFORDSHIRE CC,CHILDREN'S & EDUCATION,THAME E&A HOME,FURNITURE,25/03/2024,11467830961,3.75,IKEA LTD 185 MILTON KE
OXFORDSHIRE CC,CUSTOMER AND CULTURE,CATERING MANAGEMENT SOFT FM,CATERING PROVISIONS,25/03/2024,11467833193,48.41,AMAZON  026-9215643-19
OXFORDSHIRE CC,CHILDREN'S & EDUCATION,THAME E&A HOME,CATERING PROVISIONS,25/03/2024,11467833243,31.15,SAINSBURYS S/MKTS
OXFORDSHIRE CC,ADULTS,CSS BICESTER,MATERIALS,25/03/2024,11467830725,1.25,POUNDLAND - 2826
OXFORDSHIRE CC,ADULTS,CSS - ABINGDON,CATERING PROVISIONS,25/03/2024,11467830763,17.3,AMAZON  206-1039025-74
OXFORDSHIRE CC,CHILDREN'S & EDUCATION,HOLIDAY ACTIVITIES & FOOD GRANT,CATERING PROVISIONS,25/03/2024,11467832389,9.95,AMAZON  203-7214441-20
OXFORDSHIRE CC,CUSTOMER AND CULTURE,THAME LIBRARY,"NEWSPAPERS, PERIODICALS AND PUBLICATIONS",25/03/2024,11467832433,5.8,SAINSBURYS S/MKTS
OXFORDSHIRE CC,SOCIAL AND COMMUNITY SERVICES,INFORMATION & ADVICE,STAFF AND VOLUNTEER TRAVEL EXPENSES,25/03/2024,11467832645,150,QUIKGIFT
OXFORDSHIRE CC,CHILDREN'S & EDUCATION,"	C&I BASE FITZHARRYS","BOOKS, DVDS AND CDS",25/03/2024,11467832871,18.42,AMAZON  205-7667846-50
OXFORDSHIRE CC,CHILDREN'S & EDUCATION,FAMILY SOLUTIONS PLUS NON-STAFF - NORTH,CATERING PROVISIONS,25/03/2024,11467833151,8,TESCO STORES 2064
OXFORDSHIRE CC,CUSTOMER AND CULTURE,CATERING MANAGEMENT SOFT FM,CATERING PROVISIONS,25/03/2024,11467833201,5.99,AMAZON  026-9215643-19
OXFORDSHIRE CC,CUSTOMER AND CULTURE,OPERATIONS,MATERIALS,25/03/2024,11467831881,4.25,AMAZON  203-9389988-77
OXFORDSHIRE CC,ENVIRONMENT AND PLACE,MAINTENANCE STAFF,CATERING PROVISIONS,25/03/2024,11467831917,21.92,AMAZON  202-3426289-57
OXFORDSHIRE CC,ADULTS,CSS WANTAGE,ENTERTAINMENT EXPENSES,25/03/2024,11467832051,10.95,HOLLYWOOD BOWL
OXFORDSHIRE CC,CUSTOMER AND CULTURE,THAME LIBRARY,"NEWSPAPERS, PERIODICALS AND PUBLICATIONS",25/03/2024,11467832441,7.5,SAINSBURYS S/MKTS
OXFORDSHIRE CC,CHILDREN'S & EDUCATION,EET SERVICE,CATERING PROVISIONS,25/03/2024,11467830971,27.99,AMAZON  202-5891183-58
OXFORDSHIRE CC,CHILDREN'S & EDUCATION,EYNSHAM,MATERIALS,25/03/2024,11467832947,30,AMZN DIGITAL
OXFORDSHIRE CC,CHILDREN'S & EDUCATION,UASC 16&17,OTHER TRANSPORT ARRANGEMENTS,25/03/2024,11467833271,15.75,WWW.THEKEY.CO.UK
OXFORDSHIRE CC,CUSTOMER AND CULTURE,OPERATIONS,MATERIALS,25/03/2024,11467831877,2.4,AMAZON  203-0169070-12
OXFORDSHIRE CC,CUSTOMER AND CULTURE,OPERATIONS,MATERIALS,25/03/2024,11467831887,20.13,AMAZON  203-0744023-54
OXFORDSHIRE CC,ADULTS,CSS WANTAGE,ENTERTAINMENT EXPENSES,25/03/2024,11467832063,10.95,HOLLYWOOD BOWL
OXFORDSHIRE CC,CUSTOMER AND CULTURE,CHINNOR LIBRARY,EQUIPMENT,25/03/2024,11467832449,19.99,AMAZON  204-5436951-24
OXFORDSHIRE CC,ADULTS,CSS - OXFORD,CATERING PROVISIONS,25/03/2024,11467830977,63.89,ALDI STORES 775-142
OXFORDSHIRE CC,CUSTOMER AND CULTURE,OPERATIONS,MATERIALS,25/03/2024,11467831893,51.61,AMAZON  203-0744023-54
OXFORDSHIRE CC,ADULTS,CSS WALLINGFORD,"SUPPLIES, STATIONERY AND MATERIALS",25/03/2024,11467830579,2.69,AMAZON  026-7987403-60
OXFORDSHIRE CC,ADULTS,CSS WALLINGFORD,"SUPPLIES, STATIONERY AND MATERIALS",25/03/2024,11467830603,26.85,AMAZON  026-7178616-93
OXFORDSHIRE CC,CHILDREN'S & EDUCATION,"	SEN/ICT EQUIPMENT",STATIONERY,25/03/2024,11467833561,23.39,AMAZON.CO.UK 0R2PJ0HN5
OXFORDSHIRE CC,CHILDREN'S & EDUCATION,UASC 16&17,CATERING PROVISIONS,25/03/2024,11467831377,3.49,HOME BARGAINS
OXFORDSHIRE CC,CORPORATE CORE,"MARKETING, COMMUNICATIONS & ENGAGEMENT","PUBLICITY, PROMOTIONS AND ADVERTISEMENT",25/03/2024,11467833359,42.52,SNAP INC SNAP SNAP ADS
OXFORDSHIRE CC,CORPORATE CORE,"MARKETING, COMMUNICATIONS & ENGAGEMENT","PUBLICITY, PROMOTIONS AND ADVERTISEMENT",25/03/2024,11467833395,51.59,SNAP INC SNAP SNAP ADS
OXFORDSHIRE CC,CHILDREN'S & EDUCATION,"	LOOKED AFTER CITY 2",OTHER TRANSPORT ARRANGEMENTS,25/03/2024,11467831715,5.5,TFL TRAVEL CH
OXFORDSHIRE CC,CHILDREN'S & EDUCATION,UASC 16&17,RESIDENTIAL ACTIVITIES,25/03/2024,11467831383,22.99,THE GYM GROUP
OXFORDSHIRE CC,CORPORATE CORE,"MARKETING, COMMUNICATIONS & ENGAGEMENT","PUBLICITY, PROMOTIONS AND ADVERTISEMENT",25/03/2024,11467833367,500,FACEBK  QWQMX389Z2
OXFORDSHIRE CC,CHILDREN'S & EDUCATION,UASC 16&17,CATERING PROVISIONS,25/03/2024,11467831363,3,EASTERN
OXFORDSHIRE CC,CUSTOMER AND CULTURE,BICESTER LIBRARY,"NEWSPAPERS, PERIODICALS AND PUBLICATIONS",25/03/2024,11467831393,181.1,BICESTER LOCAL
OXFORDSHIRE CC,CORPORATE CORE,"MARKETING, COMMUNICATIONS & ENGAGEMENT","PUBLICITY, PROMOTIONS AND ADVERTISEMENT",25/03/2024,11467833375,50.75,SNAP INC SNAP SNAP ADS
OXFORDSHIRE CC,CUSTOMER AND CULTURE,HARD FM,PREMISES REPAIRS,25/03/2024,11467831587,338.4,HEATING CONTROLS LTD
OXFORDSHIRE CC,CUSTOMER AND CULTURE,HARD FM,PREMISES REPAIRS,25/03/2024,11467831597,124.85,EBAY O 17-11346-66208
OXFORDSHIRE CC,CHILDREN'S & EDUCATION,THAME E&A HOME,VEHICLES AND PLANT - REPAIRS AND MAIN,25/03/2024,11467831661,7.49,AUTOPARTS
OXFORDSHIRE CC,CHILDREN'S & EDUCATION,WITNEY,CATERING PROVISIONS,25/03/2024,11467831417,46.41,SAINSBURYS S/MKTS
OXFORDSHIRE CC,CHILDREN'S & EDUCATION,"	LEAVING CARE CITY 2",PAYMENTS TO TRANSPORT OPERATORS,25/03/2024,11467831555,106.58,BKG HOTEL AT BOOKING.C
OXFORDSHIRE CC,CUSTOMER AND CULTURE,SCHOOLS FM CATERING AREA 2,CATERING PROVISIONS,25/03/2024,11467831613,44.94,BOOKER LTD - 38584104
OXFORDSHIRE CC,CHILDREN'S & EDUCATION,"	LOOKED AFTER CITY 2",OTHER TRANSPORT ARRANGEMENTS,25/03/2024,11467831691,2,OXFORD BUS COMPANY
OXFORDSHIRE CC,CHILDREN'S & EDUCATION,THAME E&A HOME,CATERING PROVISIONS,25/03/2024,11467831573,28.5,TESCO STORES 2994
OXFORDSHIRE CC,CUSTOMER AND CULTURE,KNIGHTS COURT,CATERING PROVISIONS,25/03/2024,11467831631,-31.98,AMAZON  205-2237394-64
OXFORDSHIRE CC,RESOURCES,EYNSHAM,OTHER TRANSPORT ARRANGEMENTS,25/03/2024,11467833635,22,STGCOACH/CTYLINK
OXFORDSHIRE CC,ADULTS,ASC INCOME TEAM,PAYMENT TO GOVERNMENT DEPARTMENTS,25/03/2024,11467831481,11,OXFORDSHIRE CC WEB1
OXFORDSHIRE CC,CHILDREN'S & EDUCATION,"	FAMILY & PLACEMENT",OTHER TRAINING COURSES AND QUALIFICATION,25/03/2024,11467833463,137.7,PEARSON EDUCATION LTD.
OXFORDSHIRE CC,CHILDREN'S & EDUCATION,PAUSE PROGRAMME,CATERING,25/03/2024,11467831501,17.49,OXFORD CAFE AND GRILL
OXFORDSHIRE CC,CHILDREN'S & EDUCATION,THAME E&A HOME,MATERIALS,25/03/2024,11467833485,10.88,AMAZON.CO.UK JO5GB8TV5
OXFORDSHIRE CC,CHILDREN'S & EDUCATION,"	LOOKED AFTER CITY 2",OTHER TRANSPORT ARRANGEMENTS,25/03/2024,11467831681,2,OXFORD BUS COMPANY
OXFORDSHIRE CC,CUSTOMER AND CULTURE,CH REFURB PROJECT,EQUIPMENT,25/03/2024,11467831723,19.99,AMAZON  026-4124099-22
OXFORDSHIRE CC,CHILDREN'S & EDUCATION,"	LOOKED AFTER CITY 2",HIRE OF ACCOMMODATION AND FACILITIES,25/03/2024,11467831703,54,PREMIER INN
OXFORDSHIRE CC,CUSTOMER AND CULTURE,CH REFURB PROJECT,CONTRACT CLEANING,25/03/2024,11467831729,16.59,AMAZON  026-1459193-77
OXFORDSHIRE CC,CUSTOMER AND CULTURE,HARD FM,PREMISES REPAIRS,25/03/2024,11467831463,6,KENNINGTON FLOORING LT
OXFORDSHIRE CC,CHILDREN'S & EDUCATION,"	AAC EQUIPMENT",PURCHASE OF IT EQUIPMENT,22/03/2024,11459640213,75.7,AMAZON  026-9152227-56
OXFORDSHIRE CC,ADULTS,CSS WANTAGE,CATERING PROVISIONS,22/03/2024,11459640245,30.47,HOME BARGAINS
OXFORDSHIRE CC,ENVIRONMENT AND PLACE,NAT TRAILS GENERAL,PAYMENT TO GOVERNMENT DEPARTMENTS,22/03/2024,11459640309,6,LAND REGISTRY ECOM CCC
OXFORDSHIRE CC,CHILDREN'S & EDUCATION,PAUSE PROGRAMME,OTHER TRANSPORT ARRANGEMENTS,22/03/2024,11459638675,7,HGH CAR PARK
OXFORDSHIRE CC,PUBLIC HEALTH,WITNEY,CATERING PROVISIONS,22/03/2024,11459637907,15.96,SAINSBURYS S/MKTS
OXFORDSHIRE CC,ADULTS,CSS WITNEY,CATERING PROVISIONS,22/03/2024,11459639751,17.75,CO-OP GROUP 070582
OXFORDSHIRE CC,CUSTOMER AND CULTURE,SAMUELSON HOUSE,CATERING PROVISIONS,22/03/2024,11459638445,42.84,MILK AND MORE (RECUR
OXFORDSHIRE CC,CHILDREN'S & EDUCATION,"	MALTFIELD HOUSE","SUPPLIES, STATIONERY AND MATERIALS",22/03/2024,11459638493,5.99,AMAZON  205-6247371-45
OXFORDSHIRE CC,CHILDREN'S & EDUCATION,"	SEN/ICT EQUIPMENT",IT SOFTWARE,22/03/2024,11459640217,175,WWW.CRICKSOFT.COM
OXFORDSHIRE CC,ADULTS,CSS - OXFORD,CATERING PROVISIONS,22/03/2024,11459638573,46.19,ALDI STORES 775-142
OXFORDSHIRE CC,CUSTOMER AND CULTURE,CH REFURB PROJECT,EQUIPMENT,22/03/2024,11459638897,21.99,AMAZON  026-9578538-44
OXFORDSHIRE CC,CUSTOMER AND CULTURE,BUSINESS INTELLECTUAL PROPERTY CENTRE,CATERING PROVISIONS,22/03/2024,11459638941,79.51,SAINSBURYS.CO.UK
OXFORDSHIRE CC,PUBLIC HEALTH,WITNEY,CATERING PROVISIONS,22/03/2024,11459637915,4.59,SAINSBURYS S/MKTS
OXFORDSHIRE CC,ADULTS,CSS - OXFORD,DAY ACTIVITIES,22/03/2024,11459637957,5.95,WWW.BETTER.ORG.UK
OXFORDSHIRE CC,ENVIRONMENT AND PLACE,CLIMATE ACTION STAFFING,HIRE OF ACCOMMODATION AND FACILITIES,22/03/2024,11459639727,122.99,PREMIER INN
OXFORDSHIRE CC,CUSTOMER AND CULTURE,CENTRAL LIBRARY,EQUIPMENT,22/03/2024,11459639315,7.6,EXTRA
OXFORDSHIRE CC,CHILDREN'S & EDUCATION,HOLIDAY ACTIVITIES & FOOD GRANT,CATERING PROVISIONS,22/03/2024,11459639353,22.99,AMAZON  203-7254744-71
OXFORDSHIRE CC,ADULTS,CSS - BANBURY,CATERING PROVISIONS,22/03/2024,11459639541,13.5,AMAZON  204-6532012-49
OXFORDSHIRE CC,CHILDREN'S & EDUCATION,CHILDREN IN CARE NON-STAFFING - NORTH,PAYMENT TO GOVERNMENT DEPARTMENTS,22/03/2024,11459639663,11,OXFORDSHIRE CC WEB1
OXFORDSHIRE CC,CHILDREN'S & EDUCATION,"	LEAVING CARE CITY 2",PAYMENTS TO TRANSPORT OPERATORS,22/03/2024,11459639675,75.4,TRAINLINE
OXFORDSHIRE CC,ADULTS,CSS BICESTER,CATERING PROVISIONS,22/03/2024,11459638033,10.1,SAINSBURYS S/MKTS
OXFORDSHIRE CC,CHILDREN'S & EDUCATION,"	LEAVING CARE CITY 2",CLOTHING AND UNIFORMS,22/03/2024,11459640105,48.88,WWW.ALENDS.CO.UK
OXFORDSHIRE CC,ENVIRONMENT AND PLACE,FLEET OPERATIONS,CATERING PROVISIONS,22/03/2024,11459638477,20,MILK AND MORE (RECUR
OXFORDSHIRE CC,CHILDREN'S & EDUCATION,PAUSE PROGRAMME,CATERING PROVISIONS,22/03/2024,11459638685,3.23,WM MORRISONS STORE
OXFORDSHIRE CC,CUSTOMER AND CULTURE,REACTIVE MAINTENANCE,VEHICLES AND PLANT - REPAIRS AND MAIN,22/03/2024,11459638765,768,SP MK PLYLINING LTD
OXFORDSHIRE CC,CUSTOMER AND CULTURE,CH REFURB PROJECT,EQUIPMENT,22/03/2024,11459638883,22.95,AMAZON  026-2387459-96
OXFORDSHIRE CC,ADULTS,CSS WITNEY,CATERING PROVISIONS,22/03/2024,11459639169,39.98,AMAZON  204-4963407-51
OXFORDSHIRE CC,CUSTOMER AND CULTURE,COUNTY HALL,STATIONERY,22/03/2024,11459639213,15.93,RYMAN 1172
OXFORDSHIRE CC,ENVIRONMENT AND PLACE,MAINTENANCE STAFF,CATERING PROVISIONS,22/03/2024,11459639037,17.98,AMAZON  202-4557553-48
OXFORDSHIRE CC,CUSTOMER AND CULTURE,THAME LIBRARY,EQUIPMENT,22/03/2024,11459639415,42.99,AMAZON  204-9481720-44
OXFORDSHIRE CC,CHILDREN'S & EDUCATION,"	MALTFIELD HOUSE",MATERIALS,22/03/2024,11459639489,228.97,COSTCO WHOLESALE #114
OXFORDSHIRE CC,CORPORATE CORE,,STATIONERY,22/03/2024,11459639517,45.91,LYRECO UK LTD
OXFORDSHIRE CC,CUSTOMER AND CULTURE,HARD FM,PREMISES REPAIRS,22/03/2024,11459637987,49.99,MKM BUILDING SUPPLIES
OXFORDSHIRE CC,CORPORATE CORE,"MARKETING, COMMUNICATIONS & ENGAGEMENT",PURCHASE OF IT EQUIPMENT,22/03/2024,11459640081,66,DALTON MAAG LTD
OXFORDSHIRE CC,CHILDREN'S & EDUCATION,PAUSE PROGRAMME,CATERING,22/03/2024,11459638661,2,MCDONALDS
OXFORDSHIRE CC,CHILDREN'S & EDUCATION,PAUSE PROGRAMME,CATERING,22/03/2024,11459638661,4.99,MCDONALDS
OXFORDSHIRE CC,CHILDREN'S & EDUCATION,"	LOOKED AFTER CITY 2",OTHER TRANSPORT ARRANGEMENTS,22/03/2024,11459638831,2,OXFORD BUS COMPANY
OXFORDSHIRE CC,CUSTOMER AND CULTURE,CH REFURB PROJECT,EQUIPMENT,22/03/2024,11459638889,2.92,AMAZON  026-9578538-44
OXFORDSHIRE CC,CUSTOMER AND CULTURE,THAME LIBRARY,"NEWSPAPERS, PERIODICALS AND PUBLICATIONS",22/03/2024,11459639421,5.8,SAINSBURYS S/MKTS
OXFORDSHIRE CC,ADULTS,CSS - BANBURY,CATERING PROVISIONS,22/03/2024,11459639547,47.98,AMAZON  205-0401128-17
OXFORDSHIRE CC,CHILDREN'S & EDUCATION,WITNEY,MATERIALS,22/03/2024,11459639691,4.58,CARD FACTORY
OXFORDSHIRE CC,CHILDREN'S & EDUCATION,"	LEAVING CARE CITY 1",OTHER EXPENSES,22/03/2024,11459638055,79.99,AMAZON  202-5146135-77
OXFORDSHIRE CC,CHILDREN'S & EDUCATION,PAUSE PROGRAMME,CATERING PROVISIONS,22/03/2024,11459638669,18.44,ICELAND
OXFORDSHIRE CC,ADULTS,CSS WITNEY,CATERING PROVISIONS,22/03/2024,11459639175,71.4,MILK AND MORE (RECUR
OXFORDSHIRE CC,CUSTOMER AND CULTURE,COUNTY HALL,MATERIALS,22/03/2024,11459639217,30.9,THE GARDEN
OXFORDSHIRE CC,CHILDREN'S & EDUCATION,"	MALTFIELD HOUSE",RESIDENTIAL ACTIVITIES,22/03/2024,11459639493,4.96,AMAZON  206-4564910-54
OXFORDSHIRE CC,ADULTS,CSS - BANBURY,CATERING PROVISIONS,22/03/2024,11459639527,39.14,AMAZON  204-6532012-49
OXFORDSHIRE CC,CHILDREN'S & EDUCATION,ATV ADOPTION WOODLEY,CATERING,22/03/2024,11459637889,213,SQ  YELLOW SUBMARINE
OXFORDSHIRE CC,CHILDREN'S & EDUCATION,THAME E&A HOME,CATERING PROVISIONS,22/03/2024,11459638601,9.52,AL RIZQ SUPERMARKET LT
OXFORDSHIRE CC,CHILDREN'S & EDUCATION,PAUSE PROGRAMME,CATERING,22/03/2024,11459640399,8.7,COSTA TEMPLARS
OXFORDSHIRE CC,CUSTOMER AND CULTURE,CH REFURB PROJECT,MATERIALS,22/03/2024,11459638905,31.2,HOBBYCRAFT TRADING LIM
OXFORDSHIRE CC,CHILDREN'S & EDUCATION,"	MALTFIELD HOUSE",RESIDENTIAL ACTIVITIES,22/03/2024,11459639501,12.44,AMAZON  206-9527242-02
OXFORDSHIRE CC,ADULTS,CSS - BANBURY,CATERING PROVISIONS,22/03/2024,11459639535,12,TESCO STORES 2064
OXFORDSHIRE CC,CUSTOMER AND CULTURE,SCHOOLS FM CATERING AREA 1,CATERING PROVISIONS,22/03/2024,11459639717,35.4,TESCO STORES 4480
OXFORDSHIRE CC,CUSTOMER AND CULTURE,HOLTON SITE,CATERING PROVISIONS,22/03/2024,11459638193,20,MILK AND MORE (RECUR
OXFORDSHIRE CC,ADULTS,CSS - OXFORD,CATERING PROVISIONS,22/03/2024,11459638285,3.96,ALDI STORES 775-142
OXFORDSHIRE CC,CHILDREN'S & EDUCATION,40 THE MOORS,CATERING PROVISIONS,22/03/2024,11459638361,7.39,TESCO STORES 2788
OXFORDSHIRE CC,CHILDREN'S & EDUCATION,EYNSHAM,CATERING PROVISIONS,22/03/2024,11459638391,88.83,OXFORD PEARTREE KFC
OXFORDSHIRE CC,CHILDREN'S & EDUCATION,"	DIRECTOR'S OFFICE",CATERING PROVISIONS,22/03/2024,11459638727,1.2,SAINSBURY'S S/MKT
OXFORDSHIRE CC,CHILDREN'S & EDUCATION,FSP NON-STAFFING - CENTRAL,PAYMENTS TO TRANSPORT OPERATORS,22/03/2024,11459639773,4.2,WWW.GWR.COM
OXFORDSHIRE CC,CHILDREN'S & EDUCATION,THAME E&A HOME,DRUGS AND MEDICAL SUPPLIES,22/03/2024,11459638101,4.5,"BOOTS,AYLESBURY"
OXFORDSHIRE CC,CHILDREN'S & EDUCATION,FSP NON-STAFFING - CENTRAL,OTHER TRANSPORT ARRANGEMENTS,22/03/2024,11459639911,125,OXFORDBUS.CO.UK
OXFORDSHIRE CC,CHILDREN'S & EDUCATION,FAMILY SOLUTIONS PLUS NON-STAFF - NORTH,PAYMENTS TO TRANSPORT OPERATORS,22/03/2024,11459639961,19.2,WWW.GWR.COM
OXFORDSHIRE CC,CHILDREN'S & EDUCATION,REACTIVE MAINTENANCE,HARDWARE AND CROCKERY,22/03/2024,11459640017,45.6,WICKES BICESTER
OXFORDSHIRE CC,CUSTOMER AND CULTURE,TRANSPORT GENERAL,PAYMENTS TO TRANSPORT OPERATORS,22/03/2024,11459638185,"1,000.00",ENTERPRISE RENT A CAR
OXFORDSHIRE CC,ADULTS,CSS - OXFORD,CATERING PROVISIONS,22/03/2024,11459638293,2.25,ALDI STORES 775-142
OXFORDSHIRE CC,ADULTS,ASC INCOME TEAM,PAYMENT TO GOVERNMENT DEPARTMENTS,22/03/2024,11459638641,1.5,FIND A WILL
OXFORDSHIRE CC,CUSTOMER AND CULTURE,LIBRARY COLLECTIONS,"BOOKS, DVDS AND CDS",22/03/2024,11459638159,"1,860.05",BLACKWELL'S  OXFORD BR
OXFORDSHIRE CC,ADULTS,ASC INCOME TEAM,PAYMENT TO GOVERNMENT DEPARTMENTS,22/03/2024,11459638333,11,SWINDON BC
OXFORDSHIRE CC,CHILDREN'S & EDUCATION,"	LEAVING CARE NORTH",CATERING,22/03/2024,11459639603,9.68,MCDONALDS
OXFORDSHIRE CC,CHILDREN'S & EDUCATION,"	LOOKED AFTER NORTH",VEHICLE FUEL,22/03/2024,11459639637,44.41,QUEENSHEAD SERVICE STA
OXFORDSHIRE CC,CHILDREN'S & EDUCATION,WITNEY,CATERING PROVISIONS,22/03/2024,11459639695,8.5,SAINSBURYS S/MKTS
OXFORDSHIRE CC,CHILDREN'S & EDUCATION,"	LEAVING CARE CITY 1",OTHER EXPENSES,22/03/2024,11459638069,14.39,AMZNMKTPLACE
OXFORDSHIRE CC,CHILDREN'S & EDUCATION,THAME E&A HOME,CATERING,22/03/2024,11459638557,6.65,THE SHAKE LAB OXFORD
OXFORDSHIRE CC,ENVIRONMENT AND PLACE,NAT TRAILS GENERAL,CATERING PROVISIONS,22/03/2024,11459638865,3.5,CO OPERATIVE FOOD
OXFORDSHIRE CC,CUSTOMER AND CULTURE,THAME LIBRARY,EQUIPMENT,22/03/2024,11459639407,16.48,ROBERT DYAS THAME
OXFORDSHIRE CC,CHILDREN'S & EDUCATION,"	LEAVING CARE CITY 2",HIRE OF ACCOMMODATION AND FACILITIES,22/03/2024,11459639671,47.01,TRAVELODGE
OXFORDSHIRE CC,CHILDREN'S & EDUCATION,FAMILY SOLUTIONS PLUS NON-STAFF - NORTH,PAYMENTS TO TRANSPORT OPERATORS,22/03/2024,11459639707,24.65,TRAINLINE
OXFORDSHIRE CC,ADULTS,CSS BICESTER,CATERING PROVISIONS,22/03/2024,11459638027,7.5,B&M 025 - BICESTER
OXFORDSHIRE CC,ADULTS,MALTFIELD HOUSE,CATERING PROVISIONS,22/03/2024,11459640049,35.36,SAINSBURYS S/MKTS
OXFORDSHIRE CC,CHILDREN'S & EDUCATION,NRPF & HOMELESSNESS,CATERING,22/03/2024,11459638821,69.19,DOMINO S PIZZA
OXFORDSHIRE CC,ENVIRONMENT AND PLACE,OXFORD LOCALITY,TRAINING RELATED EXPENDITURE,22/03/2024,11459639235,298.8,WATERFRONT CONFERENCE
OXFORDSHIRE CC,CUSTOMER AND CULTURE,BUSINESS INTELLECTUAL PROPERTY CENTRE,STATIONERY,22/03/2024,11459638935,10.47,RYMAN 1172
OXFORDSHIRE CC,CHILDREN'S & EDUCATION,"	OCCG GRANT",PURCHASE OF IT EQUIPMENT,22/03/2024,11459639109,55.99,AMAZON  203-3607100-84
OXFORDSHIRE CC,CHILDREN'S & EDUCATION,"	MALTFIELD HOUSE",CATERING PROVISIONS,22/03/2024,11459639481,21.78,AMAZON  206-9527242-02
OXFORDSHIRE CC,CORPORATE CORE,,STATIONERY,22/03/2024,11459639507,20.83,LYRECO UK LTD
OXFORDSHIRE CC,PUBLIC HEALTH,LEAVING CARE CITY 2,PAYMENTS TO TRANSPORT OPERATORS,22/03/2024,11459637871,-52.4,TRAINLINE
OXFORDSHIRE CC,PUBLIC HEALTH,CHILDREN IN CARE NON-STAFFING - NORTH,PAYMENT TO GOVERNMENT DEPARTMENTS,22/03/2024,11459637923,34,DVLA DRIVER ONLINE
OXFORDSHIRE CC,CHILDREN'S & EDUCATION,"	C&I BASE FITZHARRYS","BOOKS, DVDS AND CDS",22/03/2024,11459639853,9.98,AMAZON  205-0122483-65
OXFORDSHIRE CC,CUSTOMER AND CULTURE,HARD FM,PREMISES REPAIRS,22/03/2024,11459637993,201,WICKES OXFORD
OXFORDSHIRE CC,CHILDREN'S & EDUCATION,CHILDREN IN CARE NON-STAFFING - CENTRL 1,PAYMENT TO GOVERNMENT DEPARTMENTS,22/03/2024,11459638139,11,LIVERPOOL CITY COUNCIL
OXFORDSHIRE CC,CUSTOMER AND CULTURE,MUSEUMS COLLECTIONS,CATERING PROVISIONS,22/03/2024,11459639925,4.62,MILK AND MORE (RECUR
OXFORDSHIRE CC,CUSTOMER AND CULTURE,MUSIC UNALLOCABLE,PAYMENTS TO TRANSPORT OPERATORS,22/03/2024,11459639979,32.9,TRAINLINE
OXFORDSHIRE CC,ADULTS,FIELDWORK UASC,OTHER TRANSPORT ARRANGEMENTS,22/03/2024,11459638583,47.37,TRAINLINE
OXFORDSHIRE CC,CUSTOMER AND CULTURE,HARD FM,PREMISES REPAIRS,22/03/2024,11459637973,10.99,WWW.SCREWFIX.COM
OXFORDSHIRE CC,CHILDREN'S & EDUCATION,THAME E&A HOME,CATERING PROVISIONS,22/03/2024,11459638109,9.38,SAINSBURYS S/MKTS
OXFORDSHIRE CC,CHILDREN'S & EDUCATION,CHILDREN IN CARE NON-STAFFING - CENTRL 2,PAYMENT TO GOVERNMENT DEPARTMENTS,22/03/2024,11459638145,58.5,HM PASSPORT OFFICE
OXFORDSHIRE CC,CHILDREN'S & EDUCATION,"	MALTFIELD HOUSE","SUPPLIES, STATIONERY AND MATERIALS",22/03/2024,11459638503,20.37,AMAZON  205-6247371-45
OXFORDSHIRE CC,CHILDREN'S & EDUCATION,"	SEN/ICT EQUIPMENT",PURCHASE OF IT EQUIPMENT,22/03/2024,11459640227,34.19,AMAZON  026-1150252-09
OXFORDSHIRE CC,ADULTS,CSS - BANBURY,VEHICLE FUEL,22/03/2024,11459639993,86.26,SAINSBURYS PETROL
OXFORDSHIRE CC,CORPORATE CORE,"MARKETING, COMMUNICATIONS & ENGAGEMENT","PUBLICITY, PROMOTIONS AND ADVERTISEMENT",22/03/2024,11459640091,500,FACEBK  P4FAV249Z2
OXFORDSHIRE CC,CUSTOMER AND CULTURE,COMMUNITY PARTNERSHIP TEAM,CATERING PROVISIONS,22/03/2024,11459638265,2.9,CO-OPERATIVE FOOD
OXFORDSHIRE CC,CUSTOMER AND CULTURE,COUNTY HALL,FURNITURE,22/03/2024,11459640139,7.25,SAINSBURYS S/MKTS
OXFORDSHIRE CC,ENVIRONMENT AND PLACE,FLEET OPERATIONS,PAYMENT TO GOVERNMENT DEPARTMENTS,22/03/2024,11459638469,60,OXFORDSHIRE CC (M)
OXFORDSHIRE CC,CHILDREN'S & EDUCATION,DIDCOT MOVE-ON HOME,"SUPPLIES, STATIONERY AND MATERIALS",22/03/2024,11459638509,2.25,SAINSBURYS S/MKTS
OXFORDSHIRE CC,CHILDREN'S & EDUCATION,"	AAC EQUIPMENT",PURCHASE OF IT EQUIPMENT,22/03/2024,11459640201,61.72,AMAZON  026-9152227-56
OXFORDSHIRE CC,CHILDREN'S & EDUCATION,"	SEN/ICT EQUIPMENT",PURCHASE OF IT EQUIPMENT,22/03/2024,11459640237,26.59,AMAZON  026-3354188-49
OXFORDSHIRE CC,CHILDREN'S & EDUCATION,DIDCOT MOVE-ON HOME,CATERING PROVISIONS,22/03/2024,11459638515,7.49,SAINSBURYS S/MKTS
OXFORDSHIRE CC,CHILDREN'S & EDUCATION,THAME E&A HOME,OTHER TRANSPORT ARRANGEMENTS,22/03/2024,11459638551,4.8,WESTGATE OXFORD CAR PA
OXFORDSHIRE CC,CHILDREN'S & EDUCATION,"	LOOKED AFTER CITY 2",OTHER TRANSPORT ARRANGEMENTS,22/03/2024,11459638847,2,OXFORD BUS COMPANY
OXFORDSHIRE CC,CHILDREN'S & EDUCATION,EYNSHAM,CATERING PROVISIONS,22/03/2024,11459639803,110.42,TESCO STORES 2008
OXFORDSHIRE CC,CHILDREN'S & EDUCATION,CHILDREN IN CARE NON-STAFFING - CENTRL 1,PAYMENT TO GOVERNMENT DEPARTMENTS,22/03/2024,11459638123,11,WWW.READING.GOV
OXFORDSHIRE CC,CHILDREN'S & EDUCATION,FAMILY SOLUTIONS PLUS NON-STAFF - NORTH,PAYMENT TO GOVERNMENT DEPARTMENTS,22/03/2024,11459639951,22,OXFORDSHIRE CC WEB1
OXFORDSHIRE CC,ADULTS,CSS - ABINGDON,ENTERTAINMENT EXPENSES,22/03/2024,11459640001,212.5,GIFFORDSCIRC  GIFFORDS
OXFORDSHIRE CC,CHILDREN'S & EDUCATION,"	LEAVING CARE SOUTH",OTHER TRANSPORT ARRANGEMENTS,22/03/2024,11459638381,61,OXFORDBUS.CO.UK
OXFORDSHIRE CC,CORPORATE CORE,"MARKETING, COMMUNICATIONS & ENGAGEMENT","PUBLICITY, PROMOTIONS AND ADVERTISEMENT",22/03/2024,11459640099,44.71,SNAP INC SNAP SNAP ADS
OXFORDSHIRE CC,CHILDREN'S & EDUCATION,"	LOOKED AFTER NORTH",CATERING,22/03/2024,11459638427,8.99,STARBUCKS BICESTER
OXFORDSHIRE CC,ADULTS,CSS - ABINGDON,CATERING PROVISIONS,22/03/2024,11459640363,29.99,AMAZON  204-5456090-96
OXFORDSHIRE CC,CHILDREN'S & EDUCATION,"	LEAVING CARE CITY 2",CATERING,22/03/2024,11459638715,7.7,OXFORD CAFE AND GRILL
OXFORDSHIRE CC,CUSTOMER AND CULTURE,CH REFURB PROJECT,EQUIPMENT,22/03/2024,11459638901,4.29,AMAZON  026-9578538-44
OXFORDSHIRE CC,RESOURCES,SCHOOLS FM CATERING AREA 2,CATERING PROVISIONS,22/03/2024,11459639569,6,TESCO STORES 2008
OXFORDSHIRE CC,CHILDREN'S & EDUCATION,NTS UASC AGENCY,CLEANING MATERIALS,22/03/2024,11459639657,23.74,AMAZON  204-4140551-63
OXFORDSHIRE CC,CHILDREN'S & EDUCATION,CHILDREN IN CARE NON-STAFFING - NORTH,HIRE OF ACCOMMODATION AND FACILITIES,22/03/2024,11459638007,75,THE GEORGE HOTEL
OXFORDSHIRE CC,CHILDREN'S & EDUCATION,CHILDREN IN CARE NON-STAFFING - CENTRL 1,PAYMENTS TO TRANSPORT OPERATORS,22/03/2024,11459638131,25.36,TRAINLINE
OXFORDSHIRE CC,CHILDREN'S & EDUCATION,"	OCCG GRANT",OTHER EXPENSES,21/03/2024,11453534123,360,EB  SUPPORTED ACCOMMOD
OXFORDSHIRE CC,ADULTS,CSS WITNEY,ENTERTAINMENT EXPENSES,21/03/2024,11453533901,18,WWW.BETTER.ORG.UK
OXFORDSHIRE CC,RESOURCES,MOTOR FLEET,MOTOR IF FEES,21/03/2024,11453534495,10,WWW.MIB.ORG.UK
OXFORDSHIRE CC,CHILDREN'S & EDUCATION,HOLIDAY ACTIVITIES & FOOD GRANT,CATERING PROVISIONS,21/03/2024,11453534539,3.62,AMAZON  203-1061738-63
OXFORDSHIRE CC,CHILDREN'S & EDUCATION,"	LOOKED AFTER CITY 2",PAYMENT TO GOVERNMENT DEPARTMENTS,21/03/2024,11453534243,87.5,HM PASSPORT OFFICE
OXFORDSHIRE CC,ADULTS,CSS WANTAGE,CATERING PROVISIONS,21/03/2024,11453534287,-5.85,ASDA GROCERIES ONLINE
OXFORDSHIRE CC,CHILDREN'S & EDUCATION,HOLIDAY ACTIVITIES & FOOD GRANT,CATERING PROVISIONS,21/03/2024,11453534671,59.95,AMAZON  203-0720813-25
OXFORDSHIRE CC,CHILDREN'S & EDUCATION,HOLIDAY ACTIVITIES & FOOD GRANT,CATERING PROVISIONS,21/03/2024,11453534683,47.8,AMAZON  203-1770348-92
OXFORDSHIRE CC,CHILDREN'S & EDUCATION,HOLIDAY ACTIVITIES & FOOD GRANT,CATERING PROVISIONS,21/03/2024,11453534741,134.99,AMAZON  203-4449321-92
OXFORDSHIRE CC,CHILDREN'S & EDUCATION,HOLIDAY ACTIVITIES & FOOD GRANT,CATERING PROVISIONS,21/03/2024,11453534775,19.99,AMAZON  203-5432555-26
OXFORDSHIRE CC,CHILDREN'S & EDUCATION,HOLIDAY ACTIVITIES & FOOD GRANT,CATERING PROVISIONS,21/03/2024,11453534911,58.46,AMAZON  203-6340568-01
OXFORDSHIRE CC,CHILDREN'S & EDUCATION,HOLIDAY ACTIVITIES & FOOD GRANT,CATERING PROVISIONS,21/03/2024,11453534945,22.09,AMAZON  203-9895647-77
OXFORDSHIRE CC,CHILDREN'S & EDUCATION,HOLIDAY ACTIVITIES & FOOD GRANT,CATERING PROVISIONS,21/03/2024,11453534661,25.84,AMAZON  203-0506682-18
OXFORDSHIRE CC,CHILDREN'S & EDUCATION,HOLIDAY ACTIVITIES & FOOD GRANT,CATERING PROVISIONS,21/03/2024,11453534699,59.95,AMAZON  203-2566038-98
OXFORDSHIRE CC,PUBLIC HEALTH,CHILDREN IN CARE NON-STAFFING - SOUTH,PAYMENT TO GOVERNMENT DEPARTMENTS,21/03/2024,11453532711,-31.5,GEN REGISTER OFFICE
OXFORDSHIRE CC,ADULTS,CSS WANTAGE,EQUIPMENT,21/03/2024,11453532667,4.25,THE WANTAGE MOTORIST C
OXFORDSHIRE CC,CHILDREN'S & EDUCATION,HOLIDAY ACTIVITIES & FOOD GRANT,CATERING PROVISIONS,21/03/2024,11453534893,25.09,AMAZON  203-9895647-77
OXFORDSHIRE CC,CHILDREN'S & EDUCATION,HOLIDAY ACTIVITIES & FOOD GRANT,CATERING PROVISIONS,21/03/2024,11453534923,107.54,AMAZON  203-8767706-82
OXFORDSHIRE CC,CUSTOMER AND CULTURE,LIBRARY COLLECTIONS,MATERIALS,21/03/2024,11453533315,"1,346.40",FINDEL EDUCATION
OXFORDSHIRE CC,ENVIRONMENT AND PLACE,COMMERCIAL MANAGEMEN,OTHER TRAINING COURSES AND QUALIFICATION,21/03/2024,11453535209,223.2,SAS EVENT AND ASSOCIAT
OXFORDSHIRE CC,CHILDREN'S & EDUCATION,HOLIDAY ACTIVITIES & FOOD GRANT,CATERING PROVISIONS,21/03/2024,11453534651,39.9,AMAZON  203-9607149-17
OXFORDSHIRE CC,CHILDREN'S & EDUCATION,"	LEAVING CARE CITY 1",OTHER EXPENSES,21/03/2024,11453532817,18,AMAZON  202-9991531-22
OXFORDSHIRE CC,CHILDREN'S & EDUCATION,"	LEAVING CARE CITY 1",OTHER EXPENSES,21/03/2024,11453532851,34.97,AMZNMKTPLACE
OXFORDSHIRE CC,CHILDREN'S & EDUCATION,HOLIDAY ACTIVITIES & FOOD GRANT,CATERING PROVISIONS,21/03/2024,11453534817,39.9,AMAZON  203-7535004-46
OXFORDSHIRE CC,CHILDREN'S & EDUCATION,HOLIDAY ACTIVITIES & FOOD GRANT,CATERING PROVISIONS,21/03/2024,11453534849,59.95,AMAZON  203-9526318-23
OXFORDSHIRE CC,CHILDREN'S & EDUCATION,HOLIDAY ACTIVITIES & FOOD GRANT,CATERING PROVISIONS,21/03/2024,11453534855,39.9,AMAZON  203-9541738-13
OXFORDSHIRE CC,CHILDREN'S & EDUCATION,EET SERVICE,"BOOKS, DVDS AND CDS",21/03/2024,11453533113,45.57,AMAZON  202-3300699-78
OXFORDSHIRE CC,CHILDREN'S & EDUCATION,"	MALTFIELD HOUSE",RESIDENTIAL ACTIVITIES,21/03/2024,11453535049,6.98,AMAZON  206-2047940-57
OXFORDSHIRE CC,CORPORATE CORE,,STATIONERY,21/03/2024,11453535091,96.67,LYRECO UK LTD
OXFORDSHIRE CC,CHILDREN'S & EDUCATION,HOLIDAY ACTIVITIES & FOOD GRANT,CATERING PROVISIONS,21/03/2024,11453534781,14.95,AMAZON  203-5726726-05
OXFORDSHIRE CC,RESOURCES,CENTRAL BUYING TEAM,PURCHASE OF IT EQUIPMENT,21/03/2024,11453534503,19.98,AMAZON  204-6293529-13
OXFORDSHIRE CC,CHILDREN'S & EDUCATION,HOLIDAY ACTIVITIES & FOOD GRANT,CATERING PROVISIONS,21/03/2024,11453534551,26.99,AMAZON  203-1872712-31
OXFORDSHIRE CC,ADULTS,CSS WANTAGE,CATERING PROVISIONS,21/03/2024,11453534269,194.54,ASDA GROCERIES ONLINE
OXFORDSHIRE CC,PUBLIC HEALTH,CHILDREN IN CARE NON-STAFFING - NORTH,PAYMENTS TO TRANSPORT OPERATORS,21/03/2024,11453532687,17.83,TRAINLINE
OXFORDSHIRE CC,CHILDREN'S & EDUCATION,"	LEAVING CARE CITY 1",OTHER EXPENSES,21/03/2024,11453532797,13.9,AMAZON  202-2750308-40
OXFORDSHIRE CC,PUBLIC HEALTH,CHILDREN IN CARE NON-STAFFING - SOUTH,OTHER TRANSPORT ARRANGEMENTS,21/03/2024,11453532701,10,NEALE'S TAXIS LIMI
OXFORDSHIRE CC,CHILDREN'S & EDUCATION,"	LEAVING CARE CITY 1",OTHER EXPENSES,21/03/2024,11453532835,27.98,WF  UK4230258764
OXFORDSHIRE CC,CHILDREN'S & EDUCATION,"	LEAVING CARE CITY 1",OTHER EXPENSES,21/03/2024,11453532867,22.25,AMZNMKTPLACE
OXFORDSHIRE CC,CHILDREN'S & EDUCATION,"	LEAVING CARE NORTH",POSTAGE AND DELIVERY,21/03/2024,11453535163,12.75,POST OFFICE COUNTER
OXFORDSHIRE CC,CHILDREN'S & EDUCATION,"	LEAVING CARE CITY 1",OTHER EXPENSES,21/03/2024,11453532807,11.93,AMAZON  202-6371479-67
OXFORDSHIRE CC,CHILDREN'S & EDUCATION,HOLIDAY ACTIVITIES & FOOD GRANT,CATERING PROVISIONS,21/03/2024,11453534737,14.95,AMAZON  203-4205815-60
OXFORDSHIRE CC,CHILDREN'S & EDUCATION,HOLIDAY ACTIVITIES & FOOD GRANT,CATERING PROVISIONS,21/03/2024,11453534767,84.73,AMAZON  203-5349551-00
OXFORDSHIRE CC,CHILDREN'S & EDUCATION,HOLIDAY ACTIVITIES & FOOD GRANT,CATERING PROVISIONS,21/03/2024,11453534799,5,AMAZON  203-7208724-22
OXFORDSHIRE CC,CHILDREN'S & EDUCATION,HOLIDAY ACTIVITIES & FOOD GRANT,CATERING PROVISIONS,21/03/2024,11453534881,195.7,AMAZON  203-9895647-77
OXFORDSHIRE CC,CHILDREN'S & EDUCATION,HOLIDAY ACTIVITIES & FOOD GRANT,CATERING PROVISIONS,21/03/2024,11453534583,14.95,AMAZON  203-4783612-38
OXFORDSHIRE CC,CHILDREN'S & EDUCATION,HOLIDAY ACTIVITIES & FOOD GRANT,CATERING PROVISIONS,21/03/2024,11453534597,26.45,AMAZON  203-4850706-09
OXFORDSHIRE CC,CHILDREN'S & EDUCATION,HOLIDAY ACTIVITIES & FOOD GRANT,CATERING PROVISIONS,21/03/2024,11453534631,23.9,AMAZON  203-7919690-42
OXFORDSHIRE CC,CHILDREN'S & EDUCATION,"	LEAVING CARE CITY 1",OTHER EXPENSES,21/03/2024,11453532841,113,ASDA GEORGE COM LEEDS
OXFORDSHIRE CC,CHILDREN'S & EDUCATION,THAME E&A HOME,VEHICLE FUEL,21/03/2024,11453533101,13,SHELL CHASE 508
OXFORDSHIRE CC,CORPORATE CORE,,STATIONERY,21/03/2024,11453535081,34.39,LYRECO UK LTD
OXFORDSHIRE CC,CHILDREN'S & EDUCATION,CHILDREN IN CARE NON-STAFFING - NORTH,PAYMENT TO GOVERNMENT DEPARTMENTS,21/03/2024,11453535235,53.5,HM PASSPORT OFFICE
OXFORDSHIRE CC,ADULTS,THAME E&A HOME,CATERING PROVISIONS,21/03/2024,11453534223,7.85,LIDL GB OXFORD
OXFORDSHIRE CC,ADULTS,CSS WANTAGE,CATERING PROVISIONS,21/03/2024,11453534279,-1.4,ASDA GROCERIES ONLINE
OXFORDSHIRE CC,CHILDREN'S & EDUCATION,HOLIDAY ACTIVITIES & FOOD GRANT,CATERING PROVISIONS,21/03/2024,11453534589,84.73,AMAZON  203-4847560-64
OXFORDSHIRE CC,CUSTOMER AND CULTURE,"MARKETING, COMMUNICATIONS & ENGAGEMENT","PUBLICITY, PROMOTIONS AND ADVERTISEMENT",21/03/2024,11453534365,500,GOOGLE ADS4896546035
OXFORDSHIRE CC,CHILDREN'S & EDUCATION,HOLIDAY ACTIVITIES & FOOD GRANT,CATERING PROVISIONS,21/03/2024,11453534707,8.43,AMAZON  203-3123608-37
OXFORDSHIRE CC,CHILDREN'S & EDUCATION,HOLIDAY ACTIVITIES & FOOD GRANT,CATERING PROVISIONS,21/03/2024,11453534903,19.99,AMAZON  203-1935737-10
OXFORDSHIRE CC,CHILDREN'S & EDUCATION,HOLIDAY ACTIVITIES & FOOD GRANT,CATERING PROVISIONS,21/03/2024,11453534935,18.33,AMAZON  203-9895647-77
OXFORDSHIRE CC,CUSTOMER AND CULTURE,LIBRARY COLLECTIONS,PURCHASE OF IT EQUIPMENT,21/03/2024,11453532937,"1,554.00",RS COMPONENTS
OXFORDSHIRE CC,CUSTOMER AND CULTURE,MUSEUM CAFE,EQUIPMENT,21/03/2024,11453534165,29.12,AMAZON  203-0854025-53
OXFORDSHIRE CC,CHILDREN'S & EDUCATION,HOLIDAY ACTIVITIES & FOOD GRANT,CATERING PROVISIONS,21/03/2024,11453534623,25.84,AMAZON  203-7694221-73
OXFORDSHIRE CC,CUSTOMER AND CULTURE,HARD FM,PREMISES REPAIRS,21/03/2024,11453532781,20.99,SCREWFIX OXFORD COWLEY
OXFORDSHIRE CC,ADULTS,CSS WALLINGFORD,ENTERTAINMENT EXPENSES,21/03/2024,11453532677,3,WWW.BETTER.ORG.UK
OXFORDSHIRE CC,CHILDREN'S & EDUCATION,"	LEAVING CARE CITY 1",OTHER EXPENSES,21/03/2024,11453532823,25.99,AMZNMKTPLACE
OXFORDSHIRE CC,CHILDREN'S & EDUCATION,"	LEAVING CARE CITY 1",REGISTRATION AND INSPECTION FEES,21/03/2024,11453532859,34,DVLA DRIVER ONLINE
OXFORDSHIRE CC,CHILDREN'S & EDUCATION,HOLIDAY ACTIVITIES & FOOD GRANT,CATERING PROVISIONS,21/03/2024,11453534827,19.99,AMAZON  203-9017145-70
OXFORDSHIRE CC,CHILDREN'S & EDUCATION,CHILDREN IN CARE NON-STAFFING - NORTH,PAYMENT TO GOVERNMENT DEPARTMENTS,21/03/2024,11453535229,53.5,HM PASSPORT OFFICE
OXFORDSHIRE CC,ADULTS,MANAGEMENT RECHARGES,HIRED AND CONTRACTED SERVICES,21/03/2024,11453535839,34.99,AMAZON  204-8297735-37
OXFORDSHIRE CC,ADULTS,CSS - ABINGDON,CATERING PROVISIONS,21/03/2024,11453535883,17.45,WAITROSE 211
OXFORDSHIRE CC,CHILDREN'S & EDUCATION,HOLIDAY ACTIVITIES & FOOD GRANT,CATERING PROVISIONS,21/03/2024,11453534521,89.99,AMAZON  203-0819814-29
OXFORDSHIRE CC,CHILDREN'S & EDUCATION,HOLIDAY ACTIVITIES & FOOD GRANT,CATERING PROVISIONS,21/03/2024,11453534565,23,AMAZON  203-3712492-51
OXFORDSHIRE CC,CHILDREN'S & EDUCATION,HOLIDAY ACTIVITIES & FOOD GRANT,CATERING PROVISIONS,21/03/2024,11453534689,26.45,AMAZON  203-1774834-21
OXFORDSHIRE CC,CHILDREN'S & EDUCATION,HOLIDAY ACTIVITIES & FOOD GRANT,CATERING PROVISIONS,21/03/2024,11453534719,9.5,AMAZON  203-3467073-76
OXFORDSHIRE CC,CHILDREN'S & EDUCATION,HOLIDAY ACTIVITIES & FOOD GRANT,CATERING PROVISIONS,21/03/2024,11453534751,134.99,AMAZON  203-4538585-18
OXFORDSHIRE CC,CHILDREN'S & EDUCATION,HOLIDAY ACTIVITIES & FOOD GRANT,CATERING PROVISIONS,21/03/2024,11453534761,5,AMAZON  203-5095784-21
OXFORDSHIRE CC,CHILDREN'S & EDUCATION,HOLIDAY ACTIVITIES & FOOD GRANT,CATERING PROVISIONS,21/03/2024,11453534789,132.81,AMAZON  203-6340568-01
OXFORDSHIRE CC,CHILDREN'S & EDUCATION,HOLIDAY ACTIVITIES & FOOD GRANT,CATERING PROVISIONS,21/03/2024,11453534917,7.57,AMAZON  203-6340568-01
OXFORDSHIRE CC,CUSTOMER AND CULTURE,COMMUNITY PARTNERSHIP TEAM,CATERING PROVISIONS,21/03/2024,11453533083,145.9,TESCO STORES 2008
OXFORDSHIRE CC,ADULTS,CSS - OXFORD,CATERING PROVISIONS,21/03/2024,11453533137,7.07,ALDI STORES 775-142
OXFORDSHIRE CC,CORPORATE CORE,,STATIONERY,21/03/2024,11453535073,8.84,LYRECO UK LTD
OXFORDSHIRE CC,ADULTS,CSS - BANBURY,CATERING PROVISIONS,21/03/2024,11453535127,18.48,AMAZON  204-4958303-43
OXFORDSHIRE CC,CUSTOMER AND CULTURE,LIB ICT SUPPRT&MAINT,PURCHASE OF IT EQUIPMENT,21/03/2024,11453532929,"1,554.00",RS COMPONENTS
OXFORDSHIRE CC,ENVIRONMENT AND PLACE,REAL TIME BUS INFO,EQUIPMENT,21/03/2024,11453532983,59.49,AMAZON  204-3537877-86
OXFORDSHIRE CC,CUSTOMER AND CULTURE,CENTRAL LIBRARY,HEALTH AND SAFETY EQUIPMENT,21/03/2024,11453534483,27.99,AMAZON  203-0006029-09
OXFORDSHIRE CC,CHILDREN'S & EDUCATION,HOLIDAY ACTIVITIES & FOOD GRANT,CATERING PROVISIONS,21/03/2024,11453534535,8.99,AMAZON  203-0925455-83
OXFORDSHIRE CC,CHILDREN'S & EDUCATION,HOLIDAY ACTIVITIES & FOOD GRANT,CATERING PROVISIONS,21/03/2024,11453534615,9,AMAZON  203-7494511-05
OXFORDSHIRE CC,CHILDREN'S & EDUCATION,40 THE MOORS,CATERING PROVISIONS,21/03/2024,11453534359,15,TESCO STORES 2788
OXFORDSHIRE CC,CHILDREN'S & EDUCATION,FAMILY SOLUTIONS PLUS NON-STAFF � SOUTH,ENTERTAINMENT EXPENSES,21/03/2024,11453532911,18.5,RUGRATSANDHALFPINTS
OXFORDSHIRE CC,CUSTOMER AND CULTURE,MUSEUM CAFE,EQUIPMENT,21/03/2024,11453534157,19.99,AMAZON  203-6618499-58
OXFORDSHIRE CC,ADULTS,MANAGEMENT RECHARGES,HIRED AND CONTRACTED SERVICES,21/03/2024,11453535805,15.35,AMAZON  204-4745612-93
OXFORDSHIRE CC,CHILDREN'S & EDUCATION,FSP NON-STAFFING - CENTRAL,OTHER TRANSPORT ARRANGEMENTS,21/03/2024,11453535683,50,SUMUP   AZ TAXIS
OXFORDSHIRE CC,CHILDREN'S & EDUCATION,FSP NON-STAFFING - CENTRAL,CLOTHING AND UNIFORMS,21/03/2024,11453535651,179.2,SWI SCHOOLWEAR
OXFORDSHIRE CC,CHILDREN'S & EDUCATION,THAME E&A HOME,CATERING PROVISIONS,21/03/2024,11453535471,26.61,OXFORD PEARTREE KFC
OXFORDSHIRE CC,ENVIRONMENT AND PLACE,NAT TRAILS GENERAL,EQUIPMENT,21/03/2024,11453535767,224.64,SP PWDIRECT.CO.UK
OXFORDSHIRE CC,ADULTS,MANAGEMENT RECHARGES,HIRED AND CONTRACTED SERVICES,21/03/2024,11453535799,22.45,AMAZON  204-4487827-83
OXFORDSHIRE CC,CHILDREN'S & EDUCATION,FSP NON-STAFFING - CENTRAL,CLOTHING AND UNIFORMS,21/03/2024,11453535657,63.6,SWI SCHOOLWEAR
OXFORDSHIRE CC,ADULTS,MANAGEMENT RECHARGES,HIRED AND CONTRACTED SERVICES,21/03/2024,11453535831,16.59,AMAZON  204-7053193-78
OXFORDSHIRE CC,CUSTOMER AND CULTURE,HARD FM,PREMISES REPAIRS,21/03/2024,11453533659,21.4,WICKES OXFORD
OXFORDSHIRE CC,ENVIRONMENT AND PLACE,NAT TRAILS GENERAL,CATERING PROVISIONS,21/03/2024,11453533869,2.25,CO OPERATIVE FOOD
OXFORDSHIRE CC,ADULTS,MANAGEMENT RECHARGES,HIRED AND CONTRACTED SERVICES,21/03/2024,11453535823,10.95,AMAZON  204-6171246-27
OXFORDSHIRE CC,ADULTS,MANAGEMENT RECHARGES,HIRED AND CONTRACTED SERVICES,21/03/2024,11453535849,140.53,AMAZON  204-4745612-93
OXFORDSHIRE CC,CHILDREN'S & EDUCATION,THAME E&A HOME,CATERING PROVISIONS,21/03/2024,11453533857,5.14,B&M 515 - ABINGDON
OXFORDSHIRE CC,CHILDREN'S & EDUCATION,EET SERVICE,CATERING PROVISIONS,21/03/2024,11453533121,34.38,AMAZON  202-4850003-05
OXFORDSHIRE CC,CHILDREN'S & EDUCATION,"	MALTFIELD HOUSE",RESIDENTIAL ACTIVITIES,21/03/2024,11453535059,48.17,AMAZON  206-8947976-73
OXFORDSHIRE CC,ADULTS,CSS - BANBURY,CATERING PROVISIONS,21/03/2024,11453535113,91,AMAZON  204-0036634-93
OXFORDSHIRE CC,CUSTOMER AND CULTURE,REGISTRAR,CATERING PROVISIONS,21/03/2024,11453533259,9.99,AMAZON  204-3734440-06
OXFORDSHIRE CC,CHILDREN'S & EDUCATION,CHILDREN IN CARE NON-STAFFING - NORTH,PAYMENT TO GOVERNMENT DEPARTMENTS,21/03/2024,11453535221,53.5,HM PASSPORT OFFICE
OXFORDSHIRE CC,CHILDREN'S & EDUCATION,HOLIDAY ACTIVITIES & FOOD GRANT,CATERING PROVISIONS,21/03/2024,11453534605,134.99,AMAZON  203-6502825-53
OXFORDSHIRE CC,CHILDREN'S & EDUCATION,HOLIDAY ACTIVITIES & FOOD GRANT,CATERING PROVISIONS,21/03/2024,11453534637,8.97,AMAZON  203-8232833-66
OXFORDSHIRE CC,CHILDREN'S & EDUCATION,HOLIDAY ACTIVITIES & FOOD GRANT,CATERING PROVISIONS,21/03/2024,11453534711,47.8,AMAZON  203-3176516-05
OXFORDSHIRE CC,CHILDREN'S & EDUCATION,HOLIDAY ACTIVITIES & FOOD GRANT,CATERING PROVISIONS,21/03/2024,11453534835,8.43,AMAZON  203-9200914-65
OXFORDSHIRE CC,CHILDREN'S & EDUCATION,HOLIDAY ACTIVITIES & FOOD GRANT,CATERING PROVISIONS,21/03/2024,11453534867,26.99,AMAZON  203-9741045-24
OXFORDSHIRE CC,ADULTS,MANAGEMENT RECHARGES,HIRED AND CONTRACTED SERVICES,21/03/2024,11453535813,91.22,AMAZON  204-4745612-93
OXFORDSHIRE CC,ADULTS,MANAGEMENT RECHARGES,HIRED AND CONTRACTED SERVICES,21/03/2024,11453535837,10.3,AMAZON  204-8218111-13
OXFORDSHIRE CC,CUSTOMER AND CULTURE,MUSEUM CAFE,EQUIPMENT,21/03/2024,11453534141,34.49,AMAZON  203-0854025-53
OXFORDSHIRE CC,CHILDREN'S & EDUCATION,HOLIDAY ACTIVITIES & FOOD GRANT,CATERING PROVISIONS,21/03/2024,11453534573,89.99,AMAZON  203-4523123-26
OXFORDSHIRE CC,CHILDREN'S & EDUCATION,HOLIDAY ACTIVITIES & FOOD GRANT,CATERING PROVISIONS,21/03/2024,11453534807,25.84,AMAZON  203-7506218-85
OXFORDSHIRE CC,CHILDREN'S & EDUCATION,HOLIDAY ACTIVITIES & FOOD GRANT,CATERING PROVISIONS,21/03/2024,11453534843,26.45,AMAZON  203-9263607-57
OXFORDSHIRE CC,CHILDREN'S & EDUCATION,"	LEAVING CARE NORTH",LAUNDRY AND DRY CLEANING,21/03/2024,11453535151,10,ME GROUP INTERNATIONAL
OXFORDSHIRE CC,ADULTS,MANAGEMENT RECHARGES,HIRED AND CONTRACTED SERVICES,21/03/2024,11453535817,48.7,AMAZON  204-4745612-93
OXFORDSHIRE CC,CHILDREN'S & EDUCATION,HOLIDAY ACTIVITIES & FOOD GRANT,CATERING PROVISIONS,21/03/2024,11453534647,84.73,AMAZON  203-8308334-16
OXFORDSHIRE CC,CHILDREN'S & EDUCATION,HOLIDAY ACTIVITIES & FOOD GRANT,CATERING PROVISIONS,21/03/2024,11453534727,26.99,AMAZON  203-4068031-13
OXFORDSHIRE CC,CHILDREN'S & EDUCATION,HOLIDAY ACTIVITIES & FOOD GRANT,CATERING PROVISIONS,21/03/2024,11453534875,7.99,AMAZON  203-9895647-77
OXFORDSHIRE CC,CHILDREN'S & EDUCATION,DIDCOT MOVE-ON HOME,CATERING PROVISIONS,21/03/2024,11453533409,2.4,SAINSBURYS S/MKTS
OXFORDSHIRE CC,CHILDREN'S & EDUCATION,THAME E&A HOME,CATERING PROVISIONS,21/03/2024,11453533473,57.52,ASDA STORES
OXFORDSHIRE CC,CHILDREN'S & EDUCATION,FAMILY SOLUTIONS PLUS NON-STAFF - NORTH,PAYMENTS TO TRANSPORT OPERATORS,21/03/2024,11453535449,78.35,TRAINLINE
OXFORDSHIRE CC,RESOURCES,ICT OPERATIONS & MAI,PURCHASE OF IT EQUIPMENT,21/03/2024,11453535417,"2,806.87",AMAZON  203-4489985-15
OXFORDSHIRE CC,CUSTOMER AND CULTURE,TREE MAINT OPS,EQUIPMENT,21/03/2024,11453535461,151,AMAZON  204-8137434-79
OXFORDSHIRE CC,CHILDREN'S & EDUCATION,"	LEAVING CARE CITY 2",CATERING,21/03/2024,11453533719,3.7,MCDONALDS 1464
OXFORDSHIRE CC,CUSTOMER AND CULTURE,KNIGHTS COURT,CATERING PROVISIONS,21/03/2024,11453533785,6.53,AMAZON  205-3214449-43
OXFORDSHIRE CC,CUSTOMER AND CULTURE,KNIGHTS COURT,HARDWARE AND CROCKERY,21/03/2024,11453533795,18.3,IRONMONGERY EXPERTS
OXFORDSHIRE CC,CHILDREN'S & EDUCATION,DIDCOT MOVE-ON HOME,CATERING PROVISIONS,21/03/2024,11453533709,21.24,ALDI 99 775
OXFORDSHIRE CC,ADULTS,COUNTY PRINT FINSHRS,MATERIALS,21/03/2024,11453533751,558.5,HIGH STREET VOUCHERS
OXFORDSHIRE CC,CHILDREN'S & EDUCATION,NTS UASC AGENCY,"SUPPLIES, STATIONERY AND MATERIALS",21/03/2024,11453535243,23.13,AMAZON  204-6368476-58
OXFORDSHIRE CC,CHILDREN'S & EDUCATION,FAMILY SOLUTIONS PLUS NON-STAFF - NORTH,PAYMENTS TO TRANSPORT OPERATORS,21/03/2024,11453535285,4.28,TRAINLINE
OXFORDSHIRE CC,CHILDREN'S & EDUCATION,DIDCOT MOVE-ON HOME,CATERING PROVISIONS,21/03/2024,11453535319,30.22,SAINSBURYS S/MKTS
OXFORDSHIRE CC,CHILDREN'S & EDUCATION,DIDCOT MOVE-ON HOME,MATERIALS,21/03/2024,11453533419,3,SAINSBURYS S/MKTS
OXFORDSHIRE CC,CUSTOMER AND CULTURE,DIDOCT LIBRARY,MATERIALS,21/03/2024,11453533633,500,OXFORD WOOD RECYCLING
OXFORDSHIRE CC,CUSTOMER AND CULTURE,DEPARTMENTAL MANAGE,PAYMENTS TO TRANSPORT OPERATORS,21/03/2024,11453535359,129.56,TRAINLINE
OXFORDSHIRE CC,RESOURCES,CONTRACTS & CONVEYANCING LEGAL TEAM,LEGAL COSTS,21/03/2024,11453535405,330,PROPERTY SEARCHES D
OXFORDSHIRE CC,CORPORATE CORE,"MARKETING, COMMUNICATIONS & ENGAGEMENT","PUBLICITY, PROMOTIONS AND ADVERTISEMENT",21/03/2024,11453535571,13.64,SNAP INC SNAP SNAP ADS
OXFORDSHIRE CC,CHILDREN'S & EDUCATION,CHILDREN IN CARE NON-STAFFING - NORTH,OTHER EXPENSES,21/03/2024,11453535273,20,SAINSBURYS S/MKTS
OXFORDSHIRE CC,ADULTS,CSS WITNEY,CATERING PROVISIONS,21/03/2024,11453535309,16.4,MARKS&SPENCER PLC
OXFORDSHIRE CC,ADULTS,CSS - OXFORD,CATERING PROVISIONS,21/03/2024,11453533539,38.03,ALDI STORES 775-142
OXFORDSHIRE CC,"COMMUNICATIONS, STRATEGY AND INSIGHT",LEADERSHIP TEAM,PROFESSIONAL SUBSCRIPTIONS,21/03/2024,11453535341,616.8,WWW.ADASS.ORG.UK
OXFORDSHIRE CC,ADULTS,CSS - ABINGDON,LICENCES,21/03/2024,11453535487,159,TVLICENSING.CO.UK
OXFORDSHIRE CC,CHILDREN'S & EDUCATION,UASC 16&17,TRANSPORT TO SCHOOL,21/03/2024,11453533549,97,WWW.THEKEY.CO.UK
OXFORDSHIRE CC,CUSTOMER AND CULTURE,SCHOOLS FM CATERING AREA 4,CATERING PROVISIONS,21/03/2024,11453533621,46,ASDA GROCERIES ONLINE
OXFORDSHIRE CC,ENVIRONMENT AND PLACE,NAT TRAILS GENERAL,EQUIPMENT,21/03/2024,11453535759,331.5,SP PWDIRECT.CO.UK
OXFORDSHIRE CC,ADULTS,MANAGEMENT RECHARGES,HIRED AND CONTRACTED SERVICES,21/03/2024,11453535791,12.99,AMAZON  204-3642761-36
OXFORDSHIRE CC,CHILDREN'S & EDUCATION,THAME E&A HOME,CATERING PROVISIONS,21/03/2024,11453533485,7.7,SAINSBURYS S/MKTS
OXFORDSHIRE CC,CHILDREN'S & EDUCATION,CHILDREN IN CARE NON-STAFFING - NORTH,OTHER EXPENSES,21/03/2024,11453535255,24,NEXT RETAIL LTD
OXFORDSHIRE CC,CHILDREN'S & EDUCATION,"BICESTER CC, LAUNTON RD",CATERING PROVISIONS,21/03/2024,11453535291,2.35,ICELAND
OXFORDSHIRE CC,CHILDREN'S & EDUCATION,WITNEY,CATERING PROVISIONS,21/03/2024,11453535265,19.04,SAINSBURYS S/MKTS
OXFORDSHIRE CC,ADULTS,MANAGEMENT RECHARGES,HIRED AND CONTRACTED SERVICES,21/03/2024,11453535785,49.99,AMAZON  204-3284661-02
OXFORDSHIRE CC,CORPORATE CORE,"MARKETING, COMMUNICATIONS & ENGAGEMENT","PUBLICITY, PROMOTIONS AND ADVERTISEMENT",21/03/2024,11453535581,46.91,SNAP INC SNAP SNAP ADS
OXFORDSHIRE CC,CHILDREN'S & EDUCATION,BULLINGDON PRISON,"BOOKS, DVDS AND CDS",21/03/2024,11453535625,11.95,AMAZON  204-9196733-24
OXFORDSHIRE CC,ADULTS,CSS BICESTER,"BOOKS, DVDS AND CDS",21/03/2024,11453535669,312.6,PAYPAL  BAG BOOKS
OXFORDSHIRE CC,ADULTS,MANAGEMENT RECHARGES,HIRED AND CONTRACTED SERVICES,21/03/2024,11453535777,15.99,AMAZON  204-1564593-70
OXFORDSHIRE CC,ENTERPRISEVC,,CAR LEASING - PRIVATE RENTALS,20/03/2024,11447696201,180.82,ENTERPRISE RENT-A-CAR
OXFORDSHIRE CC,ENTERPRISEVC,,CAR LEASING - PRIVATE RENTALS,20/03/2024,11447696221,84.41,ENTERPRISE RENT-A-CAR
OXFORDSHIRE CC,CORPORATE CORE,"MARKETING, COMMUNICATIONS & ENGAGEMENT","PUBLICITY, PROMOTIONS AND ADVERTISEMENT",20/03/2024,11447696607,30.78,SNAP INC SNAP SNAP ADS
OXFORDSHIRE CC,ADULTS,CSS WANTAGE,ENTERTAINMENT EXPENSES,20/03/2024,11447695925,10.95,HOLLYWOOD BOWL
OXFORDSHIRE CC,CHILDREN'S & EDUCATION,BULLINGDON PRISON,"SUPPLIES, STATIONERY AND MATERIALS",20/03/2024,11447696689,3.99,AMAZON  204-1128852-30
OXFORDSHIRE CC,ADULTS,PAUSE PROGRAMME,CATERING PROVISIONS,20/03/2024,11447695377,12.99,AMAZON  202-8302232-82
OXFORDSHIRE CC,ENVIRONMENT AND PLACE,NAT TRAILS GENERAL,EQUIPMENT,20/03/2024,11447695725,36.45,SP SKYLAND EQUIPMENT
OXFORDSHIRE CC,ADULTS,CSS BICESTER,DRUGS AND MEDICAL SUPPLIES,20/03/2024,11447696741,3.99,AMAZON  202-5275464-66
OXFORDSHIRE CC,ADULTS,CSS WANTAGE,ENTERTAINMENT EXPENSES,20/03/2024,11447695931,10.95,HOLLYWOOD BOWL
OXFORDSHIRE CC,CUSTOMER AND CULTURE,HARD FM,PREMISES REPAIRS,20/03/2024,11447695559,105.98,WWW.SCREWFIX.COM
OXFORDSHIRE CC,CHILDREN'S & EDUCATION,EYNSHAM,CATERING PROVISIONS,20/03/2024,11447696397,150.52,TESCO STORES 2008
OXFORDSHIRE CC,CHILDREN'S & EDUCATION,EYNSHAM,VEHICLE FUEL,20/03/2024,11447696419,10.1,TESCO PFS 2488
OXFORDSHIRE CC,CHILDREN'S & EDUCATION,"	LEAVING CARE CITY 2",MATERIALS,20/03/2024,11447695761,8.99,AMAZON PRIME CV9W79E65
OXFORDSHIRE CC,CHILDREN'S & EDUCATION,MSI,DISABILITY AIDS AND EQUIPMENT,20/03/2024,11447695939,36.15,THE MAKATON CHARITY
OXFORDSHIRE CC,PUBLIC HEALTH,CHILDREN IN CARE NON-STAFFING - SOUTH,HIRE OF ACCOMMODATION AND FACILITIES,20/03/2024,11447694983,132.99,PREMIER INN
OXFORDSHIRE CC,CHILDREN'S & EDUCATION,THAME E&A HOME,CATERING PROVISIONS,20/03/2024,11447696529,12.05,SAINSBURYS S/MKTS
OXFORDSHIRE CC,CHILDREN'S & EDUCATION,QUALITY ASSURANCE CITY TEAM,HIRE OF ACCOMMODATION AND FACILITIES,20/03/2024,11447696573,53.02,TRAVELODGE
OXFORDSHIRE CC,CHILDREN'S & EDUCATION,WITNEY CC,CATERING PROVISIONS,20/03/2024,11447696253,21,WAITROSE 142
OXFORDSHIRE CC,ADULTS,CSS - BANBURY,CATERING PROVISIONS,20/03/2024,11447696273,7.45,AMAZON  204-6683464-05
OXFORDSHIRE CC,ADULTS,CSS - OXFORD,MATERIALS,20/03/2024,11447695231,31.06,ALDI STORES 775-142
OXFORDSHIRE CC,CORPORATE CORE,"MARKETING, COMMUNICATIONS & ENGAGEMENT",SUBSCRIPTIONS,20/03/2024,11447696599,410.86,READABLE.COM
OXFORDSHIRE CC,CHILDREN'S & EDUCATION,"	SEN/ICT EQUIPMENT",PURCHASE OF IT EQUIPMENT,20/03/2024,11447695949,37.59,AMZNMKTPLACE
OXFORDSHIRE CC,CHILDREN'S & EDUCATION,"	LEAVING CARE NORTH",MATERIALS,20/03/2024,11447695311,443,AMAZON.CO.UK GC4U01G05
OXFORDSHIRE CC,CHILDREN'S & EDUCATION,"	SEN/ICT EQUIPMENT",OTHER TRANSPORT ARRANGEMENTS,20/03/2024,11447695349,13.19,UPS LTD
OXFORDSHIRE CC,CHILDREN'S & EDUCATION,EYNSHAM,OTHER SERVICES,20/03/2024,11447695333,10,POUNDSTRETCHER - 0700
OXFORDSHIRE CC,"COMMUNICATIONS, STRATEGY AND INSIGHT",STRAT&COMMS TRAINING,MATERIALS,20/03/2024,11447696385,50,EDEN FLOWERS
OXFORDSHIRE CC,CHILDREN'S & EDUCATION,"	DISABILITIES TEAM-N",PAYMENTS TO TRANSPORT OPERATORS,20/03/2024,11447695111,135.11,TRAINLINE
OXFORDSHIRE CC,CHILDREN'S & EDUCATION,"	LOOKED AFTER CITY 2",OTHER TRANSPORT ARRANGEMENTS,20/03/2024,11447695719,2,OXFORD BUS COMPANY
OXFORDSHIRE CC,CHILDREN'S & EDUCATION,KINGFISHER,CATERING PROVISIONS,20/03/2024,11447696765,50,TESCO GIFT CARD
OXFORDSHIRE CC,ADULTS,CARE LEAVERS STAFFING,CATERING PROVISIONS,20/03/2024,11447696309,29.99,AMAZON  204-8715461-13
OXFORDSHIRE CC,PUBLIC HEALTH,CHILDREN IN CARE NON-STAFFING - SOUTH,OTHER TRANSPORT ARRANGEMENTS,20/03/2024,11447694989,40,WWW.001ROYALCABS.CO.UK
OXFORDSHIRE CC,CUSTOMER AND CULTURE,THAME LIBRARY,"NEWSPAPERS, PERIODICALS AND PUBLICATIONS",20/03/2024,11447696089,5.8,SAINSBURYS S/MKTS
OXFORDSHIRE CC,CHILDREN'S & EDUCATION,"	MALTFIELD HOUSE","BOOKS, DVDS AND CDS",20/03/2024,11447696131,22.5,AMAZON  206-6010328-16
OXFORDSHIRE CC,CORPORATE CORE,,STATIONERY,20/03/2024,11447696157,117.72,LYRECO UK LTD
OXFORDSHIRE CC,CHILDREN'S & EDUCATION,CNTL EARLY HELP-RHIL,CATERING PROVISIONS,20/03/2024,11447696459,14.49,AMAZON  026-5273437-75
OXFORDSHIRE CC,RESOURCES,ICT OPERATIONS & MAI,PURCHASE OF IT EQUIPMENT,20/03/2024,11447696489,93.99,AMAZON  203-0351816-86
OXFORDSHIRE CC,PUBLIC HEALTH,PUBLIC HEALTH GENERAL,PAYMENTS TO TRANSPORT OPERATORS,20/03/2024,11447695465,235.38,TRAINLINE
OXFORDSHIRE CC,CHILDREN'S & EDUCATION,WITNEY,CATERING PROVISIONS,20/03/2024,11447695531,17.35,SAINSBURYS S/MKTS
OXFORDSHIRE CC,CUSTOMER AND CULTURE,SCHOOLS FM CATERING AREA 1,CATERING PROVISIONS,20/03/2024,11447695503,24.9,SAINSBURYS S/MKTS
OXFORDSHIRE CC,ENTERPRISEVC,,CAR LEASING - PRIVATE RENTALS,20/03/2024,11447696183,75.22,ENTERPRISE RENT-A-CAR
OXFORDSHIRE CC,CHILDREN'S & EDUCATION,40 THE MOORS,CATERING PROVISIONS,20/03/2024,11447696005,24.95,CO-OPERATIVE FOOD
OXFORDSHIRE CC,CORPORATE CORE,,STATIONERY,20/03/2024,11447696143,11.93,LYRECO UK LTD
OXFORDSHIRE CC,ENTERPRISEVC,,CAR LEASING - PRIVATE RENTALS,20/03/2024,11447696205,39.22,ENTERPRISE RENT-A-CAR
OXFORDSHIRE CC,ENTERPRISEVC,,CAR LEASING - PRIVATE RENTALS,20/03/2024,11447696225,246.82,ENTERPRISE RENT-A-CAR
OXFORDSHIRE CC,ENVIRONMENT AND PLACE,HWAYS NETWORK MGT,"BOOKS, DVDS AND CDS",20/03/2024,11447695149,47.45,AMAZON.CO.UK WI87U33L5
OXFORDSHIRE CC,CHILDREN'S & EDUCATION,THAME E&A HOME,CATERING PROVISIONS,20/03/2024,11447695201,14.65,TESCO STORES 2008
OXFORDSHIRE CC,CHILDREN'S & EDUCATION,BULLINGDON PRISON,"BOOKS, DVDS AND CDS",20/03/2024,11447696697,15.37,AMAZON  204-2889401-68
OXFORDSHIRE CC,CHILDREN'S & EDUCATION,UASC 16&17,DRUGS AND MEDICAL SUPPLIES,20/03/2024,11447695389,5.7,HEADINGTON_PHARMACY_OX
OXFORDSHIRE CC,CHILDREN'S & EDUCATION,"	LEAVING CARE CITY 1",CATERING PROVISIONS,20/03/2024,11447695419,14.15,TESCO STORES 5394
OXFORDSHIRE CC,ADULTS,CSS - OXFORD,CATERING PROVISIONS,20/03/2024,11447695065,4.77,ALDI STORES 775-142
OXFORDSHIRE CC,CHILDREN'S & EDUCATION,UASC POST 18,FURNITURE,20/03/2024,11447695487,32.99,SPORTSDIRECT 218
OXFORDSHIRE CC,ENTERPRISEVC,,CAR LEASING - PRIVATE RENTALS,20/03/2024,11447696191,89.9,ENTERPRISE RENT-A-CAR
OXFORDSHIRE CC,ENTERPRISEVC,,CAR LEASING - PRIVATE RENTALS,20/03/2024,11447696209,100.43,ENTERPRISE RENT-A-CAR
OXFORDSHIRE CC,ENTERPRISEVC,,CAR LEASING - PRIVATE RENTALS,20/03/2024,11447696229,52.08,ENTERPRISE RENT-A-CAR
OXFORDSHIRE CC,CHILDREN'S & EDUCATION,"	LEAVING CARE CITY 2",CATERING PROVISIONS,20/03/2024,11447695767,15,TESCO GIFT CARD
OXFORDSHIRE CC,CHILDREN'S & EDUCATION,"	SENSS TRAINING",TRAINING RELATED EXPENDITURE,20/03/2024,11447695831,200,WWW.LUCASHOUSEHOTEL.CO
OXFORDSHIRE CC,CHILDREN'S & EDUCATION,EET SERVICE,PAYMENT TO GOVERNMENT DEPARTMENTS,20/03/2024,11447695867,-7.5,GEN REGISTER OFFICE
OXFORDSHIRE CC,CUSTOMER AND CULTURE,KNIGHTS COURT,CATERING PROVISIONS,20/03/2024,11447695669,31.98,AMAZON  205-2237394-64
OXFORDSHIRE CC,CUSTOMER AND CULTURE,COUNTY HALL,STATIONERY,20/03/2024,11447696673,6.5,WH SMITH OXFORD
OXFORDSHIRE CC,ADULTS,SHARED LIVES,PAYMENT TO GOVERNMENT DEPARTMENTS,20/03/2024,11447696371,255,VALE OF WHITE HORSE DC
OXFORDSHIRE CC,CHILDREN'S & EDUCATION,FAMILY SOLUTIONS PLUS NON-STAFF - NORTH,PAYMENTS TO TRANSPORT OPERATORS,20/03/2024,11447696405,41.26,TRAINLINE
OXFORDSHIRE CC,ADULTS,CSS - ABINGDON,MATERIALS,20/03/2024,11447696537,21.92,ALDI STORES
OXFORDSHIRE CC,CHILDREN'S & EDUCATION,FAMILY SOLUTIONS PLUS NON-STAFF - NORTH,CATERING PROVISIONS,20/03/2024,11447695239,5.25,TESCO STORES 2008
OXFORDSHIRE CC,CHILDREN'S & EDUCATION,40 THE MOORS,OTHER EXPENSES,20/03/2024,11447695273,17.9,AMAZON  205-7628507-41
OXFORDSHIRE CC,CHILDREN'S & EDUCATION,CHILDREN IN CARE NON-STAFFING - CENTRL 2,MATERIALS,20/03/2024,11447695117,179,CURRYS ONLINE
OXFORDSHIRE CC,CHILDREN'S & EDUCATION,"	LEAVING CARE CITY 2",CATERING,20/03/2024,11447695645,13.94,BURGER KING
OXFORDSHIRE CC,CHILDREN'S & EDUCATION,"	LAC PUPIL PREMIUM",MATERIALS,20/03/2024,11447696437,30,AMAZON.CO.UK Z75YP3X25
OXFORDSHIRE CC,CHILDREN'S & EDUCATION,"	LOOKED AFTER CITY 2",OTHER TRANSPORT ARRANGEMENTS,20/03/2024,11447695713,2,OXFORD BUS COMPANY
OXFORDSHIRE CC,CUSTOMER AND CULTURE,CH REFURB PROJECT,EQUIPMENT,20/03/2024,11447695743,145.17,PAYPAL  PAPERPROJEC
OXFORDSHIRE CC,ADULTS,CSS WANTAGE,CATERING PROVISIONS,20/03/2024,11447696757,11.31,SAINSBURYS S/MKTS
OXFORDSHIRE CC,PUBLIC HEALTH,CHILDREN IN CARE NON-STAFFING - SOUTH,PAYMENTS TO TRANSPORT OPERATORS,20/03/2024,11447694995,18.03,TRAINLINE
OXFORDSHIRE CC,CHILDREN'S & EDUCATION,CHILDREN IN CARE NON-STAFFING - NORTH,PAYMENTS TO TRANSPORT OPERATORS,20/03/2024,11447695053,12.42,TRAINLINE
OXFORDSHIRE CC,RESOURCES,ICT OPERATIONS & MAI,PURCHASE OF IT EQUIPMENT,20/03/2024,11447696497,14.98,AMAZON  203-2304914-11
OXFORDSHIRE CC,CORPORATE CORE,,STATIONERY,20/03/2024,11447696147,42.29,LYRECO UK LTD
OXFORDSHIRE CC,ENTERPRISEVC,,CAR LEASING - PRIVATE RENTALS,20/03/2024,11447696237,78.43,ENTERPRISE RENT-A-CAR
OXFORDSHIRE CC,CHILDREN'S & EDUCATION,"	FPT CITY",PAYMENTS TO TRANSPORT OPERATORS,20/03/2024,11447696261,89.1,BKG HOTEL AT BOOKING.C
OXFORDSHIRE CC,CHILDREN'S & EDUCATION,SEND CASEWORK TEAM,POSTAGE AND DELIVERY,20/03/2024,11447695959,15.45,ROYAL MAIL GROUP LTD
OXFORDSHIRE CC,CHILDREN'S & EDUCATION,FAMILY SOLUTIONS PLUS NON-STAFF - NORTH,PAYMENTS TO TRANSPORT OPERATORS,20/03/2024,11447696317,11.82,TRAINLINE
OXFORDSHIRE CC,CUSTOMER AND CULTURE,SCHOOLS FM CATERING AREA 1,CATERING PROVISIONS,20/03/2024,11447696325,24,SAINSBURYS S/MKTS
OXFORDSHIRE CC,PUBLIC HEALTH,CHILDREN IN CARE NON-STAFFING - SOUTH,PAYMENT TO GOVERNMENT DEPARTMENTS,20/03/2024,11447694999,38,GEN REGISTER OFFICE
OXFORDSHIRE CC,CUSTOMER AND CULTURE,"MARKETING, COMMUNICATIONS & ENGAGEMENT",SUBSCRIPTIONS,20/03/2024,11447696019,24.98,LINKEDIN PRE 100159794
OXFORDSHIRE CC,CORPORATE CORE,,STATIONERY,20/03/2024,11447696151,2.71,LYRECO UK LTD
OXFORDSHIRE CC,ADULTS,CSS - OXFORD,CATERING PROVISIONS,20/03/2024,11447695071,33.34,ALDI STORES 775-142
OXFORDSHIRE CC,ENTERPRISEVC,,CAR LEASING - PRIVATE RENTALS,20/03/2024,11447696239,53.9,ENTERPRISE RENT-A-CAR
OXFORDSHIRE CC,ADULTS,CSS - BANBURY,CATERING PROVISIONS,20/03/2024,11447696265,18.48,AMAZON  204-5186782-28
OXFORDSHIRE CC,CHILDREN'S & EDUCATION,NTS UASC AGENCY,OTHER MISC INC,20/03/2024,11447696301,16.6,AMAZON  205-2600877-64
OXFORDSHIRE CC,CHILDREN'S & EDUCATION,SI EQUIPMENT,PURCHASE OF IT EQUIPMENT,20/03/2024,11447695953,640,LENOVO UK GBP - ECOM
OXFORDSHIRE CC,CHILDREN'S & EDUCATION,"	LEAVING CARE CITY 2",CLOTHING AND UNIFORMS,20/03/2024,11447695641,300,PRIMARK 440
OXFORDSHIRE CC,PUBLIC HEALTH,CHILDREN IN CARE NON-STAFFING - SOUTH,PAYMENT TO GOVERNMENT DEPARTMENTS,20/03/2024,11447695005,14,GEN REGISTER OFFICE
OXFORDSHIRE CC,CUSTOMER AND CULTURE,HARD FM,PREMISES REPAIRS,20/03/2024,11447695035,110.55,AMAZON  026-3933144-09
OXFORDSHIRE CC,RESOURCES,ICT OPERATIONS & MAI,PROFESSIONAL SUBSCRIPTIONS,20/03/2024,11447696479,"1,928.40",SOUTH EAST EMPLOYERS
OXFORDSHIRE CC,CHILDREN'S & EDUCATION,THAME E&A HOME,CATERING PROVISIONS,20/03/2024,11447695195,4.98,B&M 515 - ABINGDON
OXFORDSHIRE CC,CUSTOMER AND CULTURE,CENTRAL LIBRARY,MATERIALS,20/03/2024,11447695883,15.92,EXTRA
OXFORDSHIRE CC,CHILDREN'S & EDUCATION,WITNEY,VEHICLE FUEL,20/03/2024,11447695525,3.15,TESCO PFS 3418
OXFORDSHIRE CC,ENTERPRISEVC,,CAR LEASING - PRIVATE RENTALS,20/03/2024,11447696195,75.22,ENTERPRISE RENT-A-CAR
OXFORDSHIRE CC,ENTERPRISEVC,,CAR LEASING - PRIVATE RENTALS,20/03/2024,11447696215,417.98,ENTERPRISE RENT-A-CAR
OXFORDSHIRE CC,CHILDREN'S & EDUCATION,SI EQUIPMENT,DISABILITY AIDS AND EQUIPMENT,20/03/2024,11447695817,13.19,UPS LTD
OXFORDSHIRE CC,CHILDREN'S & EDUCATION,PAUSE PROGRAMME,MATERIALS,20/03/2024,11447695579,1.5,POUNDLAND LTD - 1586
OXFORDSHIRE CC,CHILDREN'S & EDUCATION,VIRTUAL SCHOOL POST 16 PPP,PURCHASE OF IT EQUIPMENT,20/03/2024,11447695553,-225,CURRYS BUSINESS
OXFORDSHIRE CC,"COMMUNICATIONS, STRATEGY AND INSIGHT",STRATEGIC LEADERSHIP TEAM,PAYMENTS TO TRANSPORT OPERATORS,20/03/2024,11447696391,114,WWW.GWR.COM
OXFORDSHIRE CC,CHILDREN'S & EDUCATION,40 THE MOORS,CATERING,20/03/2024,11447696411,23.75,SAINSBURYS S/MKTS
OXFORDSHIRE CC,CHILDREN'S & EDUCATION,"	MARLBOROUGH","SUPPLIES, STATIONERY AND MATERIALS",20/03/2024,11447695825,82.99,AMAZON.CO.UK 1F3RU6GC5
OXFORDSHIRE CC,CUSTOMER AND CULTURE,TREE MAINT OPS,EQUIPMENT,20/03/2024,11447696511,235.98,HIPPO WASTE
OXFORDSHIRE CC,CHILDREN'S & EDUCATION,REACTIVE MAINTENANCE,HARDWARE AND CROCKERY,20/03/2024,11447696545,95,WICKES BICESTER
OXFORDSHIRE CC,CHILDREN'S & EDUCATION,QUALITY ASSURANCE SOUTH TEAM,HIRE OF ACCOMMODATION AND FACILITIES,20/03/2024,11447696579,10.02,TRAVELODGE
OXFORDSHIRE CC,CHILDREN'S & EDUCATION,EET SERVICE,TRAINING RELATED EXPENDITURE,20/03/2024,11447695221,322.92,WESTMINSTER INSIGHT
OXFORDSHIRE CC,CHILDREN'S & EDUCATION,HOUSE PROJECT,GENERAL MAINTENANCE,20/03/2024,11447696613,13.51,EXECUTIVE SECURITY
OXFORDSHIRE CC,ADULTS,CSS WALLINGFORD,HEALTH AND SAFETY EQUIPMENT,20/03/2024,11447694979,33.96,AMAZON  026-9816799-77
OXFORDSHIRE CC,CHILDREN'S & EDUCATION,EET SERVICE,MATERIALS,20/03/2024,11447695225,50,AMAZON.CO.UK F70886WI5
OXFORDSHIRE CC,CHILDREN'S & EDUCATION,"	HEARING IMPAIRMENT",DISABILITY AIDS AND EQUIPMENT,20/03/2024,11447695965,146.97,WWW.INFORMA.COM
OXFORDSHIRE CC,CHILDREN'S & EDUCATION,THAME E&A HOME,DAY ACTIVITIES,20/03/2024,11447695573,5.6,SAINSBURYS S/MKTS
OXFORDSHIRE CC,CHILDREN'S & EDUCATION,EYNSHAM,MATERIALS,20/03/2024,11447695337,8.5,WITNEY INSIDE SAINSBUR
OXFORDSHIRE CC,ENVIRONMENT AND PLACE,PARKING STAFF,CATERING PROVISIONS,20/03/2024,11447695101,96.07,AMAZON  206-1075912-19
OXFORDSHIRE CC,ADULTS,NRPF & HOMELESSNESS,HIRE OF ACCOMMODATION AND FACILITIES,20/03/2024,11447695705,903,PREMIER INN
OXFORDSHIRE CC,CUSTOMER AND CULTURE,CH REFURB PROJECT,CATERING,20/03/2024,11447695737,160.9,WHAT'S COOKING
OXFORDSHIRE CC,CHILDREN'S & EDUCATION,THAME E&A HOME,CATERING,20/03/2024,11447696525,17.1,STARBUCKS THAME
OXFORDSHIRE CC,CORPORATE CORE,"MARKETING, COMMUNICATIONS & ENGAGEMENT",SUBSCRIPTIONS,20/03/2024,11447696589,"1,392.00",ISTOCK.COM
OXFORDSHIRE CC,ENTERPRISEVC,,CAR LEASING - PRIVATE RENTALS,20/03/2024,11447696245,52.08,ENTERPRISE RENT-A-CAR
OXFORDSHIRE CC,ADULTS,CSS - BANBURY,CATERING PROVISIONS,20/03/2024,11447696269,18.48,AMAZON  204-6753721-96
OXFORDSHIRE CC,CORPORATE CORE,"MARKETING, COMMUNICATIONS & ENGAGEMENT","PUBLICITY, PROMOTIONS AND ADVERTISEMENT",20/03/2024,11447696593,500,FACEBK 4JA23ZK9Z2
OXFORDSHIRE CC,CHILDREN'S & EDUCATION,EYNSHAM,CATERING PROVISIONS,20/03/2024,11447695343,27.75,SAINSBURYS S/MKTS
OXFORDSHIRE CC,CHILDREN'S & EDUCATION,EYNSHAM,CATERING PROVISIONS,19/03/2024,11442835837,2.79,SPAR EYNSHAM
OXFORDSHIRE CC,CHILDREN'S & EDUCATION,"	OCCG GRANT",CATERING,19/03/2024,11442835871,15.65,TESCO STORES 4377
OXFORDSHIRE CC,CHILDREN'S & EDUCATION,CHILDREN IN CARE NON-STAFFING - SOUTH,EQUIPMENT,19/03/2024,11442835885,7.95,AMAZON  206-0917352-12
OXFORDSHIRE CC,CHILDREN'S & EDUCATION,"	LEAVING CARE NORTH",MATERIALS,19/03/2024,11442835809,0.99,AMAZON PRIME FR8YL2DB5
OXFORDSHIRE CC,CHILDREN'S & EDUCATION,"	LEAVING CARE CITY 1",OTHER TRANSPORT ARRANGEMENTS,19/03/2024,11442835965,4.5,OXFORDBUS.CO.UK
OXFORDSHIRE CC,CHILDREN'S & EDUCATION,FSP NON-STAFFING - CENTRAL,CATERING PROVISIONS,19/03/2024,11442836025,20.29,SAINSBURYS S/MKTS
OXFORDSHIRE CC,CHILDREN'S & EDUCATION,"	LEAVING CARE CITY 1",FURNITURE,19/03/2024,11442835973,258.95,DUNELM SOFTFURNISHINGS
OXFORDSHIRE CC,RESOURCES,ICT OPERATIONS & MAI,OTHER COMMUNICATIONS,19/03/2024,11442837619,25,EE TOPUP  VESTA
OXFORDSHIRE CC,CHILDREN'S & EDUCATION,CHILDREN IN CARE NON-STAFFING - SOUTH,TELEPHONE - EQUIPMENT,19/03/2024,11442835897,15,THREE
OXFORDSHIRE CC,CHILDREN'S & EDUCATION,"	LEAVING CARE CITY 1",MATERIALS,19/03/2024,11442835993,480,WWW.ARGOS.CO.UK
OXFORDSHIRE CC,CUSTOMER AND CULTURE,MUSEUM CAFE,MATERIALS,19/03/2024,11442836715,61.23,WWW.SCREWFIX.COM
OXFORDSHIRE CC,CHILDREN'S & EDUCATION,THAME E&A HOME,CATERING PROVISIONS,19/03/2024,11442835627,190.65,TESCO STORES 2038
OXFORDSHIRE CC,CHILDREN'S & EDUCATION,NTS UASC AGENCY,CATERING PROVISIONS,19/03/2024,11442837311,41.9,AMAZON  205-1027672-68
OXFORDSHIRE CC,CUSTOMER AND CULTURE,SCHOOLS FM CATERING AREA 1,MATERIALS,19/03/2024,11442837357,43.55,AMZNMKTPLACE
OXFORDSHIRE CC,CHILDREN'S & EDUCATION,"	MARLBOROUGH","SUPPLIES, STATIONERY AND MATERIALS",19/03/2024,11442836551,71.92,AMAZON  026-9863631-64
OXFORDSHIRE CC,ADULTS,CSS - BANBURY,CATERING PROVISIONS,19/03/2024,11442837177,28.94,AMAZON  204-3660943-59
OXFORDSHIRE CC,ADULTS,CSS - BANBURY,CATERING PROVISIONS,19/03/2024,11442837201,125.56,AMAZON  204-3660943-59
OXFORDSHIRE CC,CHILDREN'S & EDUCATION,NTS UASC AGENCY,CLEANING MATERIALS,19/03/2024,11442837251,28.99,AMAZON  203-2233810-72
OXFORDSHIRE CC,ADULTS,CSS - BANBURY,CATERING PROVISIONS,19/03/2024,11442837181,53.98,AMAZON  204-3660943-59
OXFORDSHIRE CC,ADULTS,CSS - BANBURY,MATERIALS,19/03/2024,11442837209,13.95,AMAZON.CO.UK 0U7W44755
OXFORDSHIRE CC,CHILDREN'S & EDUCATION,"	LOOKED AFTER NORTH",VEHICLE FUEL,19/03/2024,11442837291,15.37,TESCO PAY AT PUMP 3878
OXFORDSHIRE CC,CHILDREN'S & EDUCATION,NTS UASC AGENCY,HEALTH AND SAFETY EQUIPMENT,19/03/2024,11442837335,61.59,AMAZON  204-0646265-48
OXFORDSHIRE CC,CHILDREN'S & EDUCATION,NTS UASC AGENCY,CLEANING MATERIALS,19/03/2024,11442837259,12.89,AMAZON  203-7533590-53
OXFORDSHIRE CC,ENVIRONMENT AND PLACE,WASTE REDUCTION GEN,"PUBLICITY, PROMOTIONS AND ADVERTISEMENT",19/03/2024,11442835651,93.53,FACEBK MTQRYZT8M2
OXFORDSHIRE CC,CUSTOMER AND CULTURE,CENTRAL LIBRARY,HEALTH AND SAFETY EQUIPMENT,19/03/2024,11442837507,4.49,EXTRA
OXFORDSHIRE CC,CUSTOMER AND CULTURE,SCHOOLS FM CATERING AREA 1,MATERIALS,19/03/2024,11442837389,35.75,AMZNMKTPLACE
OXFORDSHIRE CC,CHILDREN'S & EDUCATION,FAMILY SOLUTIONS PLUS NON-STAFF - NORTH,"SUPPLIES, STATIONERY AND MATERIALS",19/03/2024,11442837463,276.51,THE MICK GEORGE GROUP
OXFORDSHIRE CC,CUSTOMER AND CULTURE,CH REFURB PROJECT,EQUIPMENT,19/03/2024,11442836401,54.99,AMAZON  026-7659279-22
OXFORDSHIRE CC,CHILDREN'S & EDUCATION,STRATEGY INNOVATION STAFFING,STAFF AND VOLUNTEER TRAVEL EXPENSES,19/03/2024,11442837529,13.85,TRAINLINE
OXFORDSHIRE CC,ADULTS,CSS WITNEY,CATERING PROVISIONS,19/03/2024,11442837421,36.87,CO-OP GROUP 070582
OXFORDSHIRE CC,CHILDREN'S & EDUCATION,DIDCOT MOVE-ON HOME,OTHER TRANSPORT ARRANGEMENTS,19/03/2024,11442837433,2.7,OXFORD CITY COUNCIL
OXFORDSHIRE CC,ADULTS,CSS - BANBURY,CATERING PROVISIONS,19/03/2024,11442837661,98.94,SAINSBURYS.CO.UK
OXFORDSHIRE CC,CHILDREN'S & EDUCATION,REACTIVE MAINTENANCE,HARDWARE AND CROCKERY,19/03/2024,11442837699,33.82,HOWDENS BCSTR RLO 313
OXFORDSHIRE CC,CHILDREN'S & EDUCATION,"	OCCG GRANT",FURNITURE,19/03/2024,11442837671,-207.92,WWW.THERANGE.CO.UK
OXFORDSHIRE CC,CHILDREN'S & EDUCATION,REACTIVE MAINTENANCE,HARDWARE AND CROCKERY,19/03/2024,11442837707,244.09,HOWDENS BCSTR RLO 313
OXFORDSHIRE CC,ADULTS,CSS - ABINGDON,CATERING PROVISIONS,19/03/2024,11442837681,28.12,TESCO STORES 2008
OXFORDSHIRE CC,CHILDREN'S & EDUCATION,"	LEAVING CARE CITY 1",PAYMENTS TO TRANSPORT OPERATORS,19/03/2024,11442835985,12.2,TRAINLINE
OXFORDSHIRE CC,CHILDREN'S & EDUCATION,40 THE MOORS,CATERING PROVISIONS,19/03/2024,11442835783,158.3,SAINSBURYS.CO.UK
OXFORDSHIRE CC,CUSTOMER AND CULTURE,HARD FM,PREMISES REPAIRS,19/03/2024,11442835409,14.75,CLR WWW.BATHROOMSPARE
OXFORDSHIRE CC,ADULTS,CSS BICESTER,CATERING PROVISIONS,19/03/2024,11442835443,130.87,TESCO STORES 2162
OXFORDSHIRE CC,CHILDREN'S & EDUCATION,REACTIVE MAINTENANCE,HARDWARE AND CROCKERY,19/03/2024,11442837719,-17.4,HOWDENS BCSTR RLO 313
OXFORDSHIRE CC,ADULTS,CSS WITNEY,CATERING PROVISIONS,19/03/2024,11442836793,59.98,AMAZON  204-5995471-19
OXFORDSHIRE CC,CHILDREN'S & EDUCATION,FSP NON-STAFFING - CENTRAL,PAYMENT TO GOVERNMENT DEPARTMENTS,19/03/2024,11442837493,14,GEN REGISTER OFFICE
OXFORDSHIRE CC,CUSTOMER AND CULTURE,LEARNING & ACCESS,ROAD FUND LICENCES AND MOTS,19/03/2024,11442837611,322.5,DVLA VEHICLE TAX
OXFORDSHIRE CC,CUSTOMER AND CULTURE,HARD FM,PREMISES REPAIRS,19/03/2024,11442835413,58.5,WICKES BANBURY
OXFORDSHIRE CC,ADULTS,CSS - BANBURY,CATERING PROVISIONS,19/03/2024,11442837147,33.72,AMAZON  204-1436282-07
OXFORDSHIRE CC,CORPORATE CORE,,STATIONERY,19/03/2024,11442837107,82.68,LYRECO UK LTD
OXFORDSHIRE CC,ADULTS,CSS - BANBURY,CATERING PROVISIONS,19/03/2024,11442837157,49.99,AMAZON  204-3694314-67
OXFORDSHIRE CC,ADULTS,CSS - OXFORD,ENTERTAINMENT EXPENSES,19/03/2024,11442836569,35.7,WWW.BETTER.ORG.UK
OXFORDSHIRE CC,CHILDREN'S & EDUCATION,"	OCCG GRANT",OTHER EXPENSES,19/03/2024,11442836695,90,EB  SUPPORTED ACCOMMOD
OXFORDSHIRE CC,CUSTOMER AND CULTURE,HARD FM,PREMISES REPAIRS,19/03/2024,11442835417,16.77,SCREWFIX DIR LTD
OXFORDSHIRE CC,ADULTS,CSS - BANBURY,CATERING PROVISIONS,19/03/2024,11442837189,45.52,AMAZON  204-3660943-59
OXFORDSHIRE CC,ADULTS,CSS - BANBURY,CATERING PROVISIONS,19/03/2024,11442837195,17.3,AMAZON  204-6753811-36
OXFORDSHIRE CC,CHILDREN'S & EDUCATION,THAME E&A HOME,CATERING PROVISIONS,19/03/2024,11442836311,18.98,AMAZON  206-3328632-78
OXFORDSHIRE CC,CUSTOMER AND CULTURE,CH REFURB PROJECT,HARDWARE AND CROCKERY,19/03/2024,11442836409,30.99,WWW.SCREWFIX.COM
OXFORDSHIRE CC,RESOURCES,DEMOCRATIC SERVICES,STAFF USE OF PUBLIC TRANSPORT,19/03/2024,11442836667,92,WWW.GWR.COM
OXFORDSHIRE CC,CORPORATE CORE,,STATIONERY,19/03/2024,11442837117,49.01,LYRECO UK LTD
OXFORDSHIRE CC,ADULTS,CSS - BANBURY,CATERING PROVISIONS,19/03/2024,11442837165,38.98,AMAZON  204-9763965-29
OXFORDSHIRE CC,CORPORATE CORE,,STATIONERY,19/03/2024,11442837123,65.4,LYRECO UK LTD
OXFORDSHIRE CC,ADULTS,CSS - BANBURY,CATERING PROVISIONS,19/03/2024,11442837169,27.93,AMAZON  204-3660943-59
OXFORDSHIRE CC,CHILDREN'S & EDUCATION,CHILDREN IN CARE NON-STAFFING - CENTRL 2,PAYMENT TO GOVERNMENT DEPARTMENTS,19/03/2024,11442835505,22,OXFORDSHIRE CC WEB1
OXFORDSHIRE CC,CHILDREN'S & EDUCATION,"	LEAVING CARE CITY 1",CLOTHING AND UNIFORMS,19/03/2024,11442835501,25.99,BOOHOO.COM UK LIMITED
OXFORDSHIRE CC,ENVIRONMENT AND PLACE,HWAYS NETWORK MGT,"BOOKS, DVDS AND CDS",19/03/2024,11442835547,203.2,TSO SHOP  ID-7596165
OXFORDSHIRE CC,CUSTOMER AND CULTURE,SCHOOLS FM CATERING AREA 2,CATERING PROVISIONS,19/03/2024,11442836351,49.08,BOOKER LTD - 38584104
OXFORDSHIRE CC,CHILDREN'S & EDUCATION,FSP NON-STAFFING - CENTRAL,OTHER TRANSPORT ARRANGEMENTS,19/03/2024,11442836949,18,OXFORDBUS.CO.UK
OXFORDSHIRE CC,CUSTOMER AND CULTURE,THAME LIBRARY,"NEWSPAPERS, PERIODICALS AND PUBLICATIONS",19/03/2024,11442837023,5.8,SAINSBURYS S/MKTS
OXFORDSHIRE CC,ADULTS,CSS WANTAGE,MATERIALS,19/03/2024,11442837971,5.97,BARNARDS WAY POST OFFI
OXFORDSHIRE CC,CUSTOMER AND CULTURE,HARD FM,PREMISES REPAIRS,19/03/2024,11442836257,52,WICKES BICESTER
OXFORDSHIRE CC,ADULTS,CSS WITNEY,ENTERTAINMENT EXPENSES,19/03/2024,11442836451,9,WWW.BETTER.ORG.UK
OXFORDSHIRE CC,PUBLIC HEALTH,LEAVING CARE CITY 2,PAYMENTS TO TRANSPORT OPERATORS,19/03/2024,11442835291,53.4,TRAINLINE
OXFORDSHIRE CC,CHILDREN'S & EDUCATION,"	LEAVING CARE SOUTH",CATERING PROVISIONS,19/03/2024,11442836961,30,TESCO GIFT CARD
OXFORDSHIRE CC,CHILDREN'S & EDUCATION,NRPF & HOMELESSNESS,HIRE OF ACCOMMODATION AND FACILITIES,19/03/2024,11442836235,97.01,TRAVELODGE
OXFORDSHIRE CC,ADULTS,CSS WITNEY,ENTERTAINMENT EXPENSES,19/03/2024,11442836459,214,WARNER BROS. STUDIOS L
OXFORDSHIRE CC,CUSTOMER AND CULTURE,CENTRAL LIBRARY,MATERIALS,19/03/2024,11442836701,3.99,EXTRA
OXFORDSHIRE CC,ADULTS,THAME E&A HOME,DOMESTIC SUPPLIES,19/03/2024,11442836759,111.94,HADDENHAM GARDEN CEN L
OXFORDSHIRE CC,CHILDREN'S & EDUCATION,40 THE MOORS,CATERING PROVISIONS,19/03/2024,11442835775,18.19,TESCO STORES 2788
OXFORDSHIRE CC,CHILDREN'S & EDUCATION,40 THE MOORS,CATERING PROVISIONS,19/03/2024,11442835767,10.69,TESCO STORES 2788
OXFORDSHIRE CC,CUSTOMER AND CULTURE,HARD FM,PREMISES REPAIRS,19/03/2024,11442836243,16,WICKES BICESTER
OXFORDSHIRE CC,CHILDREN'S & EDUCATION,NTS UASC AGENCY,CLEANING MATERIALS,19/03/2024,11442837267,9.99,AMAZON  203-4925754-71
OXFORDSHIRE CC,CHILDREN'S & EDUCATION,"	LOOKED AFTER NORTH",VEHICLE FUEL,19/03/2024,11442837297,116.74,SHELL UK LTD
OXFORDSHIRE CC,CUSTOMER AND CULTURE,HARD FM,PREMISES REPAIRS,19/03/2024,11442836247,36,WICKES BICESTER
OXFORDSHIRE CC,RESOURCES,LEGAL SERVICES,EDUCATIONAL AND VOCATIONAL TRAINING ,19/03/2024,11442836681,270,LLG ENTERPRISES LTD
OXFORDSHIRE CC,CHILDREN'S & EDUCATION,NTS UASC AGENCY,CLEANING MATERIALS,19/03/2024,11442837273,5.99,AMAZON  203-7299600-02
OXFORDSHIRE CC,CHILDREN'S & EDUCATION,NTS UASC AGENCY,CLEANING MATERIALS,19/03/2024,11442837277,5.94,AMAZON  203-9113123-52
OXFORDSHIRE CC,ADULTS,CARE LEAVERS STAFFING,CATERING PROVISIONS,19/03/2024,11442837323,382.96,AMAZON  204-4656426-50
OXFORDSHIRE CC,CUSTOMER AND CULTURE,SCHOOLS FM CATERING AREA 4,CATERING PROVISIONS,19/03/2024,11442836189,89.28,SAINSBURYS S/MKTS
OXFORDSHIRE CC,ADULTS,CSS WANTAGE,MATERIALS,19/03/2024,11442836813,6.32,AMAZON  203-6288528-54
OXFORDSHIRE CC,CUSTOMER AND CULTURE,"MARKETING, COMMUNICATIONS & ENGAGEMENT","PUBLICITY, PROMOTIONS AND ADVERTISEMENT",19/03/2024,11442836879,77.33,LINKEDIN ADS 100092639
OXFORDSHIRE CC,CUSTOMER AND CULTURE,"MARKETING, COMMUNICATIONS & ENGAGEMENT",IT SOFTWARE,19/03/2024,11442836887,59.49,"POLLFISH, LLC"
OXFORDSHIRE CC,CHILDREN'S & EDUCATION,THAME E&A HOME,CATERING PROVISIONS,19/03/2024,11442835639,4,WAITROSE 206
OXFORDSHIRE CC,CORPORATE CORE,"MARKETING, COMMUNICATIONS & ENGAGEMENT","PUBLICITY, PROMOTIONS AND ADVERTISEMENT",19/03/2024,11442837797,12.64,SNAP INC SNAP SNAP ADS
OXFORDSHIRE CC,CHILDREN'S & EDUCATION,KINGFISHER,CATERING PROVISIONS,19/03/2024,11442837999,100,TESCO GIFT CARD
OXFORDSHIRE CC,ADULTS,CSS WITNEY,CATERING PROVISIONS,19/03/2024,11442836803,82.9,SAINSBURYS.CO.UK
OXFORDSHIRE CC,PUBLIC HEALTH,LEAVING CARE CITY 2,PAYMENTS TO TRANSPORT OPERATORS,19/03/2024,11442835299,53.4,TRAINLINE
OXFORDSHIRE CC,CHILDREN'S & EDUCATION,FSP NON-STAFFING - CENTRAL,CATERING,19/03/2024,11442837949,11.97,BURGER KING THAME
OXFORDSHIRE CC,ADULTS,CSS WALLINGFORD,CATERING PROVISIONS,19/03/2024,11442835233,6.2,WAITROSE 675
OXFORDSHIRE CC,ADULTS,CSS WALLINGFORD,CATERING PROVISIONS,19/03/2024,11442835243,4,WAITROSE 675
OXFORDSHIRE CC,RESOURCES,MOTOR FLEET,MOTOR IF FEES,19/03/2024,11442836999,48.3,SIDNEY H HOOPER & COMP
OXFORDSHIRE CC,ADULTS,CSS - ABINGDON,EQUIPMENT,19/03/2024,11442835309,12.74,AMAZON  205-4651162-55
OXFORDSHIRE CC,CUSTOMER AND CULTURE,SCHOOLS FM CATERING AREA 1,MATERIALS,19/03/2024,11442837367,23.49,AMZNMKTPLACE
OXFORDSHIRE CC,CUSTOMER AND CULTURE,SCHOOLS FM CATERING AREA 1,MATERIALS,19/03/2024,11442837375,65.23,AMZNMKTPLACE
OXFORDSHIRE CC,CUSTOMER AND CULTURE,SCHOOLS FM CATERING AREA 1,CATERING PROVISIONS,19/03/2024,11442837383,56.5,TESCO STORES 4480
OXFORDSHIRE CC,CORPORATE CORE,"MARKETING, COMMUNICATIONS & ENGAGEMENT","PUBLICITY, PROMOTIONS AND ADVERTISEMENT",19/03/2024,11442837787,30.58,SNAP INC SNAP SNAP ADS
OXFORDSHIRE CC,CUSTOMER AND CULTURE,OCCG GRANT,PAYMENTS TO TRANSPORT OPERATORS,19/03/2024,11442838051,20.2,BANBURY SSTP
OXFORDSHIRE CC,CHILDREN'S & EDUCATION,"	OCCG GRANT",ENTERTAINMENT EXPENSES,19/03/2024,11442838115,2,STRATFORD DC
OXFORDSHIRE CC,CUSTOMER AND CULTURE,ABBEY HOUSE,CATERING PROVISIONS,19/03/2024,11442836437,44.05,AMAZON  206-7193127-58
OXFORDSHIRE CC,CUSTOMER AND CULTURE,CENTRAL LIBRARY,PURCHASE OF ADMIN IT EQUIPMENT,19/03/2024,11442836939,9.49,AMAZON  203-1352087-57
OXFORDSHIRE CC,RESOURCES,MOTOR FLEET,MOTOR IF FEES,19/03/2024,11442837007,48.3,SIDNEY H HOOPER & COMP
OXFORDSHIRE CC,ADULTS,CSS - BANBURY,CATERING PROVISIONS,18/03/2024,11434314735,6.25,AMAZON  204-1739977-24
OXFORDSHIRE CC,CORPORATE CORE,,STATIONERY,18/03/2024,11434314699,8.62,LYRECO UK LTD
OXFORDSHIRE CC,CHILDREN'S & EDUCATION,THAME E&A HOME,OTHER EXPENSES,18/03/2024,11434313289,10.99,AMAZON  202-2736255-48
OXFORDSHIRE CC,CHILDREN'S & EDUCATION,THAME E&A HOME,CATERING PROVISIONS,18/03/2024,11434313307,7,SAINSBURYS S/MKTS
OXFORDSHIRE CC,CUSTOMER AND CULTURE,"MARKETING, COMMUNICATIONS & ENGAGEMENT","PUBLICITY, PROMOTIONS AND ADVERTISEMENT",18/03/2024,11434314537,12.34,SNAP INC SNAP SNAP ADS
OXFORDSHIRE CC,CUSTOMER AND CULTURE,"MARKETING, COMMUNICATIONS & ENGAGEMENT","PUBLICITY, PROMOTIONS AND ADVERTISEMENT",18/03/2024,11434314551,6.6,SNAP INC SNAP SNAP ADS
OXFORDSHIRE CC,CHILDREN'S & EDUCATION,THAME E&A HOME,OTHER TRANSPORT ARRANGEMENTS,18/03/2024,11434313293,3.8,WESTGATE OXFORD CAR PA
OXFORDSHIRE CC,CUSTOMER AND CULTURE,"MARKETING, COMMUNICATIONS & ENGAGEMENT","PUBLICITY, PROMOTIONS AND ADVERTISEMENT",18/03/2024,11434314527,13,SNAP INC SNAP SNAP ADS
OXFORDSHIRE CC,CUSTOMER AND CULTURE,"MARKETING, COMMUNICATIONS & ENGAGEMENT","PUBLICITY, PROMOTIONS AND ADVERTISEMENT",18/03/2024,11434314541,12.02,SNAP INC SNAP SNAP ADS
OXFORDSHIRE CC,CHILDREN'S & EDUCATION,THAME E&A HOME,CATERING PROVISIONS,18/03/2024,11434313297,101.48,TESCO STORES 2038
OXFORDSHIRE CC,CUSTOMER AND CULTURE,"MARKETING, COMMUNICATIONS & ENGAGEMENT","PUBLICITY, PROMOTIONS AND ADVERTISEMENT",18/03/2024,11434314529,500,GOOGLE ADS4896546035
OXFORDSHIRE CC,CUSTOMER AND CULTURE,"MARKETING, COMMUNICATIONS & ENGAGEMENT","PUBLICITY, PROMOTIONS AND ADVERTISEMENT",18/03/2024,11434314547,12.4,SNAP INC SNAP SNAP ADS
OXFORDSHIRE CC,ADULTS,CSS - BANBURY,CATERING PROVISIONS,18/03/2024,11434314727,37.05,AMAZON  204-3174388-16
OXFORDSHIRE CC,RESOURCES,THRIVING FAMILY SOTH,STAFF ADVERTISING - GENERAL,18/03/2024,11434313379,"2,223.00",GUARDIAN NEWS & MEDIA
OXFORDSHIRE CC,PUBLIC HEALTH,CHILDREN IN CARE NON-STAFFING - NORTH,VEHICLE FUEL,18/03/2024,11434313399,15.04,TESCO PFS 4267
OXFORDSHIRE CC,CUSTOMER AND CULTURE,THAME LIBRARY,"NEWSPAPERS, PERIODICALS AND PUBLICATIONS",18/03/2024,11434314647,7.5,SAINSBURYS S/MKTS
OXFORDSHIRE CC,CHILDREN'S & EDUCATION,THAME E&A HOME,CLOTHING AND UNIFORMS,18/03/2024,11434313313,66.5,PRIMARK 440
OXFORDSHIRE CC,ADULTS,CSS - OXFORD,CATERING PROVISIONS,18/03/2024,11434313323,3.96,ALDI STORES 775-142
OXFORDSHIRE CC,CHILDREN'S & EDUCATION,40 THE MOORS,CATERING PROVISIONS,18/03/2024,11434313367,7.9,CO-OPERATIVE FOOD
OXFORDSHIRE CC,ADULTS,ASC INCOME TEAM,PAYMENT TO GOVERNMENT DEPARTMENTS,18/03/2024,11434313343,1.5,FIND A WILL
OXFORDSHIRE CC,RESOURCES,OPERATIONAL MANAGERS,STAFF ADVERTISING - GENERAL,18/03/2024,11434313387,"1,111.50",GUARDIAN NEWS & MEDIA
OXFORDSHIRE CC,ADULTS,CSS - OXFORD,CATERING PROVISIONS,18/03/2024,11434313317,61.84,ALDI STORES 775-142
OXFORDSHIRE CC,CUSTOMER AND CULTURE,THAME LIBRARY,"NEWSPAPERS, PERIODICALS AND PUBLICATIONS",18/03/2024,11434314641,5.8,SAINSBURYS S/MKTS
OXFORDSHIRE CC,ADULTS,CSS WITNEY,CATERING PROVISIONS,18/03/2024,11434314355,7.89,AMAZON  204-0436201-00
OXFORDSHIRE CC,ADULTS,CSS WANTAGE,ENTERTAINMENT EXPENSES,18/03/2024,11434314399,10.95,HOLLYWOOD BOWL
OXFORDSHIRE CC,CUSTOMER AND CULTURE,"MARKETING, COMMUNICATIONS & ENGAGEMENT","PUBLICITY, PROMOTIONS AND ADVERTISEMENT",18/03/2024,11434314501,12.11,SNAP INC SNAP SNAP ADS
OXFORDSHIRE CC,CHILDREN'S & EDUCATION,THAME E&A HOME,CATERING PROVISIONS,18/03/2024,11434313177,25.9,SAINSBURYS S/MKTS
OXFORDSHIRE CC,CHILDREN'S & EDUCATION,"	LOOKED AFTER NORTH",OTHER TRANSPORT ARRANGEMENTS,18/03/2024,11434313535,5.8,M6 TOLL
OXFORDSHIRE CC,CUSTOMER AND CULTURE,SAMUELSON HOUSE,OTHER PREMISES RELATED COSTS,18/03/2024,11434313569,5.9,AMAZON  204-6397807-70
OXFORDSHIRE CC,CHILDREN'S & EDUCATION,KINGFISHER,MATERIALS,18/03/2024,11434315213,28.99,TESCO ONLINE
OXFORDSHIRE CC,CHILDREN'S & EDUCATION,"	OCCG GRANT",ENTERTAINMENT EXPENSES,18/03/2024,11434315267,33.1,ORANGEMABEL STRATFORD
OXFORDSHIRE CC,CHILDREN'S & EDUCATION,DIDCOT MOVE-ON HOME,CATERING PROVISIONS,18/03/2024,11434313965,19.02,ASDA STORES
OXFORDSHIRE CC,CHILDREN'S & EDUCATION,"	LOOKED AFTER CITY 2",OTHER TRANSPORT ARRANGEMENTS,18/03/2024,11434314083,2,OXFORD BUS COMPANY
OXFORDSHIRE CC,PUBLIC HEALTH,WITNEY,CATERING PROVISIONS,18/03/2024,11434312999,5.72,AMAZON  205-1585818-61
OXFORDSHIRE CC,ADULTS,CSS WITNEY,MATERIALS,18/03/2024,11434314373,9,AMAZON.CO.UK RF4AK6PZ5
OXFORDSHIRE CC,CHILDREN'S & EDUCATION,"	LEAVING CARE CITY 2",OTHER EXPENSES,18/03/2024,11434313185,-41.07,BIG YELLOW - OXFORD
OXFORDSHIRE CC,CHILDREN'S & EDUCATION,WITNEY,CATERING PROVISIONS,18/03/2024,11434314783,46.38,LIDL GB WITNEY
OXFORDSHIRE CC,CHILDREN'S & EDUCATION,FAMILY SOLUTIONS PLUS NON-STAFF - NORTH,PAYMENTS TO TRANSPORT OPERATORS,18/03/2024,11434314809,17.82,TRAINLINE
OXFORDSHIRE CC,CUSTOMER AND CULTURE,HARD FM,PREMISES REPAIRS,18/03/2024,11434313673,11.99,SCREWFIX DIR LTD
OXFORDSHIRE CC,CHILDREN'S & EDUCATION,"	LOOKED AFTER NORTH",OTHER TRANSPORT ARRANGEMENTS,18/03/2024,11434313543,5.8,M6 TOLL
OXFORDSHIRE CC,CHILDREN'S & EDUCATION,WITNEY,CATERING PROVISIONS,18/03/2024,11434314791,7.25,LIDL GB WITNEY
OXFORDSHIRE CC,ADULTS,EYNSHAM,ENTERTAINMENT EXPENSES,18/03/2024,11434315007,80.73,ABSOLUTELY KARTING (MA
OXFORDSHIRE CC,CHILDREN'S & EDUCATION,QUALITY ASSURANCE NORTH TEAM,HIRE OF ACCOMMODATION AND FACILITIES,18/03/2024,11434313973,79,BKG HOTEL AT BOOKING.C
OXFORDSHIRE CC,CUSTOMER AND CULTURE,SCHOOLS FM CATERING AREA 2,CATERING PROVISIONS,18/03/2024,11434314007,11.14,SAINSBURYS S/MKTS
OXFORDSHIRE CC,CHILDREN'S & EDUCATION,BULLINGDON PRISON,"BOOKS, DVDS AND CDS",18/03/2024,11434315141,-15.4,AMAZON  204-4422908-24
OXFORDSHIRE CC,CHILDREN'S & EDUCATION,FSP NON-STAFFING - CENTRAL,OTHER MISC INC,18/03/2024,11434315173,35,CITIZENCARD
OXFORDSHIRE CC,ADULTS,CSS WALLINGFORD,CATERING PROVISIONS,18/03/2024,11434312927,47.47,AMAZON  026-4543864-67
OXFORDSHIRE CC,CHILDREN'S & EDUCATION,MANAGEMENT RECHARGES,HIRED AND CONTRACTED SERVICES,18/03/2024,11434312969,9.99,AMAZON  204-9637155-34
OXFORDSHIRE CC,PUBLIC HEALTH,DIDCOT MOVE-ON HOME,CATERING PROVISIONS,18/03/2024,11434313005,4.88,AMAZON  205-7524087-20
OXFORDSHIRE CC,ADULTS,CSS WITNEY,CATERING PROVISIONS,18/03/2024,11434314361,11.88,AMAZON  204-0979713-74
OXFORDSHIRE CC,ADULTS,CSS WITNEY,MATERIALS,18/03/2024,11434314381,22.74,AMAZON.CO.UK 6I2C06JH5
OXFORDSHIRE CC,ADULTS,CSS WITNEY,CATERING PROVISIONS,18/03/2024,11434314365,14.95,AMAZON  204-4217922-21
OXFORDSHIRE CC,ADULTS,CSS WITNEY,CATERING PROVISIONS,18/03/2024,11434314387,13.5,AMAZON  204-4136547-07
OXFORDSHIRE CC,ADULTS,CSS WITNEY,CATERING PROVISIONS,18/03/2024,11434314389,31.68,AMAZON  204-4170954-91
OXFORDSHIRE CC,CHILDREN'S & EDUCATION,THAME E&A HOME,OTHER EXPENSES,18/03/2024,11434313299,9.58,AMAZON  202-2736255-48
OXFORDSHIRE CC,CUSTOMER AND CULTURE,"MARKETING, COMMUNICATIONS & ENGAGEMENT","PUBLICITY, PROMOTIONS AND ADVERTISEMENT",18/03/2024,11434314533,12.35,SNAP INC SNAP SNAP ADS
OXFORDSHIRE CC,CUSTOMER AND CULTURE,"MARKETING, COMMUNICATIONS & ENGAGEMENT","PUBLICITY, PROMOTIONS AND ADVERTISEMENT",18/03/2024,11434314549,12.41,SNAP INC SNAP SNAP ADS
OXFORDSHIRE CC,CORPORATE CORE,,STATIONERY,18/03/2024,11434314707,-9.98,LYRECO UK LTD
OXFORDSHIRE CC,ADULTS,CSS WITNEY,CATERING PROVISIONS,18/03/2024,11434314341,68,AMAZON  204-9151123-49
OXFORDSHIRE CC,CHILDREN'S & EDUCATION,STRATEGY INNOVATION STAFFING,STAFF AND VOLUNTEER TRAVEL EXPENSES,18/03/2024,11434314875,82.53,TRAINLINE
OXFORDSHIRE CC,PUBLIC HEALTH,PUBLIC HEALTH GENERA,EQUIPMENT,18/03/2024,11434314169,197.98,SP COUNTY
OXFORDSHIRE CC,CUSTOMER AND CULTURE,BOTLEY LIBRARY,"SUPPLIES, STATIONERY AND MATERIALS",18/03/2024,11434313145,13.5,CO OPERATIVE FOOD
OXFORDSHIRE CC,CUSTOMER AND CULTURE,CH REFURB PROJECT,EQUIPMENT,18/03/2024,11434314117,5.49,AMAZON  026-5925443-28
OXFORDSHIRE CC,ENVIRONMENT AND PLACE,OCCG GRANT,CATERING PROVISIONS,18/03/2024,11434314151,2.95,TESCO STORES 4377
OXFORDSHIRE CC,ADULTS,THAME E&A HOME,DOMESTIC SUPPLIES,18/03/2024,11434314297,8,POUNDLAND LTD - 2035
OXFORDSHIRE CC,ADULTS,CSS WITNEY,CATERING PROVISIONS,18/03/2024,11434314329,41.92,AMAZON  204-4045702-57
OXFORDSHIRE CC,ADULTS,CSS WITNEY,MATERIALS,18/03/2024,11434314345,26.6,AMAZON.CO.UK I94RD7JX5
OXFORDSHIRE CC,CUSTOMER AND CULTURE,SCHOOLS FM CATERING AREA 4,CATERING PROVISIONS,18/03/2024,11434313809,72.5,ASDA GROCERIES ONLINE
OXFORDSHIRE CC,ADULTS,THAME E&A HOME,DOMESTIC SUPPLIES,18/03/2024,11434314303,11.75,B&M 236 - COWLEY
OXFORDSHIRE CC,ADULTS,CSS WITNEY,CATERING PROVISIONS,18/03/2024,11434314335,16.93,AMAZON  204-6189156-55
OXFORDSHIRE CC,CHILDREN'S & EDUCATION,EYNSHAM,OTHER COMMUNICATIONS,18/03/2024,11434312975,10.99,NETFLIX.COM
OXFORDSHIRE CC,CHILDREN'S & EDUCATION,EYNSHAM,CATERING,18/03/2024,11434312977,147.11,TESCO STORES 2008
OXFORDSHIRE CC,ADULTS,CSS WITNEY,CATERING PROVISIONS,18/03/2024,11434314349,17.38,AMAZON  204-0725995-21
OXFORDSHIRE CC,ADULTS,CSS WANTAGE,ENTERTAINMENT EXPENSES,18/03/2024,11434314403,10.95,HOLLYWOOD BOWL
OXFORDSHIRE CC,CHILDREN'S & EDUCATION,SOUTH OXFORDSHIRE TEAM,HIRE OF ACCOMMODATION AND FACILITIES,18/03/2024,11434314423,123.49,TRAVELODGE
OXFORDSHIRE CC,CHILDREN'S & EDUCATION,EYNSHAM,CATERING PROVISIONS,18/03/2024,11434313445,5.5,MARKS&SPENCER PLC SACA
OXFORDSHIRE CC,CHILDREN'S & EDUCATION,"	OCCG GRANT",CATERING PROVISIONS,18/03/2024,11434313519,8.9,TESCO STORES 2990
OXFORDSHIRE CC,CHILDREN'S & EDUCATION,40 THE MOORS,CATERING,18/03/2024,11434314865,6.55,SAINSBURYS S/MKTS
OXFORDSHIRE CC,CHILDREN'S & EDUCATION,KINGFISHER,PAYMENTS TO TRANSPORT OPERATORS,18/03/2024,11434315219,-88,TRAINLINE
OXFORDSHIRE CC,CHILDREN'S & EDUCATION,"	OCCG GRANT",ENTERTAINMENT EXPENSES,18/03/2024,11434315275,21,DANTER ATTRACTIONS LIM
OXFORDSHIRE CC,ADULTS,CSS WITNEY,CATERING PROVISIONS,18/03/2024,11434314321,12.51,AMAZON  204-2032050-11
OXFORDSHIRE CC,CHILDREN'S & EDUCATION,EYNSHAM,CATERING,18/03/2024,11434312983,15,MAYFIELDEGGS
OXFORDSHIRE CC,ADULTS,CSS WITNEY,CATERING PROVISIONS,18/03/2024,11434314351,50.8,AMAZON  204-1532634-46
OXFORDSHIRE CC,ADULTS,CSS WITNEY,CATERING PROVISIONS,18/03/2024,11434314391,3.59,AMAZON  204-5383562-53
OXFORDSHIRE CC,CUSTOMER AND CULTURE,"MARKETING, COMMUNICATIONS & ENGAGEMENT","PUBLICITY, PROMOTIONS AND ADVERTISEMENT",18/03/2024,11434314497,12.31,SNAP INC SNAP SNAP ADS
OXFORDSHIRE CC,CHILDREN'S & EDUCATION,THAME E&A HOME,CATERING PROVISIONS,18/03/2024,11434313173,6.4,MARTIN MCCOLL
OXFORDSHIRE CC,CHILDREN'S & EDUCATION,EYNSHAM,MATERIALS,18/03/2024,11434313449,25.47,WITNEY SPORTS DIRECT
OXFORDSHIRE CC,CUSTOMER AND CULTURE,SAMUELSON HOUSE,OTHER PREMISES RELATED COSTS,18/03/2024,11434313561,18,AMAZON  204-1020642-29
OXFORDSHIRE CC,ADULTS,EYNSHAM,OTHER TRANSPORT ARRANGEMENTS,18/03/2024,11434314997,4.4,WESTGATE OXFORD CAR PA
OXFORDSHIRE CC,CHILDREN'S & EDUCATION,"	LEAVING CARE CITY 2",FURNITURE,18/03/2024,11434315023,254,PROCOOK
OXFORDSHIRE CC,CHILDREN'S & EDUCATION,"	OCCG GRANT",ENTERTAINMENT EXPENSES,18/03/2024,11434315259,24,SHAKESPAW CAT CAFE
OXFORDSHIRE CC,CUSTOMER AND CULTURE,"MARKETING, COMMUNICATIONS & ENGAGEMENT","PUBLICITY, PROMOTIONS AND ADVERTISEMENT",18/03/2024,11434314521,30.1,SNAP INC SNAP SNAP ADS
OXFORDSHIRE CC,ADULTS,EYNSHAM,CATERING,18/03/2024,11434315001,9.5,COSTA COFFEE 43010835
OXFORDSHIRE CC,CHILDREN'S & EDUCATION,"	LEAVING CARE CITY 2",FURNITURE,18/03/2024,11434315031,279,SP DUSK.COM
OXFORDSHIRE CC,ENVIRONMENT AND PLACE,TVERC,CATERING,18/03/2024,11434314939,312,ZETTLE_ SOPH?SLOAFS
OXFORDSHIRE CC,CHILDREN'S & EDUCATION,THAME E&A HOME,CATERING PROVISIONS,18/03/2024,11434313917,13.49,AMAZON  206-1961823-72
OXFORDSHIRE CC,CHILDREN'S & EDUCATION,DIDCOT MOVE-ON HOME,CATERING PROVISIONS,18/03/2024,11434313947,13.15,CO-OP FOOD
OXFORDSHIRE CC,ADULTS,CSS WALLINGFORD,STATIONERY,18/03/2024,11434312919,23.48,AMAZON  026-7470958-92
OXFORDSHIRE CC,PUBLIC HEALTH,CHILDREN IN CARE NON-STAFFING - SOUTH,PAYMENT TO GOVERNMENT DEPARTMENTS,18/03/2024,11434312953,64,HM PASSPORT OFFICE
OXFORDSHIRE CC,ADULTS,CSS - OXFORD,DAY ACTIVITIES,18/03/2024,11434313079,18.24,ALDI STORES 775-142
OXFORDSHIRE CC,CUSTOMER AND CULTURE,"MARKETING, COMMUNICATIONS & ENGAGEMENT","PUBLICITY, PROMOTIONS AND ADVERTISEMENT",18/03/2024,11434314509,12.47,SNAP INC SNAP SNAP ADS
OXFORDSHIRE CC,CHILDREN'S & EDUCATION,40 THE MOORS,OTHER TRANSPORT ARRANGEMENTS,18/03/2024,11434313737,2.2,UNION STREET CAR PARK
OXFORDSHIRE CC,CHILDREN'S & EDUCATION,THAME E&A HOME,OTHER TRANSPORT ARRANGEMENTS,18/03/2024,11434315087,4.4,OXPENS CAR PARK
OXFORDSHIRE CC,CHILDREN'S & EDUCATION,THAME E&A HOME,CATERING PROVISIONS,18/03/2024,11434315107,6.4,SAINSBURYS S/MKTS
OXFORDSHIRE CC,CHILDREN'S & EDUCATION,FAMILY SOLUTIONS PLUS NON-STAFF - NORTH,PAYMENTS TO TRANSPORT OPERATORS,18/03/2024,11434314913,52.57,TRAINLINE
OXFORDSHIRE CC,CHILDREN'S & EDUCATION,THAME E&A HOME,VEHICLE FUEL,18/03/2024,11434314949,3.5,ESSO THAME
OXFORDSHIRE CC,CUSTOMER AND CULTURE,REACTIVE MAINTENANCE,STATIONERY,18/03/2024,11434314981,102,BROTHER.CO.UK 93009991
OXFORDSHIRE CC,CHILDREN'S & EDUCATION,THAME E&A HOME,DAY ACTIVITIES,18/03/2024,11434313887,2.8,MARTIN MCCOLL
OXFORDSHIRE CC,CHILDREN'S & EDUCATION,DIDCOT MOVE-ON HOME,MATERIALS,18/03/2024,11434313953,47.92,ROBERT DYAS ECOM
OXFORDSHIRE CC,CUSTOMER AND CULTURE,CH REFURB PROJECT,EQUIPMENT,18/03/2024,11434314099,9.99,AMAZON  026-8419305-99
OXFORDSHIRE CC,CHILDREN'S & EDUCATION,DEPUTY DIRECTOR &MAN,PROFESSIONAL SUBSCRIPTIONS,18/03/2024,11434314223,594,WWW.ADASS.ORG.UK
OXFORDSHIRE CC,CUSTOMER AND CULTURE,HARD FM,PREMISES REPAIRS,18/03/2024,11434313117,-25.9,AMAZON  204-1922621-64
OXFORDSHIRE CC,ADULTS,CSS - ABINGDON,CATERING PROVISIONS,18/03/2024,11434313095,10.47,AMAZON  206-1047044-76
OXFORDSHIRE CC,CHILDREN'S & EDUCATION,CHILDREN IN CARE NON-STAFFING - NORTH,PAYMENT TO GOVERNMENT DEPARTMENTS,18/03/2024,11434313127,-11,GEN REGISTER OFFICE
OXFORDSHIRE CC,CHILDREN'S & EDUCATION,DIDCOT MOVE-ON HOME,CATERING PROVISIONS,18/03/2024,11434313691,9.93,SAINSBURYS S/MKTS
OXFORDSHIRE CC,CHILDREN'S & EDUCATION,"	C&I BASE FITZHARRYS","BOOKS, DVDS AND CDS",18/03/2024,11434314857,8.59,AMAZON  205-5658318-53
OXFORDSHIRE CC,CHILDREN'S & EDUCATION,NTS UASC AGENCY,CATERING PROVISIONS,18/03/2024,11434314957,19.49,AMAZON  026-4503959-45
OXFORDSHIRE CC,CHILDREN'S & EDUCATION,"	LEAVING CARE NORTH",HOSPITALITY EXPENSES,18/03/2024,11434315189,22.4,SEAGATE HOTEL
OXFORDSHIRE CC,ADULTS,CSS WANTAGE,MATERIALS,18/03/2024,11434315209,5.85,BARNARDS WAY POST OFFI
OXFORDSHIRE CC,CUSTOMER AND CULTURE,"MARKETING, COMMUNICATIONS & ENGAGEMENT","PUBLICITY, PROMOTIONS AND ADVERTISEMENT",18/03/2024,11434314515,500,FACEBK  XCP9XYK9Z2
OXFORDSHIRE CC,CUSTOMER AND CULTURE,CH REFURB PROJECT,EQUIPMENT,18/03/2024,11434314121,6.99,AMAZON  026-5925443-28
OXFORDSHIRE CC,ADULTS,CSS - ABINGDON,CATERING PROVISIONS,18/03/2024,11434313105,6.99,AMAZON  206-7255323-79
OXFORDSHIRE CC,ADULTS,CSS - OXFORD,CATERING PROVISIONS,18/03/2024,11434313133,14.12,ALDI STORES 775-142
OXFORDSHIRE CC,CUSTOMER AND CULTURE,HARD FM,PREMISES REPAIRS,18/03/2024,11434313109,25.44,B & Q 1062
OXFORDSHIRE CC,CHILDREN'S & EDUCATION,STRATEGY INNOVATION STAFFING,STAFF AND VOLUNTEER TRAVEL EXPENSES,18/03/2024,11434314871,85.18,TRAINLINE
OXFORDSHIRE CC,CUSTOMER AND CULTURE,LEARNING & ACCESS,STATIONERY,18/03/2024,11434314893,9.95,AMAZON  202-6093589-98
OXFORDSHIRE CC,CHILDREN'S & EDUCATION,THAME E&A HOME,DAY ACTIVITIES,18/03/2024,11434313905,2,EDEN CENTRE
OXFORDSHIRE CC,PUBLIC HEALTH,PUBLIC HEALTH GENERA,EQUIPMENT,18/03/2024,11434314165,395.96,SP COUNTY
OXFORDSHIRE CC,CHILDREN'S & EDUCATION,FAMILY SOLUTIONS PLUS NON-STAFF - NORTH,PAYMENTS TO TRANSPORT OPERATORS,18/03/2024,11434314813,17.92,TRAINLINE
OXFORDSHIRE CC,CHILDREN'S & EDUCATION,40 THE MOORS,CATERING PROVISIONS,18/03/2024,11434313743,91.6,TESCO STORES 2990
OXFORDSHIRE CC,CHILDREN'S & EDUCATION,"	LEAVING CARE CITY 2",FURNITURE,18/03/2024,11434315033,74,SILENTNIGHT GROUP
OXFORDSHIRE CC,CHILDREN'S & EDUCATION,THAME E&A HOME,CATERING,18/03/2024,11434315091,10.7,VINYS CAFE
OXFORDSHIRE CC,CHILDREN'S & EDUCATION,"	LEAVING CARE SOUTH",OTHER TRANSPORT ARRANGEMENTS,18/03/2024,11434313859,19.5,OXFORDBUS.CO.UK
OXFORDSHIRE CC,CUSTOMER AND CULTURE,CH REFURB PROJECT,EQUIPMENT,18/03/2024,11434314109,10.98,AMAZON  026-8906635-24
OXFORDSHIRE CC,CUSTOMER AND CULTURE,CHAIRMANS ALLOWANCE,CATERING PROVISIONS,18/03/2024,11434314197,35.4,SAINSBURY'S S/MKT
OXFORDSHIRE CC,PUBLIC HEALTH,WITNEY,CATERING PROVISIONS,18/03/2024,11434313009,35.43,SAINSBURYS S/MKTS
OXFORDSHIRE CC,CHILDREN'S & EDUCATION,KINGFISHER,EDUCATIONAL AND VOCATIONAL TRAINING ,18/03/2024,11434313045,975,UNITAS.UK.NET
OXFORDSHIRE CC,CHILDREN'S & EDUCATION,"	DISABILITIES TEAM-C","SUPPLIES, STATIONERY AND MATERIALS",18/03/2024,11434313233,273,WASTE KING LIMTED
OXFORDSHIRE CC,CHILDREN'S & EDUCATION,"	DISABILITIES TEAM-C",GENERAL REFUSE COLLECTION AND DISPOSAL,18/03/2024,11434313207,273,WASTE KING LIMTED
OXFORDSHIRE CC,ADULTS,PAUSE PROGRAMME,OTHER TRANSPORT ARRANGEMENTS,18/03/2024,11434313491,24.5,STAGECOACH SERVICES
OXFORDSHIRE CC,CHILDREN'S & EDUCATION,"	LOOKED AFTER NORTH",OTHER TRANSPORT ARRANGEMENTS,18/03/2024,11434313547,5.8,M6 TOLL
OXFORDSHIRE CC,CHILDREN'S & EDUCATION,FSP NON-STAFFING - CENTRAL,CATERING PROVISIONS,18/03/2024,11434313595,8.51,TESCO STORES 2994
OXFORDSHIRE CC,CHILDREN'S & EDUCATION,WITNEY,CATERING PROVISIONS,18/03/2024,11434314793,3.48,LIDL GB WITNEY
OXFORDSHIRE CC,CHILDREN'S & EDUCATION,FAMILY SOLUTIONS PLUS NON-STAFF - NORTH,PAYMENTS TO TRANSPORT OPERATORS,18/03/2024,11434314801,36.88,TRAINLINE
OXFORDSHIRE CC,CHILDREN'S & EDUCATION,HOUSE PROJECT,TRAINING RELATED EXPENDITURE,18/03/2024,11434315015,90,EB  SUPPORTED ACCOMMOD
OXFORDSHIRE CC,CHILDREN'S & EDUCATION,"	LEAVING CARE CITY 2",MEDICAL AND COUNSELLING FEES,18/03/2024,11434315037,35.7,DIDCOT DENTAL ACS CTR
OXFORDSHIRE CC,CHILDREN'S & EDUCATION,THAME E&A HOME,CATERING,18/03/2024,11434315097,5,VINYS CAFE
OXFORDSHIRE CC,CUSTOMER AND CULTURE,COWLEY LIBRARY,"NEWSPAPERS, PERIODICALS AND PUBLICATIONS",18/03/2024,11434315125,174.2,KELBURNE ROAD NEWS
OXFORDSHIRE CC,CHILDREN'S & EDUCATION,"	LEAVING CARE CITY 2",FIXTURES & FITTINGS,18/03/2024,11434315041,35.95,WWW.ARGOS.CO.UK
OXFORDSHIRE CC,CHILDREN'S & EDUCATION,FAMILY SOLUTIONS PLUS NON-STAFF - NORTH,PAYMENTS TO TRANSPORT OPERATORS,18/03/2024,11434314921,26.28,TRAINLINE
OXFORDSHIRE CC,CHILDREN'S & EDUCATION,THAME E&A HOME,DAY ACTIVITIES,18/03/2024,11434313895,2.49,SAINSBURYS S/MKTS
OXFORDSHIRE CC,CHILDREN'S & EDUCATION,"	LEAVING CARE CITY 2",CLOTHING AND UNIFORMS,18/03/2024,11434313983,75,PRIMARK 440
OXFORDSHIRE CC,CHILDREN'S & EDUCATION,DIDCOT MOVE-ON HOME,CATERING PROVISIONS,18/03/2024,11434313959,20.43,SAINSBURYS S/MKTS
OXFORDSHIRE CC,CHILDREN'S & EDUCATION,"	LEAVING CARE CITY 2",CATERING,18/03/2024,11434313985,8.75,CAFE G S
OXFORDSHIRE CC,CHILDREN'S & EDUCATION,"	LEAVING CARE NORTH",HOSPITALITY EXPENSES,18/03/2024,11434315193,17.87,SEAGATE HOTEL
OXFORDSHIRE CC,ADULTS,CSS WITNEY,MATERIALS,18/03/2024,11434314367,41.96,AMAZON.CO.UK BC3ZK09P5
OXFORDSHIRE CC,CUSTOMER AND CULTURE,"MARKETING, COMMUNICATIONS & ENGAGEMENT","PUBLICITY, PROMOTIONS AND ADVERTISEMENT",18/03/2024,11434314519,12.14,SNAP INC SNAP SNAP ADS
OXFORDSHIRE CC,CUSTOMER AND CULTURE,WITNEY LIBRARY,"NEWSPAPERS, PERIODICALS AND PUBLICATIONS",18/03/2024,11434313747,13.05,PPOINT_ NEWSLINK WITNE
OXFORDSHIRE CC,CHILDREN'S & EDUCATION,THAME E&A HOME,CATERING PROVISIONS,18/03/2024,11434313761,7.85,ASDA SUPERSTORE
OXFORDSHIRE CC,CHILDREN'S & EDUCATION,THAME E&A HOME,SUBSCRIPTIONS,18/03/2024,11434315079,28.5,FUSION LIFESTYLE
OXFORDSHIRE CC,CHILDREN'S & EDUCATION,THAME E&A HOME,CATERING,18/03/2024,11434315103,2.5,VINYS CAFE
OXFORDSHIRE CC,CUSTOMER AND CULTURE,COWLEY LIBRARY,CATERING PROVISIONS,18/03/2024,11434315133,15.7,CO-OPERATIVE FOOD
OXFORDSHIRE CC,ENVIRONMENT AND PLACE,TVERC,CATERING,18/03/2024,11434314933,312,ZETTLE_ SOPH?SLOAFS
OXFORDSHIRE CC,ADULTS,CSS - ABINGDON,MATERIALS,18/03/2024,11434314963,35,TIMPSON LTD
OXFORDSHIRE CC,ADULTS,CSS BICESTER,DOMESTIC SUPPLIES,18/03/2024,11434315197,35.94,ISHOP
OXFORDSHIRE CC,CUSTOMER AND CULTURE,CH REFURB PROJECT,EQUIPMENT,18/03/2024,11434314111,20.53,AMAZON  026-1202171-31
OXFORDSHIRE CC,PUBLIC HEALTH,PUBLIC HEALTH GENERAL,EQUIPMENT,15/03/2024,9627274482,35.97,AMAZON  206-8035862-45
OXFORDSHIRE CC,CORPORATE CORE,,STATIONERY,15/03/2024,9627274630,57.49,LYRECO UK LTD
OXFORDSHIRE CC,CUSTOMER AND CULTURE,WALLINGFORD LIBRARY,CATERING PROVISIONS,15/03/2024,9627274668,1.55,WAITROSE 675
OXFORDSHIRE CC,CUSTOMER AND CULTURE,SCHOOLS FM CATERING AREA 4,IT SOFTWARE,15/03/2024,9627273614,264,SP FALCONFOODSERVICE
OXFORDSHIRE CC,CHILDREN'S & EDUCATION,THAME E&A HOME,CATERING PROVISIONS,15/03/2024,9627274030,7.5,WAITROSE 206
OXFORDSHIRE CC,ENVIRONMENT AND PLACE,NAT TRAILS GENERAL,CATERING PROVISIONS,15/03/2024,9627274062,2.15,SAINSBURYS S/MKTS
OXFORDSHIRE CC,CHILDREN'S & EDUCATION,"	RIVERSIDE CENTRE",CLEANING MATERIALS,15/03/2024,9627274196,4,CO-OPERATIVE FOOD
OXFORDSHIRE CC,CHILDREN'S & EDUCATION,40 THE MOORS,CATERING,15/03/2024,9627274348,8.35,COSTA COFFEE
OXFORDSHIRE CC,CUSTOMER AND CULTURE,"MARKETING, COMMUNICATIONS & ENGAGEMENT","PUBLICITY, PROMOTIONS AND ADVERTISEMENT",15/03/2024,9627274380,12.37,SNAP INC SNAP SNAP ADS
OXFORDSHIRE CC,ADULTS,CSS WANTAGE,MATERIALS,15/03/2024,9627274298,12.8,AMAZON  203-0641808-48
OXFORDSHIRE CC,CHILDREN'S & EDUCATION,"	LEAVING CARE SOUTH",MATERIALS,15/03/2024,9627273938,56,WWW.ARGOS.CO.UK
OXFORDSHIRE CC,CHILDREN'S & EDUCATION,"	LEAVING CARE NORTH",VEHICLE EQUIPMENT AND EXPENSES - OTHER,15/03/2024,9627274012,72,TOWCESTER HAND CAR WAS
OXFORDSHIRE CC,RESOURCES,R & A STAFF & OPS,PAYMENTS TO TRANSPORT OPERATORS,15/03/2024,9627273730,4,OXFORD BUS COMPANY
OXFORDSHIRE CC,ADULTS,CSS - OXFORD,ENTERTAINMENT EXPENSES,15/03/2024,9627274150,5.95,WWW.BETTER.ORG.UK
OXFORDSHIRE CC,CHILDREN'S & EDUCATION,KINGFISHER,HIRE OF ACCOMMODATION AND FACILITIES,15/03/2024,9627275100,99,PREMIER INN
OXFORDSHIRE CC,ADULTS,CSS - OXFORD,CATERING PROVISIONS,15/03/2024,9627273552,3.62,ALDI STORES 775-142
OXFORDSHIRE CC,CUSTOMER AND CULTURE,CATERING MANAGEMENT SOFT FM,MATERIALS,15/03/2024,9627274930,74.38,NISBETS LTD
OXFORDSHIRE CC,CHILDREN'S & EDUCATION,UASC 16&17,SUBSCRIPTIONS,15/03/2024,9627274964,35.99,PUREGYM LIMITED
OXFORDSHIRE CC,ADULTS,CSS - BANBURY,VEHICLE FUEL,15/03/2024,9627274944,70.53,TESCO PFS 3920
OXFORDSHIRE CC,ADULTS,CSS BICESTER,STATIONERY,15/03/2024,9627275068,8.95,AMAZON  202-6070580-13
OXFORDSHIRE CC,CHILDREN'S & EDUCATION,40 THE MOORS,CATERING PROVISIONS,15/03/2024,9627273722,3.7,TESCO STORES 2788
OXFORDSHIRE CC,CUSTOMER AND CULTURE,HARD FM,PREMISES REPAIRS,15/03/2024,9627273570,47.76,SAINSBURYS PETROL
OXFORDSHIRE CC,CHILDREN'S & EDUCATION,"	LOOKED AFTER CITY 2",OTHER TRANSPORT ARRANGEMENTS,15/03/2024,9627274044,2,OXFORD BUS COMPANY
OXFORDSHIRE CC,CHILDREN'S & EDUCATION,"	OCCG GRANT",CLOTHING AND UNIFORMS,15/03/2024,9627275136,88,PRIMARK 693
OXFORDSHIRE CC,ADULTS,CSS WANTAGE,MATERIALS,15/03/2024,9627274314,7.28,AMAZON  203-3131249-88
OXFORDSHIRE CC,CORPORATE CORE,,STATIONERY,15/03/2024,9627274614,29.81,LYRECO UK LTD
OXFORDSHIRE CC,PUBLIC HEALTH,CHILDREN IN CARE NON-STAFFING - SOUTH,PAYMENT TO GOVERNMENT DEPARTMENTS,15/03/2024,9627273532,29,HM PASSPORT OFFICE
OXFORDSHIRE CC,ADULTS,CSS - ABINGDON,CATERING PROVISIONS,15/03/2024,9627273558,11.85,TESCO STORES 2008
OXFORDSHIRE CC,CUSTOMER AND CULTURE,SCHOOLS FM CATERING AREA 2,CATERING PROVISIONS,15/03/2024,9627273646,30.3,SAINSBURYS S/MKTS
OXFORDSHIRE CC,CUSTOMER AND CULTURE,COMMUNITY PARTNERSHIP TEAM,CATERING PROVISIONS,15/03/2024,9627273676,17.2,CO-OP FOOD
OXFORDSHIRE CC,CHILDREN'S & EDUCATION,"	LEAVING CARE SOUTH",VEHICLE FUEL,15/03/2024,9627273726,18.58,SAINSBURYS PETROL
OXFORDSHIRE CC,ADULTS,CSS - ABINGDON,CATERING PROVISIONS,15/03/2024,9627273562,10.6,TESCO STORES 6519
OXFORDSHIRE CC,CUSTOMER AND CULTURE,"MARKETING, COMMUNICATIONS & ENGAGEMENT","PUBLICITY, PROMOTIONS AND ADVERTISEMENT",15/03/2024,9627274376,500,FACEBK  RCMNSZB9Z2
OXFORDSHIRE CC,ADULTS,CSS WITNEY,CATERING PROVISIONS,15/03/2024,9627274288,35.7,MILK AND MORE (RECUR
OXFORDSHIRE CC,CORPORATE CORE,,STATIONERY,15/03/2024,9627274620,300.82,LYRECO UK LTD
OXFORDSHIRE CC,ADULTS,CSS - BANBURY,CATERING PROVISIONS,15/03/2024,9627274658,157.95,AMAZON  204-5278676-12
OXFORDSHIRE CC,ADULTS,CSS WANTAGE,ENTERTAINMENT EXPENSES,15/03/2024,9627274302,9.9,WWW.BETTER.ORG.UK
OXFORDSHIRE CC,CHILDREN'S & EDUCATION,WITNEY,CATERING PROVISIONS,15/03/2024,9627273948,12.55,SAINSBURYS S/MKTS
OXFORDSHIRE CC,CHILDREN'S & EDUCATION,FAMILY SOLUTIONS PLUS NON-STAFF � SOUTH,PAYMENTS TO TRANSPORT OPERATORS,15/03/2024,9627273986,42.69,TRAINLINE
OXFORDSHIRE CC,CUSTOMER AND CULTURE,HARD FM,PREMISES REPAIRS,15/03/2024,9627274016,"2,022.82",EUROLOOS
OXFORDSHIRE CC,CHILDREN'S & EDUCATION,"	OCCG GRANT",CLOTHING AND UNIFORMS,15/03/2024,9627275144,100.1,PRIMARK 693
OXFORDSHIRE CC,CUSTOMER AND CULTURE,HOLTON SITE,CATERING PROVISIONS,15/03/2024,9627273632,17.5,MILK AND MORE (RECUR
OXFORDSHIRE CC,RESOURCES,NORTH TEAM,PAYMENT TO GOVERNMENT DEPARTMENTS,15/03/2024,9627273694,200,S00050050INY UKVI
OXFORDSHIRE CC,CHILDREN'S & EDUCATION,WITNEY,CATERING PROVISIONS,15/03/2024,9627273952,103.45,WM MORRISONS STORE PIC
OXFORDSHIRE CC,CUSTOMER AND CULTURE,HARD FM,PREMISES REPAIRS,15/03/2024,9627273994,3.6,ALAN ASTON ROOFING
OXFORDSHIRE CC,CHILDREN'S & EDUCATION,THAME E&A HOME,OTHER TRANSPORT ARRANGEMENTS,15/03/2024,9627274024,13,WESTGATE OXFORD CAR PA
OXFORDSHIRE CC,CHILDREN'S & EDUCATION,THAME E&A HOME,OTHER TRANSPORT ARRANGEMENTS,15/03/2024,9627275014,15.2,UNION STREET CAR PARK
OXFORDSHIRE CC,CHILDREN'S & EDUCATION,"	LOOKED AFTER CITY 2",OTHER TRANSPORT ARRANGEMENTS,15/03/2024,9627274052,2,STGCOACH/CTYLINK
OXFORDSHIRE CC,ADULTS,CSS WITNEY,CATERING PROVISIONS,15/03/2024,9627274086,16.9,CO-OP GROUP 070582
OXFORDSHIRE CC,CHILDREN'S & EDUCATION,"	LEAVING CARE CITY 1",CATERING,15/03/2024,9627273794,7.55,CAFFE NERO OXFORD HEAD
OXFORDSHIRE CC,CUSTOMER AND CULTURE,LEARNING & ACCESS,STATIONERY,15/03/2024,9627274848,9.99,AMAZON  202-4471443-81
OXFORDSHIRE CC,CUSTOMER AND CULTURE,MUSEUMS COLLECTIONS,CATERING PROVISIONS,15/03/2024,9627274876,6.91,MILK AND MORE (RECUR
OXFORDSHIRE CC,ADULTS,CSS - OXFORD,CATERING PROVISIONS,15/03/2024,9627273888,40.87,ALDI STORES 775-142
OXFORDSHIRE CC,CHILDREN'S & EDUCATION,THAME E&A HOME,OTHER TRANSPORT ARRANGEMENTS,15/03/2024,9627273922,13,WESTGATE OXFORD CAR PA
OXFORDSHIRE CC,ADULTS,SHARED LIVES,MATERIALS,15/03/2024,9627274784,22.99,HIGH STREET VOUCHERS
OXFORDSHIRE CC,CORPORATE CORE,,STATIONERY,15/03/2024,9627274592,68.75,LYRECO UK LTD
OXFORDSHIRE CC,CORPORATE CORE,,STATIONERY,15/03/2024,9627274606,76.9,LYRECO UK LTD
OXFORDSHIRE CC,CORPORATE CORE,,STATIONERY,15/03/2024,9627274640,62.44,LYRECO UK LTD
OXFORDSHIRE CC,CHILDREN'S & EDUCATION,"	LEAVING CARE SOUTH",IT SOFTWARE,15/03/2024,9627273964,20,UNILINK SOFTWARE LTD
OXFORDSHIRE CC,CHILDREN'S & EDUCATION,QUALITY ASSURANCE CITY TEAM,PAYMENTS TO TRANSPORT OPERATORS,15/03/2024,9627274004,270.33,TRAINLINE
OXFORDSHIRE CC,CHILDREN'S & EDUCATION,40 THE MOORS,CATERING PROVISIONS,15/03/2024,9627273714,26.18,TESCO STORES 2788
OXFORDSHIRE CC,CUSTOMER AND CULTURE,WANTAGE LIBRARY,DOMESTIC AND CLEANING EQUIPMENT,15/03/2024,9627273750,70,PETER B LEDBURY LIMITE
OXFORDSHIRE CC,CUSTOMER AND CULTURE,CHAIRMANS ALLOWANCE,CATERING PROVISIONS,15/03/2024,9627274158,97.75,ALDI 99 775
OXFORDSHIRE CC,CUSTOMER AND CULTURE,CENTRAL LIBRARY,MATERIALS,15/03/2024,9627274210,4.49,EXTRA
OXFORDSHIRE CC,CHILDREN'S & EDUCATION,"	LOOKED AFTER CITY 2",VEHICLE FUEL,15/03/2024,9627274264,30.81,TESCO PFS 4267
OXFORDSHIRE CC,ADULTS,CSS BICESTER,PURCHASE OF IT EQUIPMENT,15/03/2024,9627275076,12.92,AMAZON  202-6070580-13
OXFORDSHIRE CC,CUSTOMER AND CULTURE,COUNTY HALL,PAYMENTS TO TRANSPORT OPERATORS,15/03/2024,9627274324,15.7,GWR OXFORD SST
OXFORDSHIRE CC,CHILDREN'S & EDUCATION,40 THE MOORS,CATERING PROVISIONS,15/03/2024,9627274354,20,CO-OPERATIVE FOOD
OXFORDSHIRE CC,ADULTS,CSS WANTAGE,ENTERTAINMENT EXPENSES,15/03/2024,9627274310,23.8,WWW.BETTER.ORG.UK
OXFORDSHIRE CC,CHILDREN'S & EDUCATION,THAME E&A HOME,OTHER TRANSPORT ARRANGEMENTS,15/03/2024,9627274950,13,WESTGATE OXFORD CAR PA
OXFORDSHIRE CC,CHILDREN'S & EDUCATION,"	LEAVING CARE CITY 2",CLOTHING AND UNIFORMS,15/03/2024,9627274984,88.94,T K MAXX
OXFORDSHIRE CC,PUBLIC HEALTH,CHILDREN IN CARE NON-STAFFING - NORTH,VEHICLE FUEL,15/03/2024,9627273734,44.14,TESCO PAY AT PUMP 4287
OXFORDSHIRE CC,CHILDREN'S & EDUCATION,FAMILY SOLUTIONS PLUS NON-STAFF � SOUTH,DAY ACTIVITIES,15/03/2024,9627274200,26,OXFORD BROOKES UNI
OXFORDSHIRE CC,CUSTOMER AND CULTURE,"MARKETING, COMMUNICATIONS & ENGAGEMENT","PUBLICITY, PROMOTIONS AND ADVERTISEMENT",15/03/2024,9627274386,3.61,SNAP INC SNAP SNAP ADS
OXFORDSHIRE CC,ADULTS,CSS - OXFORD,MATERIALS,15/03/2024,9627273684,13.36,PETS AT HOME LTD
OXFORDSHIRE CC,CHILDREN'S & EDUCATION,FAMILY SOLUTIONS PLUS NON-STAFF - NORTH,PAYMENTS TO TRANSPORT OPERATORS,15/03/2024,9627274920,29.8,WWW.GWR.COM
OXFORDSHIRE CC,CHILDREN'S & EDUCATION,THAME E&A HOME,CATERING PROVISIONS,15/03/2024,9627274956,23.5,SAINSBURYS SUPERMA
OXFORDSHIRE CC,CHILDREN'S & EDUCATION,"	LEAVING CARE CITY 2",CLOTHING AND UNIFORMS,15/03/2024,9627274990,19.99,B&M 236 - COWLEY
OXFORDSHIRE CC,CUSTOMER AND CULTURE,HARD FM,PREMISES REPAIRS,15/03/2024,9627274650,43.98,SCREWFIX OXFORD COWLEY
OXFORDSHIRE CC,CHILDREN'S & EDUCATION,"	DISABILITIES TEAM-N",PAYMENT TO GOVERNMENT DEPARTMENTS,15/03/2024,9627273622,11,OXFORDSHIRE CC WEB1
OXFORDSHIRE CC,CHILDREN'S & EDUCATION,SUPPORTED INTERNSHIPS FOR YP WITH SEND,PAYMENTS TO OTHER ESTABLISHMENTS,15/03/2024,9627273688,25.86,AMAZON  204-5083382-87
OXFORDSHIRE CC,CHILDREN'S & EDUCATION,"	LOOKED AFTER CITY 2",OTHER TRANSPORT ARRANGEMENTS,15/03/2024,9627274036,2,OXFORD BUS COMPANY
OXFORDSHIRE CC,CUSTOMER AND CULTURE,CH REFURB PROJECT,DRUGS AND MEDICAL SUPPLIES,15/03/2024,9627274072,616.8,WF EDUCATION GROUP LTD
OXFORDSHIRE CC,CUSTOMER AND CULTURE,"MARKETING, COMMUNICATIONS & ENGAGEMENT","PUBLICITY, PROMOTIONS AND ADVERTISEMENT",15/03/2024,9627274370,30.23,SNAP INC SNAP SNAP ADS
OXFORDSHIRE CC,CHILDREN'S & EDUCATION,THAME E&A HOME,CATERING,15/03/2024,9627273856,8.27,MCDONALDS
OXFORDSHIRE CC,CHILDREN'S & EDUCATION,"	MALTFIELD HOUSE",HIRE OF ACCOMMODATION AND FACILITIES,15/03/2024,9627273822,344.98,TRAVELODGE
OXFORDSHIRE CC,ADULTS,FIELDWORK UASC,OTHER TRANSPORT ARRANGEMENTS,15/03/2024,9627273896,46.46,TRAINLINE
OXFORDSHIRE CC,CHILDREN'S & EDUCATION,"	LEAVING CARE SOUTH","SUPPLIES, STATIONERY AND MATERIALS",15/03/2024,9627273930,140.4,CONSTRUCTIONCERTIFICAT
OXFORDSHIRE CC,ENVIRONMENT AND PLACE,FLEET OPERATIONS,EQUIPMENT,15/03/2024,9627273786,"1,058.34",PAYPAL  BIGDUGLIMIT BI
OXFORDSHIRE CC,CUSTOMER AND CULTURE,OXFORDSHIRE MUSEUM,MATERIALS,15/03/2024,9627274870,44.52,UK POINT OF SALE GROUP
OXFORDSHIRE CC,CUSTOMER AND CULTURE,THAME LIBRARY,"NEWSPAPERS, PERIODICALS AND PUBLICATIONS",15/03/2024,9627274538,5.8,SAINSBURYS S/MKTS
OXFORDSHIRE CC,ADULTS,CSS WANTAGE,MATERIALS,15/03/2024,9627273512,17.33,HOME BARGAINS
OXFORDSHIRE CC,PUBLIC HEALTH,WIDER TOBACCO CONTRL,HIRE OF ACCOMMODATION AND FACILITIES,15/03/2024,9627273866,90,HTTPS://GEORGE-DORCHES
OXFORDSHIRE CC,CHILDREN'S & EDUCATION,"	LEAVING CARE SOUTH",MATERIALS,15/03/2024,9627273934,275.95,WWW.ARGOS.CO.UK
OXFORDSHIRE CC,CUSTOMER AND CULTURE,LEARNING & ACCESS,"SUPPLIES, STATIONERY AND MATERIALS",15/03/2024,9627274856,43.56,AMAZON.CO.UK XM3R06BS5
OXFORDSHIRE CC,RESOURCES,ICT OPERATIONS & MAI,IT SOFTWARE,15/03/2024,9627274882,264,FIGMA ANNUAL RENEWAL
OXFORDSHIRE CC,CHILDREN'S & EDUCATION,CHILDREN IN CARE NON-STAFFING - NORTH,OTHER TRANSPORT ARRANGEMENTS,15/03/2024,9627274912,89.46,TRAINLINE
OXFORDSHIRE CC,CHILDREN'S & EDUCATION,DIDCOT MOVE-ON HOME,FIXTURES & FITTINGS,15/03/2024,9627274766,5.4,SAINSBURYS S/MKTS
OXFORDSHIRE CC,ADULTS,SHARED LIVES,OTHER EXPENSES,15/03/2024,9627274788,22.99,HIGH STREET VOUCHERS
OXFORDSHIRE CC,CHILDREN'S & EDUCATION,FIELDWORK UASC,PAYMENTS TO TRANSPORT OPERATORS,15/03/2024,9627273880,130.84,TRAINLINE
OXFORDSHIRE CC,ENVIRONMENT AND PLACE,COMMERCIAL MANAGEMEN,PURCHASE OF IT EQUIPMENT,15/03/2024,9627274698,-62.99,AMAZON  202-4408996-59
OXFORDSHIRE CC,CHILDREN'S & EDUCATION,"	OCCG GRANT",ENTERTAINMENT EXPENSES,15/03/2024,9627274730,9,STARBUCKS BICESTER
OXFORDSHIRE CC,CUSTOMER AND CULTURE,LEARNING & ACCESS,"SUPPLIES, STATIONERY AND MATERIALS",15/03/2024,9627274866,11.97,WEBBS GARDEN CENTRES L
OXFORDSHIRE CC,ADULTS,CSS WANTAGE,EQUIPMENT,15/03/2024,9627273504,7.59,AMAZON  202-7416431-79
OXFORDSHIRE CC,RESOURCES,ICT OPERATIONS & MAI,HIRE OF ACCOMMODATION AND FACILITIES,15/03/2024,9627274704,615.27,HILTON
OXFORDSHIRE CC,CHILDREN'S & EDUCATION,"	OCCG GRANT",FURNITURE,15/03/2024,9627274734,30,DUNELM SOFT FURNISHIN
OXFORDSHIRE CC,CHILDREN'S & EDUCATION,WITNEY,CATERING PROVISIONS,15/03/2024,9627274712,2.6,CO-OP GROUP 070582
OXFORDSHIRE CC,CHILDREN'S & EDUCATION,UASC POST 18,CATERING,15/03/2024,9627273770,5.15,JURASSIC COAST COFFEE
OXFORDSHIRE CC,ENVIRONMENT AND PLACE,FLEET OPERATIONS,CATERING PROVISIONS,15/03/2024,9627273788,20,MILK AND MORE (RECUR
OXFORDSHIRE CC,CHILDREN'S & EDUCATION,DIDCOT MOVE-ON HOME,CATERING PROVISIONS,15/03/2024,9627274772,13.18,SAINSBURYS S/MKTS
OXFORDSHIRE CC,ADULTS,SHARED LIVES,OTHER EXPENSES,15/03/2024,9627274794,22.99,HIGH STREET VOUCHERS
OXFORDSHIRE CC,CHILDREN'S & EDUCATION,"	LEAVING CARE NORTH",CATERING,15/03/2024,9627274692,11.78,KFC NEWHAVEN
OXFORDSHIRE CC,CHILDREN'S & EDUCATION,FAMILY SOLUTIONS PLUS NON-STAFF - NORTH,PAYMENTS TO TRANSPORT OPERATORS,15/03/2024,9627274720,19.46,TRAINLINE
OXFORDSHIRE CC,CHILDREN'S & EDUCATION,"	LEAVING CARE CITY 1",CATERING,15/03/2024,9627273796,17.5,BEAR AND WOLF CAFE
OXFORDSHIRE CC,CUSTOMER AND CULTURE,SCHOOLS FM CATERING AREA 1,CATERING PROVISIONS,15/03/2024,9627274742,47.01,SAINSBURYS S/MKTS
OXFORDSHIRE CC,CUSTOMER AND CULTURE,SAMUELSON HOUSE,CATERING PROVISIONS,15/03/2024,9627273776,53.55,MILK AND MORE (RECUR
OXFORDSHIRE CC,CHILDREN'S & EDUCATION,DIDCOT MOVE-ON HOME,CATERING PROVISIONS,15/03/2024,9627273826,5.92,SAINSBURYS S/MKTS
OXFORDSHIRE CC,CHILDREN'S & EDUCATION,EYNSHAM,OTHER SERVICES,14/03/2024,9621041030,15,SIP CARS PARKS (1) LIM
OXFORDSHIRE CC,CUSTOMER AND CULTURE,"MARKETING, COMMUNICATIONS & ENGAGEMENT","PUBLICITY, PROMOTIONS AND ADVERTISEMENT",14/03/2024,9621041650,12.37,SNAP INC SNAP SNAP ADS
OXFORDSHIRE CC,ADULTS,CSS - BANBURY,CATERING PROVISIONS,14/03/2024,9621042156,12.64,TESCO STORES 2064
OXFORDSHIRE CC,CHILDREN'S & EDUCATION,UASC 16&17,SUBSCRIPTIONS,14/03/2024,9621042176,35.99,PUREGYM LIMITED
OXFORDSHIRE CC,CHILDREN'S & EDUCATION,THAME E&A HOME,CATERING PROVISIONS,14/03/2024,9621041368,12.95,AMAZON  206-0278311-56
OXFORDSHIRE CC,ENVIRONMENT AND PLACE,FLEET OPERATIONS,PAYMENT TO GOVERNMENT DEPARTMENTS,14/03/2024,9621041092,13,DVSA
OXFORDSHIRE CC,CHILDREN'S & EDUCATION,"	LEAVING CARE CITY 1",CATERING PROVISIONS,14/03/2024,9621041124,15,ASDA STORES LTD
OXFORDSHIRE CC,CUSTOMER AND CULTURE,"MARKETING, COMMUNICATIONS & ENGAGEMENT","PUBLICITY, PROMOTIONS AND ADVERTISEMENT",14/03/2024,9621041654,12.1,SNAP INC SNAP SNAP ADS
OXFORDSHIRE CC,CHILDREN'S & EDUCATION,THAME E&A HOME,OTHER TRANSPORT ARRANGEMENTS,14/03/2024,9621042164,25.5,STGCOACH/CTYLINK
OXFORDSHIRE CC,CHILDREN'S & EDUCATION,UASC 16&17,SUBSCRIPTIONS,14/03/2024,9621042178,35.99,PUREGYM LIMITED
OXFORDSHIRE CC,CHILDREN'S & EDUCATION,THAME E&A HOME,DAY ACTIVITIES,14/03/2024,9621041344,99.8,PRIMARK 440
OXFORDSHIRE CC,CHILDREN'S & EDUCATION,"	OCCG GRANT",ENTERTAINMENT EXPENSES,14/03/2024,9621042390,10.47,STARBUCKS
OXFORDSHIRE CC,ENVIRONMENT AND PLACE,FLEET OPERATIONS,PAYMENT TO GOVERNMENT DEPARTMENTS,14/03/2024,9621041100,52,DVSA
OXFORDSHIRE CC,CHILDREN'S & EDUCATION,"	RIVERSIDE CENTRE",CATERING PROVISIONS,14/03/2024,9621041132,19.98,AMAZON  202-3341795-75
OXFORDSHIRE CC,CUSTOMER AND CULTURE,"MARKETING, COMMUNICATIONS & ENGAGEMENT","PUBLICITY, PROMOTIONS AND ADVERTISEMENT",14/03/2024,9621041664,12.48,SNAP INC SNAP SNAP ADS
OXFORDSHIRE CC,CHILDREN'S & EDUCATION,UASC 16&17,SUBSCRIPTIONS,14/03/2024,9621042172,35.99,PUREGYM LIMITED
OXFORDSHIRE CC,CHILDREN'S & EDUCATION,NTS UASC AGENCY,CATERING PROVISIONS,14/03/2024,9621042180,42.7,ICELAND FOODS
OXFORDSHIRE CC,CHILDREN'S & EDUCATION,THAME E&A HOME,DOMESTIC SUPPLIES,14/03/2024,9621041374,34.9,AMAZON  206-5175193-86
OXFORDSHIRE CC,CHILDREN'S & EDUCATION,CHILDREN IN CARE NON-STAFFING - CENTRL 1,PAYMENT TO GOVERNMENT DEPARTMENTS,14/03/2024,9621040810,58.5,HM PASSPORT OFFICE
OXFORDSHIRE CC,CHILDREN'S & EDUCATION,CHILDREN IN CARE COUNCIL,CATERING,14/03/2024,9621040844,25.5,GAILS WITNEY
OXFORDSHIRE CC,CHILDREN'S & EDUCATION,CHILDREN IN CARE COUNCIL,CATERING,14/03/2024,9621040836,12.3,SQ  YELLOW SUBMARINE C
OXFORDSHIRE CC,CHILDREN'S & EDUCATION,DISABILITIES TEAM S,PAYMENT TO GOVERNMENT DEPARTMENTS,14/03/2024,9621040868,38,GEN REGISTER OFFICE
OXFORDSHIRE CC,RESOURCES,FRONTIER CAV EU PROJECT,PAYMENTS TO TRANSPORT OPERATORS,14/03/2024,9621042396,132.4,GWR OXFORD TO
OXFORDSHIRE CC,CHILDREN'S & EDUCATION,"	LEAVING CARE CITY 1",OTHER TRANSPORT ARRANGEMENTS,14/03/2024,9621041112,2,OXFORDBUS.CO.UK
OXFORDSHIRE CC,CHILDREN'S & EDUCATION,"	LEAVING CARE CITY 1",PAYMENTS TO TRANSPORT OPERATORS,14/03/2024,9621041118,12.2,TRAINLINE
OXFORDSHIRE CC,CUSTOMER AND CULTURE,SCHOOLS FM CATERING AREA 2,CATERING PROVISIONS,14/03/2024,9621041404,36.96,AMAZON  202-8282119-10
OXFORDSHIRE CC,CHILDREN'S & EDUCATION,THAME E&A HOME,CATERING PROVISIONS,14/03/2024,9621041380,20,AMAZON  206-6413678-75
OXFORDSHIRE CC,CUSTOMER AND CULTURE,SCHOOLS FM CATERING AREA 2,CATERING PROVISIONS,14/03/2024,9621041414,222.75,BOOKER LTD - 38584104
OXFORDSHIRE CC,RESOURCES,ICT OPERATIONS & MAI,IT SERVICES,14/03/2024,9621042274,20.2,"GITHUB, INC."
OXFORDSHIRE CC,RESOURCES,ICT OPERATIONS & MAI,PURCHASE OF IT EQUIPMENT,14/03/2024,9621042144,324,FS.COM GMBH
OXFORDSHIRE CC,CHILDREN'S & EDUCATION,"	RIVERSIDE CENTRE",CATERING PROVISIONS,14/03/2024,9621041140,25.79,AMAZON  202-1977566-11
OXFORDSHIRE CC,CHILDREN'S & EDUCATION,WITNEY,CATERING PROVISIONS,14/03/2024,9621041270,28.28,LIDL GB WITNEY
OXFORDSHIRE CC,CUSTOMER AND CULTURE,OPERATIONS,MATERIALS,14/03/2024,9621041522,396,BARNARD & WESTWOOD LIM
OXFORDSHIRE CC,RESOURCES,LEGAL SERVICES,PURCHASE OF IT EQUIPMENT,14/03/2024,9621041556,30,AMAZON  026-9923739-19
OXFORDSHIRE CC,CHILDREN'S & EDUCATION,"	LEAVING CARE SOUTH",OTHER TRANSPORT ARRANGEMENTS,14/03/2024,9621041306,126.53,STORAGE KING-OXFORD
OXFORDSHIRE CC,CHILDREN'S & EDUCATION,VIRTUAL SCHOOL POST 16 PPP,EDUCATIONAL AND VOCATIONAL TRAINING ,14/03/2024,9621041336,30,FUTURE IN BEAUTY LTD
OXFORDSHIRE CC,ADULTS,CSS - OXFORD,CATERING PROVISIONS,14/03/2024,9621040976,66.12,ALDI STORES 775-142
OXFORDSHIRE CC,CHILDREN'S & EDUCATION,"	LEAVING CARE SOUTH",MATERIALS,14/03/2024,9621041006,14,THE WORKS
OXFORDSHIRE CC,CHILDREN'S & EDUCATION,OXFORDSHIRE,CATERING PROVISIONS,14/03/2024,9621041560,11.6,TESCO STORES 4377
OXFORDSHIRE CC,CHILDREN'S & EDUCATION,MANAGEMENT RECHARGES,HIRED AND CONTRACTED SERVICES,14/03/2024,9621040660,12.99,AMAZON  204-9637155-34
OXFORDSHIRE CC,CHILDREN'S & EDUCATION,MANAGEMENT RECHARGES,HIRED AND CONTRACTED SERVICES,14/03/2024,9621040684,107.47,AMAZON  204-9935779-04
OXFORDSHIRE CC,CHILDREN'S & EDUCATION,"	LEAVING CARE SOUTH",ENTERTAINMENT EXPENSES,14/03/2024,9621041008,30.45,SNAKES AND LADDERS
OXFORDSHIRE CC,CHILDREN'S & EDUCATION,"	OCCG GRANT",CATERING PROVISIONS,14/03/2024,9621041050,4.7,CO-OPERATIVE FOOD
OXFORDSHIRE CC,CUSTOMER AND CULTURE,MUSEUM CAFE,MATERIALS,14/03/2024,9621041570,21.99,AMAZON  203-3476925-81
OXFORDSHIRE CC,ADULTS,ASC INCOME TEAM,PAYMENT TO GOVERNMENT DEPARTMENTS,14/03/2024,9621041356,11,OXFORDSHIRE CC WEB1
OXFORDSHIRE CC,"COMMUNICATIONS, STRATEGY AND INSIGHT",CHAIRMANS ALLOWANCE,CATERING PROVISIONS,14/03/2024,9621041316,58.1,OCADO
OXFORDSHIRE CC,"COMMUNICATIONS, STRATEGY AND INSIGHT",CHAIRMANS ALLOWANCE,CATERING PROVISIONS,14/03/2024,9621041322,8,MARKS&SPENCER PLC
OXFORDSHIRE CC,RESOURCES,R & A STAFF & OPS,STAFF SUBSISTENCE,14/03/2024,9621041016,8,SUMUP   MACC CLUCK
OXFORDSHIRE CC,CHILDREN'S & EDUCATION,UASC 16&17,CATERING,14/03/2024,9621041060,12.45,COSTA COFFEE 43010554
OXFORDSHIRE CC,ADULTS,THAME E&A HOME,DOMESTIC SUPPLIES,14/03/2024,9621041594,6,TESCO STORES 2008
OXFORDSHIRE CC,ADULTS,CSS WANTAGE,MATERIALS,14/03/2024,9621041602,52.96,AMAZON  203-0384885-34
OXFORDSHIRE CC,CHILDREN'S & EDUCATION,THAME E&A HOME,MATERIALS,14/03/2024,9621041228,13,SPORTSDIRECT 218
OXFORDSHIRE CC,CHILDREN'S & EDUCATION,"	RIVERSIDE CENTRE",VEHICLE FUEL,14/03/2024,9621041142,92.77,SHELL WOODSTOCK ROAD
OXFORDSHIRE CC,CUSTOMER AND CULTURE,HARD FM,PREMISES REPAIRS,14/03/2024,9621041172,2,OCC PR THORNHILL
OXFORDSHIRE CC,CUSTOMER AND CULTURE,HEADINGTON LIBRARY,MATERIALS,14/03/2024,9621041512,175.5,FINDEL EDUCATION
OXFORDSHIRE CC,CUSTOMER AND CULTURE,MUSEUM CAFE,EQUIPMENT,14/03/2024,9621041578,6.45,AMAZON  203-8748651-91
OXFORDSHIRE CC,CHILDREN'S & EDUCATION,40 THE MOORS,CATERING PROVISIONS,14/03/2024,9621041638,21.55,CO-OPERATIVE FOOD
OXFORDSHIRE CC,CHILDREN'S & EDUCATION,FAMILY SOLUTIONS PLUS NON-STAFF - NORTH,PAYMENT TO GOVERNMENT DEPARTMENTS,14/03/2024,9621042152,11,OXFORDSHIRE CC WEB1
OXFORDSHIRE CC,CHILDREN'S & EDUCATION,UASC 16&17,SUBSCRIPTIONS,14/03/2024,9621042174,35.99,PUREGYM LIMITED
OXFORDSHIRE CC,CHILDREN'S & EDUCATION,UASC 16&17,CLOTHING AND UNIFORMS,14/03/2024,9621042184,49.99,SPORTSDIRECT.COM
OXFORDSHIRE CC,CHILDREN'S & EDUCATION,THAME E&A HOME,OTHER TRANSPORT ARRANGEMENTS,14/03/2024,9621041254,13,WESTGATE OXFORD CAR PA
OXFORDSHIRE CC,CHILDREN'S & EDUCATION,EYNSHAM,OTHER TRANSPORT ARRANGEMENTS,14/03/2024,9621041852,2.7,SIP CARS PARKS (1) LIM
OXFORDSHIRE CC,PUBLIC HEALTH,WIDER DETERMINANTS,MATERIALS,14/03/2024,9621041826,12.99,HIGH STREET VOUCHERS
OXFORDSHIRE CC,ADULTS,ADULTS AT RISK,HIRE OF ACCOMMODATION AND FACILITIES,14/03/2024,9621041752,511,ATHENA OXFORD LTD
OXFORDSHIRE CC,CHILDREN'S & EDUCATION,FSP NON-STAFFING - CENTRAL,PAYMENTS TO TRANSPORT OPERATORS,14/03/2024,9621041776,6.9,WWW.GWR.COM
OXFORDSHIRE CC,PUBLIC HEALTH,CHILDREN IN CARE NON-STAFFING - SOUTH,PAYMENTS TO TRANSPORT OPERATORS,14/03/2024,9621040604,124.51,TRAINLINE
OXFORDSHIRE CC,ADULTS,CSS WANTAGE,EQUIPMENT,14/03/2024,9621040578,42.29,AMAZON  202-0847798-65
OXFORDSHIRE CC,PUBLIC HEALTH,CHILDREN IN CARE NON-STAFFING - SOUTH,PAYMENTS TO TRANSPORT OPERATORS,14/03/2024,9621040608,17.83,TRAINLINE
OXFORDSHIRE CC,CHILDREN'S & EDUCATION,MANAGEMENT RECHARGES,HIRED AND CONTRACTED SERVICES,14/03/2024,9621040644,22.45,AMAZON  204-5638796-47
OXFORDSHIRE CC,CHILDREN'S & EDUCATION,FSP NON-STAFFING - CENTRAL,OTHER TRANSPORT ARRANGEMENTS,14/03/2024,9621041764,66,OXFORDBUS.CO.UK
OXFORDSHIRE CC,PUBLIC HEALTH,WIDER DETERMINANTS,MATERIALS,14/03/2024,9621041788,22.99,HIGH STREET VOUCHERS
OXFORDSHIRE CC,PUBLIC HEALTH,CHILDREN IN CARE NON-STAFFING - SOUTH,OTHER TRANSPORT ARRANGEMENTS,14/03/2024,9621040614,10,NEALE'S TAXIS LIMI
OXFORDSHIRE CC,CHILDREN'S & EDUCATION,FSP NON-STAFFING - CENTRAL,OTHER TRANSPORT ARRANGEMENTS,14/03/2024,9621041770,58,OXFORDBUS.CO.UK
OXFORDSHIRE CC,CHILDREN'S & EDUCATION,CNTL ERLY HELP-BBLEY,EQUIPMENT,14/03/2024,9621042324,220.39,INTER. FUTURES FOR
OXFORDSHIRE CC,CHILDREN'S & EDUCATION,KINGFISHER,PAYMENTS TO TRANSPORT OPERATORS,14/03/2024,9621042352,102.4,TRAINLINE
OXFORDSHIRE CC,CHILDREN'S & EDUCATION,KINGFISHER,PAYMENTS TO TRANSPORT OPERATORS,14/03/2024,9621042358,77.03,TRAINLINE
OXFORDSHIRE CC,PUBLIC HEALTH,CHILDREN IN CARE NON-STAFFING - SOUTH,OTHER EXPENSES,14/03/2024,9621040596,209.99,CLEARABEE LIMITED
OXFORDSHIRE CC,PUBLIC HEALTH,CHILDREN IN CARE NON-STAFFING - SOUTH,PAYMENT TO GOVERNMENT DEPARTMENTS,14/03/2024,9621040620,38,GEN REGISTER OFFICE
OXFORDSHIRE CC,CHILDREN'S & EDUCATION,MANAGEMENT RECHARGES,HIRED AND CONTRACTED SERVICES,14/03/2024,9621040632,49.99,AMAZON  204-4876395-57
OXFORDSHIRE CC,ADULTS,ADULTS AT RISK,HIRE OF ACCOMMODATION AND FACILITIES,14/03/2024,9621041756,511,ATHENA OXFORD LTD
OXFORDSHIRE CC,CHILDREN'S & EDUCATION,FSP NON-STAFFING - CENTRAL,PAYMENTS TO TRANSPORT OPERATORS,14/03/2024,9621041778,6.9,WWW.GWR.COM
OXFORDSHIRE CC,PUBLIC HEALTH,WIDER DETERMINANTS,MATERIALS,14/03/2024,9621041794,22.99,HIGH STREET VOUCHERS
OXFORDSHIRE CC,PUBLIC HEALTH,WIDER DETERMINANTS,MATERIALS,14/03/2024,9621041802,22.99,HIGH STREET VOUCHERS
OXFORDSHIRE CC,RESOURCES,INCOME TEAM,PAYMENT TO GOVERNMENT DEPARTMENTS,14/03/2024,9621041462,455,WWW.MONEYCLAIM.GOV
OXFORDSHIRE CC,CUSTOMER AND CULTURE,"MARKETING, COMMUNICATIONS & ENGAGEMENT","PUBLICITY, PROMOTIONS AND ADVERTISEMENT",14/03/2024,9621041668,500,GOOGLE ADS4896546035
OXFORDSHIRE CC,CHILDREN'S & EDUCATION,CHILDREN IN CARE NON-STAFFING - NORTH,PAYMENTS TO TRANSPORT OPERATORS,14/03/2024,9621040738,30.25,TRAINLINE
OXFORDSHIRE CC,CUSTOMER AND CULTURE,"MARKETING, COMMUNICATIONS & ENGAGEMENT","PUBLICITY, PROMOTIONS AND ADVERTISEMENT",14/03/2024,9621041678,10.09,SNAP INC SNAP SNAP ADS
OXFORDSHIRE CC,CHILDREN'S & EDUCATION,THAME E&A HOME,DAY ACTIVITIES,14/03/2024,9621041350,12.5,AMFBOWLING.CO.UK
OXFORDSHIRE CC,CHILDREN'S & EDUCATION,"	OCCG GRANT",MATERIALS,14/03/2024,9621042384,4,POUNDLAND LTD - 2308
OXFORDSHIRE CC,CUSTOMER AND CULTURE,DEPARTMENTAL MANAGE,HIRE OF ACCOMMODATION AND FACILITIES,14/03/2024,9621042096,104,AER LINGUS
OXFORDSHIRE CC,CHILDREN'S & EDUCATION,CHILDREN IN CARE NON-STAFFING - CENTRL 2,PAYMENT TO GOVERNMENT DEPARTMENTS,14/03/2024,9621040814,-35,OXFORDSHIRE CC (M)
OXFORDSHIRE CC,CHILDREN'S & EDUCATION,CHILDREN IN CARE COUNCIL,CATERING,14/03/2024,9621040848,6.67,STARBUCKS COFFEE
OXFORDSHIRE CC,CHILDREN'S & EDUCATION,CHILDREN IN CARE COUNCIL,CATERING PROVISIONS,14/03/2024,9621040854,10.5,SAINSBURYS S/MKTS
OXFORDSHIRE CC,CHILDREN'S & EDUCATION,DIDCOT MOVE-ON HOME,CATERING PROVISIONS,14/03/2024,9621042072,7.35,SAINSBURYS S/MKTS
OXFORDSHIRE CC,CUSTOMER AND CULTURE,"MARKETING, COMMUNICATIONS & ENGAGEMENT",SUBSCRIPTIONS,14/03/2024,9621041674,280.27,BEACONSTAC PRO
OXFORDSHIRE CC,CHILDREN'S & EDUCATION,THAME E&A HOME,OTHER TRANSPORT ARRANGEMENTS,14/03/2024,9621042266,13,WESTGATE OXFORD CAR PA
OXFORDSHIRE CC,ADULTS,SHARED LIVES,OTHER EXPENSES,14/03/2024,9621042080,34.99,RCH SERENATA FLOWERS
OXFORDSHIRE CC,"COMMUNICATIONS, STRATEGY AND INSIGHT",CHAIRMANS ALLOWANCE,CATERING PROVISIONS,14/03/2024,9621041326,16.3,SAINSBURYS S/MKTS
OXFORDSHIRE CC,CHILDREN'S & EDUCATION,REACTIVE MAINTENANCE,HARDWARE AND CROCKERY,14/03/2024,9621042204,169.99,SCREWFIX DIR LTD
OXFORDSHIRE CC,PUBLIC HEALTH,COUNTRYSIDE PREMISES,EQUIPMENT,14/03/2024,9621041422,164.98,AMAZON  204-1801102-47
OXFORDSHIRE CC,CHILDREN'S & EDUCATION,THAME E&A HOME,MATERIALS,14/03/2024,9621041446,8.97,ROBERT DYAS THAME
OXFORDSHIRE CC,ENVIRONMENT AND PLACE,RESOURCE EFFICIENCY,HIRE OF ACCOMMODATION AND FACILITIES,14/03/2024,9621042040,86,BKG HOTEL AT BOOKING.C
OXFORDSHIRE CC,CHILDREN'S & EDUCATION,DIDCOT MOVE-ON HOME,CATERING PROVISIONS,14/03/2024,9621042068,33.19,SAINSBURYS S/MKTS
OXFORDSHIRE CC,ADULTS,CSS - BANBURY,CATERING PROVISIONS,14/03/2024,9621041966,29.96,AMAZON  204-0712846-78
OXFORDSHIRE CC,ENVIRONMENT AND PLACE,CPD TRAINING,CATERING PROVISIONS,14/03/2024,9621042022,84.05,WAITROSE 581
OXFORDSHIRE CC,CORPORATE CORE,,STATIONERY,14/03/2024,9621041938,150.48,LYRECO UK LTD
OXFORDSHIRE CC,ADULTS,CSS - BANBURY,HIRED AND CONTRACTED SERVICES,14/03/2024,9621041974,79.85,BANANAPRINT
OXFORDSHIRE CC,ADULTS,CSS BICESTER,CATERING PROVISIONS,14/03/2024,9621040944,18.6,ICELAND
OXFORDSHIRE CC,CHILDREN'S & EDUCATION,THAME E&A HOME,OTHER EXPENSES,14/03/2024,9621040950,34.9,AMAZON  202-2429473-50
OXFORDSHIRE CC,CUSTOMER AND CULTURE,COMMUNITY PARTNERSHIP TEAM,CATERING PROVISIONS,14/03/2024,9621040930,97.29,TESCO STORES 2008
OXFORDSHIRE CC,CHILDREN'S & EDUCATION,THAME E&A HOME,CATERING PROVISIONS,14/03/2024,9621040956,12.95,AMAZON  202-3160453-25
OXFORDSHIRE CC,CUSTOMER AND CULTURE,COMMUNITY PARTNERSHIP TEAM,CATERING PROVISIONS,14/03/2024,9621040938,-4.4,TESCO STORES 2008
OXFORDSHIRE CC,CHILDREN'S & EDUCATION,EET SERVICE,MATERIALS,14/03/2024,9621040966,50,AMAZON.CO.UK 6F53K3K45
OXFORDSHIRE CC,RESOURCES,SCHOOLS FM CATERING AREA 2,CATERING PROVISIONS,14/03/2024,9621042000,12,TESCO STORES 2008
OXFORDSHIRE CC,CHILDREN'S & EDUCATION,NTH EARLY HELP-BCSTR,PAYMENTS TO VOLUNTARY BODIES,14/03/2024,9621042030,220.39,INTER. FUTURES FOR
OXFORDSHIRE CC,CHILDREN'S & EDUCATION,NTS UASC AGENCY,"SUPPLIES, STATIONERY AND MATERIALS",14/03/2024,9621041984,20.48,AMAZON  203-3345860-85
OXFORDSHIRE CC,ADULTS,CSS WITNEY,ENTERTAINMENT EXPENSES,14/03/2024,9621041476,18,WWW.BETTER.ORG.UK
OXFORDSHIRE CC,CUSTOMER AND CULTURE,WALLINGFORD LIBRARY,EQUIPMENT,14/03/2024,9621042006,6,B&M 514 - DICOT
OXFORDSHIRE CC,ENVIRONMENT AND PLACE,CLIMATE ACTION STAFFING,HIRE OF ACCOMMODATION AND FACILITIES,14/03/2024,9621042036,152.98,PREMIER INN
OXFORDSHIRE CC,ADULTS,CSS WITNEY,CATERING PROVISIONS,14/03/2024,9621042060,12.54,CO-OP GROUP 070582
OXFORDSHIRE CC,CHILDREN'S & EDUCATION,"	LEAVING CARE NORTH",OTHER TRANSPORT ARRANGEMENTS,14/03/2024,9621041956,28,OXFORDBUS.CO.UK
OXFORDSHIRE CC,CHILDREN'S & EDUCATION,NTS UASC AGENCY,"SUPPLIES, STATIONERY AND MATERIALS",14/03/2024,9621041994,43.1,AMAZON  203-7250898-40
OXFORDSHIRE CC,CHILDREN'S & EDUCATION,MANAGEMENT RECHARGES,HIRED AND CONTRACTED SERVICES,14/03/2024,9621040666,42.97,AMAZON  204-9637155-34
OXFORDSHIRE CC,CHILDREN'S & EDUCATION,MANAGEMENT RECHARGES,HIRED AND CONTRACTED SERVICES,14/03/2024,9621040694,33.91,AMAZON  204-9935779-04
OXFORDSHIRE CC,CHILDREN'S & EDUCATION,MANAGEMENT RECHARGES,HIRED AND CONTRACTED SERVICES,14/03/2024,9621040676,124.87,AMAZON  204-9935779-04
OXFORDSHIRE CC,CHILDREN'S & EDUCATION,"	LEAVING CARE CITY 1",CATERING,14/03/2024,9621040752,4.95,COSTA TEMPLARS
OXFORDSHIRE CC,CHILDREN'S & EDUCATION,"	LEAVING CARE CITY 2",OTHER TRANSPORT ARRANGEMENTS,14/03/2024,9621040788,55.6,TRAINLINE
OXFORDSHIRE CC,CUSTOMER AND CULTURE,HARD FM,PREMISES REPAIRS,14/03/2024,9621040722,232.83,WICKES OXFORD
OXFORDSHIRE CC,CUSTOMER AND CULTURE,HARD FM,PREMISES REPAIRS,14/03/2024,9621040730,27.59,SCREWFIX DIR LTD
OXFORDSHIRE CC,CHILDREN'S & EDUCATION,FAMILY SOLUTIONS PLUS NON-STAFF � SOUTH,HIRE OF ACCOMMODATION AND FACILITIES,14/03/2024,9621040776,126.01,TRAVELODGE
OXFORDSHIRE CC,CHILDREN'S & EDUCATION,"	DISABILITIES TEAM-C",PAYMENTS TO TRANSPORT OPERATORS,14/03/2024,9621040802,113.81,TRAINLINE
OXFORDSHIRE CC,CHILDREN'S & EDUCATION,CHILDREN IN CARE NON-STAFFING - NORTH,PAYMENT TO GOVERNMENT DEPARTMENTS,14/03/2024,9621040744,82.5,HM PASSPORT OFFICE
OXFORDSHIRE CC,CHILDREN'S & EDUCATION,"	LEAVING CARE CITY 2",CATERING PROVISIONS,14/03/2024,9621040782,6.99,SUNDAES GELATO
OXFORDSHIRE CC,CHILDREN'S & EDUCATION,MANAGEMENT RECHARGES,HIRED AND CONTRACTED SERVICES,14/03/2024,9621040672,36.97,AMAZON  204-9637155-34
OXFORDSHIRE CC,CHILDREN'S & EDUCATION,MANAGEMENT RECHARGES,HIRED AND CONTRACTED SERVICES,14/03/2024,9621040652,16.59,AMAZON  204-6907079-14
OXFORDSHIRE CC,PUBLIC HEALTH,WIDER DETERMINANTS,MATERIALS,14/03/2024,9621041810,22.99,HIGH STREET VOUCHERS
OXFORDSHIRE CC,PUBLIC HEALTH,WIDER DETERMINANTS,MATERIALS,14/03/2024,9621041830,12.99,HIGH STREET VOUCHERS
OXFORDSHIRE CC,PUBLIC HEALTH,WIDER DETERMINANTS,MATERIALS,14/03/2024,9621041816,22.99,HIGH STREET VOUCHERS
OXFORDSHIRE CC,PUBLIC HEALTH,WIDER DETERMINANTS,MATERIALS,14/03/2024,9621041822,22.99,HIGH STREET VOUCHERS
OXFORDSHIRE CC,RESOURCES,MOTOR FLEET,MOTOR IF OWN DAMAGE,14/03/2024,9621041842,352.91,ENTERPRISE RENT A CAR
OXFORDSHIRE CC,ADULTS,CSS WANTAGE,CATERING PROVISIONS,13/03/2024,9615169750,7.44,SAINSBURYS S/MKTS
OXFORDSHIRE CC,CHILDREN'S & EDUCATION,KINGFISHER,HIRE OF ACCOMMODATION AND FACILITIES,13/03/2024,9615169762,76,PREMIER INN
OXFORDSHIRE CC,CHILDREN'S & EDUCATION,"	LOOKED AFTER CITY 2",OTHER TRANSPORT ARRANGEMENTS,13/03/2024,9615167704,2,OXFORD BUS COMPANY
OXFORDSHIRE CC,ADULTS,CSS WITNEY,CATERING PROVISIONS,13/03/2024,9615167764,6.5,SAINSBURYS S/MKTS
OXFORDSHIRE CC,CHILDREN'S & EDUCATION,"	OCCG GRANT",CATERING PROVISIONS,13/03/2024,9615169836,23.8,TESCO STORES 2064
OXFORDSHIRE CC,ADULTS,CSS WITNEY,CATERING PROVISIONS,13/03/2024,9615167754,76.14,LIDL GB WITNEY
OXFORDSHIRE CC,CHILDREN'S & EDUCATION,"	LOOKED AFTER CITY 2",OTHER TRANSPORT ARRANGEMENTS,13/03/2024,9615167694,2,OXFORD BUS COMPANY
OXFORDSHIRE CC,ENVIRONMENT AND PLACE,NAT TRAILS GENERAL,VEHICLE FUEL,13/03/2024,9615167714,73.4,SAINSBURYS PETROL
OXFORDSHIRE CC,CHILDREN'S & EDUCATION,"	LEAVING CARE CITY 2",CATERING,13/03/2024,9615167778,5.57,SUBWAY 39501 COWLEY RO
OXFORDSHIRE CC,ENTERPRISEVC,,CAR LEASING - PRIVATE RENTALS,13/03/2024,9615168914,39.22,ENTERPRISE RENT-A-CAR
OXFORDSHIRE CC,CHILDREN'S & EDUCATION,CHILDREN IN CARE NON-STAFFING - NORTH,PAYMENTS TO TRANSPORT OPERATORS,13/03/2024,9615166508,90,BKG HOTEL AT BOOKING.C
OXFORDSHIRE CC,CHILDREN'S & EDUCATION,"	DIRECTOR'S OFFICE",CATERING PROVISIONS,13/03/2024,9615167998,28.25,MARKS&SPENCER PLC
OXFORDSHIRE CC,CHILDREN'S & EDUCATION,"	OSCB",CATERING PROVISIONS,13/03/2024,9615167998,28.24,MARKS&SPENCER PLC
OXFORDSHIRE CC,ADULTS,CSS WANTAGE,ENTERTAINMENT EXPENSES,13/03/2024,9615168092,10.95,HOLLYWOOD BOWL
OXFORDSHIRE CC,ADULTS,CSS WANTAGE,MATERIALS,13/03/2024,9615168072,17.8,AMAZON  203-3730163-19
OXFORDSHIRE CC,ADULTS,CSS WANTAGE,ENTERTAINMENT EXPENSES,13/03/2024,9615168082,10.95,HOLLYWOOD BOWL
OXFORDSHIRE CC,CUSTOMER AND CULTURE,BUSINESS INTELLECTUAL PROPERTY CENTRE,IT SOFTWARE,13/03/2024,9615167954,27.49,APPLE.COM/BILL
OXFORDSHIRE CC,CHILDREN'S & EDUCATION,"	OSCB",CATERING PROVISIONS,13/03/2024,9615168020,9.13,SAINSBURYS S/MKTS
OXFORDSHIRE CC,CHILDREN'S & EDUCATION,"	DIRECTOR'S OFFICE",CATERING PROVISIONS,13/03/2024,9615168020,9.12,SAINSBURYS S/MKTS
OXFORDSHIRE CC,ADULTS,CSS - BANBURY,ENTERTAINMENT EXPENSES,13/03/2024,9615169032,6.3,BICESTER LEISURE CENTR
OXFORDSHIRE CC,CHILDREN'S & EDUCATION,"	LEAVING CARE NORTH",PAYMENTS TO TRANSPORT OPERATORS,13/03/2024,9615169066,63.36,BKG HOTEL AT BOOKING.C
OXFORDSHIRE CC,CHILDREN'S & EDUCATION,WITNEY,CATERING PROVISIONS,13/03/2024,9615169124,16.56,SAINSBURYS S/MKTS
OXFORDSHIRE CC,ENVIRONMENT AND PLACE,WASTE REDUCTION GEN,"PUBLICITY, PROMOTIONS AND ADVERTISEMENT",13/03/2024,9615166794,17.46,FACEBK KGNF8X7C32
OXFORDSHIRE CC,CHILDREN'S & EDUCATION,THAME E&A HOME,CATERING PROVISIONS,13/03/2024,9615166766,16.93,LIDL GB AYLESBURY
OXFORDSHIRE CC,CHILDREN'S & EDUCATION,40 THE MOORS,OTHER EXPENSES,13/03/2024,9615166936,34,WWW.ARGOS.CO.UK
OXFORDSHIRE CC,CHILDREN'S & EDUCATION,THAME E&A HOME,OTHER EXPENSES,13/03/2024,9615166780,20,AMAZON  202-4531997-53
OXFORDSHIRE CC,CHILDREN'S & EDUCATION,FAMILY SOLUTIONS PLUS NON-STAFF - NORTH,PAYMENTS TO TRANSPORT OPERATORS,13/03/2024,9615169170,9.06,TRAINLINE
OXFORDSHIRE CC,ENVIRONMENT AND PLACE,SIP MANAGEMENT,STAFF AND VOLUNTEER TRAVEL EXPENSES,13/03/2024,9615169138,141.33,TRAINLINE
OXFORDSHIRE CC,ADULTS,CSS - OXFORD,MATERIALS,13/03/2024,9615166838,28.73,ALDI STORES 775-142
OXFORDSHIRE CC,CUSTOMER AND CULTURE,HARD FM,VEHICLE FUEL,13/03/2024,9615169574,31.72,SHELL LONDON ROAD
OXFORDSHIRE CC,CHILDREN'S & EDUCATION,"	MALTFIELD HOUSE","SUPPLIES, STATIONERY AND MATERIALS",13/03/2024,9615167182,5.89,SAINSBURYS S/MKTS
OXFORDSHIRE CC,CUSTOMER AND CULTURE,TREE MAINT OPS,VEHICLE FUEL,13/03/2024,9615169376,17.18,SAINSBURYS PETROL
OXFORDSHIRE CC,CHILDREN'S & EDUCATION,NTS UASC AGENCY,CATERING PROVISIONS,13/03/2024,9615169410,8.4,AMAZON  026-8281731-02
OXFORDSHIRE CC,CHILDREN'S & EDUCATION,"	LOOKED AFTER NORTH",PAYMENTS TO TRANSPORT OPERATORS,13/03/2024,9615166520,29.85,TRAINLINE
OXFORDSHIRE CC,ADULTS,CSS - ABINGDON,MATERIALS,13/03/2024,9615166460,29.5,ALDI STORES
OXFORDSHIRE CC,ADULTS,CSS - OXFORD,CATERING PROVISIONS,13/03/2024,9615166600,44.52,ALDI STORES 775-142
OXFORDSHIRE CC,CUSTOMER AND CULTURE,CORONER,PAYMENTS TO TRANSPORT OPERATORS,13/03/2024,9615167506,82.02,TRAINLINE
OXFORDSHIRE CC,CUSTOMER AND CULTURE,SCHOOLS FM CATERING AREA 2,EQUIPMENT,13/03/2024,9615167606,98.93,CROSBYS CATERING SUPPL
OXFORDSHIRE CC,CHILDREN'S & EDUCATION,FAMILY SOLUTIONS PLUS NON-STAFF - NORTH,PAYMENTS TO TRANSPORT OPERATORS,13/03/2024,9615169348,48.8,WWW.GWR.COM
OXFORDSHIRE CC,ADULTS,CSS - BANBURY,CATERING PROVISIONS,13/03/2024,9615169398,2.98,HOME BARGAINS BANBURY
OXFORDSHIRE CC,CHILDREN'S & EDUCATION,NTS UASC AGENCY,OTHER TRANSPORT ARRANGEMENTS,13/03/2024,9615169418,2,STGCOACH/CTYLINK
OXFORDSHIRE CC,CHILDREN'S & EDUCATION,CHILDREN IN CARE NON-STAFFING - NORTH,PAYMENT TO GOVERNMENT DEPARTMENTS,13/03/2024,9615166536,82.5,HM PASSPORT OFFICE
OXFORDSHIRE CC,CHILDREN'S & EDUCATION,CHILDREN IN CARE NON-STAFFING - NORTH,PAYMENT TO GOVERNMENT DEPARTMENTS,13/03/2024,9615166544,11,GEN REGISTER OFFICE
OXFORDSHIRE CC,CHILDREN'S & EDUCATION,KINGFISHER,MATERIALS,13/03/2024,9615166446,10,TESCO ONLINE
OXFORDSHIRE CC,CHILDREN'S & EDUCATION,HOUSE PROJECT,OTHER EXPENSES,13/03/2024,9615169558,46,FUNERALFLOWERSOXFORD
OXFORDSHIRE CC,CHILDREN'S & EDUCATION,FAMILY SOLUTIONS PLUS NON-STAFF - NORTH,PAYMENTS TO TRANSPORT OPERATORS,13/03/2024,9615169356,-44.5,WWW.GWR.COM
OXFORDSHIRE CC,CHILDREN'S & EDUCATION,NTS UASC AGENCY,CATERING PROVISIONS,13/03/2024,9615169408,19.99,AMAZON  026-1723427-67
OXFORDSHIRE CC,CHILDREN'S & EDUCATION,NTS UASC AGENCY,OTHER TRANSPORT ARRANGEMENTS,13/03/2024,9615169422,2,STGCOACH/CTYLINK
OXFORDSHIRE CC,CUSTOMER AND CULTURE,SCHOOLS FM CATERING AREA 2,CATERING PROVISIONS,13/03/2024,9615167634,18.48,AMAZON  202-7938044-89
OXFORDSHIRE CC,CHILDREN'S & EDUCATION,CHILDREN IN CARE NON-STAFFING - NORTH,OTHER EXPENSES,13/03/2024,9615166552,34,DRIVING LICENCE WEB
OXFORDSHIRE CC,ENTERPRISEVC,,CAR LEASING - PRIVATE RENTALS,13/03/2024,9615168902,39.22,ENTERPRISE RENT-A-CAR
OXFORDSHIRE CC,ENTERPRISEVC,,CAR LEASING - PRIVATE RENTALS,13/03/2024,9615168866,107.81,ENTERPRISE RENT-A-CAR
OXFORDSHIRE CC,CORPORATE CORE,,STATIONERY,13/03/2024,9615168822,22.32,LYRECO UK LTD
OXFORDSHIRE CC,ENTERPRISEVC,,CAR LEASING - PRIVATE RENTALS,13/03/2024,9615168874,84.41,ENTERPRISE RENT-A-CAR
OXFORDSHIRE CC,ENTERPRISEVC,,CAR LEASING - PRIVATE RENTALS,13/03/2024,9615168920,75.22,ENTERPRISE RENT-A-CAR
OXFORDSHIRE CC,ENVIRONMENT AND PLACE,TVERC,OTHER TRAINING COURSES AND QUALIFICATION,13/03/2024,9615166566,25,EB  BIODIVERSITY NET G
OXFORDSHIRE CC,ENVIRONMENT AND PLACE,TVERC,CATERING PROVISIONS,13/03/2024,9615166572,11.98,AMAZON  205-2605594-73
OXFORDSHIRE CC,CORPORATE CORE,,STATIONERY,13/03/2024,9615168838,69.12,LYRECO UK LTD
OXFORDSHIRE CC,ENTERPRISEVC,,CAR LEASING - PRIVATE RENTALS,13/03/2024,9615168884,143.78,ENTERPRISE RENT-A-CAR
OXFORDSHIRE CC,ENTERPRISEVC,,CAR LEASING - PRIVATE RENTALS,13/03/2024,9615168854,84.41,ENTERPRISE RENT-A-CAR
OXFORDSHIRE CC,ENTERPRISEVC,,CAR LEASING - PRIVATE RENTALS,13/03/2024,9615168894,178.25,ENTERPRISE RENT-A-CAR
OXFORDSHIRE CC,CHILDREN'S & EDUCATION,FAMILY SOLUTIONS PLUS NON-STAFF - NORTH,PAYMENTS TO TRANSPORT OPERATORS,13/03/2024,9615169366,-4.3,WWW.GWR.COM
OXFORDSHIRE CC,CHILDREN'S & EDUCATION,NTS UASC AGENCY,OTHER TRANSPORT ARRANGEMENTS,13/03/2024,9615169432,2,STGCOACH/CTYLINK
OXFORDSHIRE CC,CHILDREN'S & EDUCATION,THAME E&A HOME,CATERING PROVISIONS,13/03/2024,9615167488,9.99,AMAZON  206-4468063-65
OXFORDSHIRE CC,CHILDREN'S & EDUCATION,THAME E&A HOME,DAY ACTIVITIES,13/03/2024,9615167472,3.8,WESTGATE OXFORD CAR PA
OXFORDSHIRE CC,PUBLIC HEALTH,ROW MAINT,EQUIPMENT,13/03/2024,9615167650,157,UKPLANETOOLS
OXFORDSHIRE CC,PUBLIC HEALTH,ROW MAINT,EQUIPMENT,13/03/2024,9615167660,32.99,ZORO UK
OXFORDSHIRE CC,CHILDREN'S & EDUCATION,"	OCCG GRANT",OTHER EXPENSES,13/03/2024,9615167020,7.9,SMITH & OSMAN SERVICES
OXFORDSHIRE CC,CHILDREN'S & EDUCATION,"	LEAVING CARE CITY 1",MATERIALS,13/03/2024,9615167078,31,ARGOS BOURNEMOUTH CAST
OXFORDSHIRE CC,CUSTOMER AND CULTURE,DEPARTMENTAL MANAGE,PAYMENTS TO TRANSPORT OPERATORS,13/03/2024,9615169202,35.45,TRAINLINE
OXFORDSHIRE CC,ADULTS,CSS - ABINGDON,EQUIPMENT,13/03/2024,9615166390,50.98,AMAZON  205-4329504-62
OXFORDSHIRE CC,CHILDREN'S & EDUCATION,UASC POST 18,MATERIALS,13/03/2024,9615167040,47,SPORTSDIRECT 218
OXFORDSHIRE CC,ADULTS,OXF. EMPLOYMENT SERV,TRAINING RELATED EXPENDITURE,13/03/2024,9615169306,67.43,AMAZON  204-2797393-65
OXFORDSHIRE CC,CHILDREN'S & EDUCATION,"	LEAVING CARE CITY 1",CATERING,13/03/2024,9615167072,20.45,NANDOS BOURNEMOUTH
OXFORDSHIRE CC,ADULTS,CSS - ABINGDON,DRUGS AND MEDICAL SUPPLIES,13/03/2024,9615166410,8.73,SUPERDRUG STORES PLC
OXFORDSHIRE CC,CHILDREN'S & EDUCATION,"	RIVERSIDE CENTRE",CATERING PROVISIONS,13/03/2024,9615167100,24.96,AMAZON  202-5943759-04
OXFORDSHIRE CC,CUSTOMER AND CULTURE,"MARKETING, COMMUNICATIONS & ENGAGEMENT","PUBLICITY, PROMOTIONS AND ADVERTISEMENT",13/03/2024,9615168308,30.78,SNAP INC SNAP SNAP ADS
OXFORDSHIRE CC,CHILDREN'S & EDUCATION,NTS UASC AGENCY,CATERING PROVISIONS,13/03/2024,9615169328,19.99,AMAZON  204-2953052-66
OXFORDSHIRE CC,CUSTOMER AND CULTURE,"MARKETING, COMMUNICATIONS & ENGAGEMENT","PUBLICITY, PROMOTIONS AND ADVERTISEMENT",13/03/2024,9615168344,14.06,SNAP INC SNAP SNAP ADS
OXFORDSHIRE CC,ADULTS,CSS - ABINGDON,EQUIPMENT,13/03/2024,9615166374,29.48,AMAZON  205-4329504-62
OXFORDSHIRE CC,ADULTS,CSS - ABINGDON,CATERING PROVISIONS,13/03/2024,9615169458,500,SAVONA PROVISIONS LTD
OXFORDSHIRE CC,CUSTOMER AND CULTURE,DEPARTMENTAL MANAGE,PAYMENTS TO TRANSPORT OPERATORS,13/03/2024,9615169212,575.76,EASYJET
OXFORDSHIRE CC,"COMMUNICATIONS, STRATEGY AND INSIGHT",CHAIRMANS ALLOWANCE,CATERING PROVISIONS,13/03/2024,9615167456,37.75,WAITROSE 153
OXFORDSHIRE CC,CUSTOMER AND CULTURE,DEPARTMENTAL MANAGE,OTHER TRANSPORT ARRANGEMENTS,13/03/2024,9615169190,170,SQ  PMK TRANSPORT
OXFORDSHIRE CC,CHILDREN'S & EDUCATION,40 THE MOORS,CATERING PROVISIONS,13/03/2024,9615168356,147.3,SAINSBURYS.CO.UK
OXFORDSHIRE CC,CUSTOMER AND CULTURE,"MARKETING, COMMUNICATIONS & ENGAGEMENT","PUBLICITY, PROMOTIONS AND ADVERTISEMENT",13/03/2024,9615168332,500,FACEBK  4KVMK249Z2
OXFORDSHIRE CC,CUSTOMER AND CULTURE,"MARKETING, COMMUNICATIONS & ENGAGEMENT",SUBSCRIPTIONS,13/03/2024,9615168296,684.51,INTUIT LTD MAILCHIMP
OXFORDSHIRE CC,CHILDREN'S & EDUCATION,EYNSHAM,CATERING PROVISIONS,13/03/2024,9615166354,150.56,TESCO STORES 2008
OXFORDSHIRE CC,CHILDREN'S & EDUCATION,FSP NON-STAFFING - CENTRAL,PAYMENTS TO TRANSPORT OPERATORS,13/03/2024,9615168698,6.1,WWW.GWR.COM
OXFORDSHIRE CC,CHILDREN'S & EDUCATION,FSP NON-STAFFING - CENTRAL,PAYMENTS TO TRANSPORT OPERATORS,13/03/2024,9615168704,6.9,WWW.GWR.COM
OXFORDSHIRE CC,CUSTOMER AND CULTURE,THAME LIBRARY,"NEWSPAPERS, PERIODICALS AND PUBLICATIONS",13/03/2024,9615168760,5.8,SAINSBURYS S/MKTS
OXFORDSHIRE CC,ADULTS,CSS - ABINGDON,CATERING PROVISIONS,13/03/2024,9615169450,93.03,SAVONA PROVISIONS LTD
OXFORDSHIRE CC,CHILDREN'S & EDUCATION,"	LEAVING CARE SOUTH",VEHICLE FUEL,13/03/2024,9615167396,51.65,C P JENKINS T/A RHEIDO
OXFORDSHIRE CC,"COMMUNICATIONS, STRATEGY AND INSIGHT",CHAIRMANS ALLOWANCE,CATERING PROVISIONS,13/03/2024,9615167446,28,SAINSBURYS S/MKTS
OXFORDSHIRE CC,CUSTOMER AND CULTURE,"MARKETING, COMMUNICATIONS & ENGAGEMENT","PUBLICITY, PROMOTIONS AND ADVERTISEMENT",13/03/2024,9615168278,127.66,LINKEDIN ADS 999110617
OXFORDSHIRE CC,CUSTOMER AND CULTURE,"MARKETING, COMMUNICATIONS & ENGAGEMENT",EQUIPMENT,13/03/2024,9615168290,49.99,AMAZON  204-1380188-06
OXFORDSHIRE CC,ENTERPRISEVC,,CAR LEASING - PRIVATE RENTALS,13/03/2024,9615168968,78.43,ENTERPRISE RENT-A-CAR
OXFORDSHIRE CC,ADULTS,CSS - BANBURY,HIRED AND CONTRACTED SERVICES,13/03/2024,9615169006,77.85,BANANAPRINT
OXFORDSHIRE CC,ENTERPRISEVC,,CAR LEASING - PRIVATE RENTALS,13/03/2024,9615168944,75.22,ENTERPRISE RENT-A-CAR
OXFORDSHIRE CC,ENTERPRISEVC,,CAR LEASING - PRIVATE RENTALS,13/03/2024,9615168988,61.25,ENTERPRISE RENT-A-CAR
OXFORDSHIRE CC,CHILDREN'S & EDUCATION,CHILDREN IN CARE NON-STAFFING - CENTRL 1,PAYMENT TO GOVERNMENT DEPARTMENTS,13/03/2024,9615166632,35,OXFORDSHIRE CC WEB1
OXFORDSHIRE CC,ADULTS,CSS - OXFORD,CATERING PROVISIONS,13/03/2024,9615166604,2.55,TESCO STORES 2994
OXFORDSHIRE CC,ENTERPRISEVC,,CAR LEASING - PRIVATE RENTALS,13/03/2024,9615168932,90.58,ENTERPRISE RENT-A-CAR
OXFORDSHIRE CC,ENTERPRISEVC,,CAR LEASING - PRIVATE RENTALS,13/03/2024,9615168980,48.41,ENTERPRISE RENT-A-CAR
OXFORDSHIRE CC,ADULTS,CSS - BANBURY,PRINTING,13/03/2024,9615169018,34.01,WWW.SOLOPRESS.COM
OXFORDSHIRE CC,ENTERPRISEVC,,CAR LEASING - PRIVATE RENTALS,13/03/2024,9615168956,247.55,ENTERPRISE RENT-A-CAR
OXFORDSHIRE CC,ENTERPRISEVC,,CAR LEASING - PRIVATE RENTALS,13/03/2024,9615168998,48.31,ENTERPRISE RENT-A-CAR
OXFORDSHIRE CC,ENTERPRISEVC,,CAR LEASING - PRIVATE RENTALS,13/03/2024,9615168922,523.4,ENTERPRISE RENT-A-CAR
OXFORDSHIRE CC,CUSTOMER AND CULTURE,HARD FM,PREMISES REPAIRS,12/03/2024,9610492028,24.99,SCREWFIX OXFORD COWLEY
OXFORDSHIRE CC,ADULTS,CSS - ABINGDON,EQUIPMENT,12/03/2024,9610491960,25.49,AMAZON  205-4544467-10
OXFORDSHIRE CC,CORPORATE CORE,,STATIONERY,12/03/2024,9610493620,132.52,LYRECO UK LTD
OXFORDSHIRE CC,CHILDREN'S & EDUCATION,CHILDREN IN CARE NON-STAFFING - NORTH,PAYMENT TO GOVERNMENT DEPARTMENTS,12/03/2024,9610492062,11,GEN REGISTER OFFICE
OXFORDSHIRE CC,CUSTOMER AND CULTURE,HARD FM,PREMISES REPAIRS,12/03/2024,9610492032,122.87,DULUX DECORATOR CENTRE
OXFORDSHIRE CC,CHILDREN'S & EDUCATION,FAMILY SOLUTIONS PLUS NON-STAFF � SOUTH,HIRE OF ACCOMMODATION AND FACILITIES,12/03/2024,9610492106,249.3,BKG HOTEL AT BOOKING.C
OXFORDSHIRE CC,CHILDREN'S & EDUCATION,CHILDREN IN CARE NON-STAFFING - CENTRL 2,OTHER TRANSPORT ARRANGEMENTS,12/03/2024,9610492174,6,OXFORDBUS.CO.UK
OXFORDSHIRE CC,CHILDREN'S & EDUCATION,FAMILY SOLUTIONS PLUS NON-STAFF - NORTH,CATERING PROVISIONS,12/03/2024,9610493724,5.5,TESCO STORES 3143
OXFORDSHIRE CC,CHILDREN'S & EDUCATION,DIDCOT MOVE-ON HOME,FIXTURES & FITTINGS,12/03/2024,9610493760,12,ARGOS DIDCOT
OXFORDSHIRE CC,CHILDREN'S & EDUCATION,FAMILY SOLUTIONS PLUS NON-STAFF - NORTH,PAYMENTS TO TRANSPORT OPERATORS,12/03/2024,9610493664,18.13,TRAINLINE
OXFORDSHIRE CC,CHILDREN'S & EDUCATION,"	LEAVING CARE CITY 2",OTHER TRANSPORT ARRANGEMENTS,12/03/2024,9610492122,42.2,GWR OXFORD TO
OXFORDSHIRE CC,CORPORATE CORE,,STATIONERY,12/03/2024,9610493614,66.48,LYRECO UK LTD
OXFORDSHIRE CC,CHILDREN'S & EDUCATION,FAMILY SOLUTIONS PLUS NON-STAFF - NORTH,PAYMENTS TO TRANSPORT OPERATORS,12/03/2024,9610493658,18.13,TRAINLINE
OXFORDSHIRE CC,CORPORATE CORE,,STATIONERY,12/03/2024,9610493636,2.4,LYRECO UK LTD
OXFORDSHIRE CC,CORPORATE CORE,,STATIONERY,12/03/2024,9610493646,165.91,LYRECO UK LTD
OXFORDSHIRE CC,ADULTS,CSS BICESTER,CATERING PROVISIONS,12/03/2024,9610492076,105.12,TESCO STORES 2162
OXFORDSHIRE CC,CHILDREN'S & EDUCATION,"	LEAVING CARE CITY 2",PAYMENTS TO TRANSPORT OPERATORS,12/03/2024,9610492112,55.6,GWR OXFORD TO
OXFORDSHIRE CC,CHILDREN'S & EDUCATION,"	OCCG GRANT",ENTERTAINMENT EXPENSES,12/03/2024,9610494314,15.77,DOMINOS BANBURY 28071
OXFORDSHIRE CC,PUBLIC HEALTH,PUBLIC HEALTH GENERAL,PAYMENTS TO TRANSPORT OPERATORS,12/03/2024,9610492730,84.87,TRAINLINE
OXFORDSHIRE CC,ADULTS,CSS - BANBURY,CATERING PROVISIONS,12/03/2024,9610491894,-0.59,SAINSBURYS.CO.UK
OXFORDSHIRE CC,CUSTOMER AND CULTURE,SCHOOLS FM CATERING AREA 2,CATERING PROVISIONS,12/03/2024,9610492904,83.98,BOOKER LTD - 38584104
OXFORDSHIRE CC,ADULTS,CSS WITNEY,ENTERTAINMENT EXPENSES,12/03/2024,9610493028,9,WWW.BETTER.ORG.UK
OXFORDSHIRE CC,CUSTOMER AND CULTURE,THAME LIBRARY,"NEWSPAPERS, PERIODICALS AND PUBLICATIONS",12/03/2024,9610493556,5.8,SAINSBURYS S/MKTS
OXFORDSHIRE CC,CHILDREN'S & EDUCATION,"	LOOKED AFTER CITY 2",OTHER TRANSPORT ARRANGEMENTS,12/03/2024,9610492950,2,OXFORD BUS COMPANY
OXFORDSHIRE CC,CHILDREN'S & EDUCATION,"	LOOKED AFTER CITY 2",OTHER TRANSPORT ARRANGEMENTS,12/03/2024,9610492952,2,STGCOACH/CTYLINK
OXFORDSHIRE CC,CHILDREN'S & EDUCATION,"	LOOKED AFTER CITY 2",OTHER TRANSPORT ARRANGEMENTS,12/03/2024,9610492960,2,STGCOACH/CTYLINK
OXFORDSHIRE CC,CUSTOMER AND CULTURE,LIBRARY COLLECTIONS,"BOOKS, DVDS AND CDS",12/03/2024,9610492600,203.43,OVERDRIVE DIST
OXFORDSHIRE CC,CHILDREN'S & EDUCATION,"	RIVERSIDE CENTRE",CATERING PROVISIONS,12/03/2024,9610492636,10.04,SAINSBURYS S/MKTS
OXFORDSHIRE CC,ENVIRONMENT AND PLACE,FLEET OPERATIONS,MATERIALS,12/03/2024,9610492618,13.51,EXECUTIVE SECURITY
OXFORDSHIRE CC,CHILDREN'S & EDUCATION,"	RIVERSIDE CENTRE",CATERING PROVISIONS,12/03/2024,9610492628,30.95,AMAZON  202-3100929-88
OXFORDSHIRE CC,CUSTOMER AND CULTURE,LIBRARY COLLECTIONS,"BOOKS, DVDS AND CDS",12/03/2024,9610492610,580.91,OVERDRIVE DIST
OXFORDSHIRE CC,CHILDREN'S & EDUCATION,DIDCOT MOVE-ON HOME,CATERING PROVISIONS,12/03/2024,9610492672,4,SAINSBURYS S/MKTS
OXFORDSHIRE CC,CHILDREN'S & EDUCATION,KINGFISHER,PAYMENTS TO TRANSPORT OPERATORS,12/03/2024,9610494160,145.71,TRAINLINE
OXFORDSHIRE CC,CHILDREN'S & EDUCATION,"	AAC EQUIPMENT",EDUCATIONAL AND VOCATIONAL TRAINING ,12/03/2024,9610494136,360,ACE CENTRE
OXFORDSHIRE CC,ADULTS,CSS WANTAGE,CATERING PROVISIONS,12/03/2024,9610494146,23.06,B&M 250 - WANTAGE
OXFORDSHIRE CC,ADULTS,CSS WANTAGE,CATERING PROVISIONS,12/03/2024,9610494152,52.27,SAINSBURYS S/MKT
OXFORDSHIRE CC,CUSTOMER AND CULTURE,OXFORDSHIRE MUSEUM,OTHER TRANSPORT ARRANGEMENTS,12/03/2024,9610493128,48.1,DHL PARCEL UK
OXFORDSHIRE CC,CHILDREN'S & EDUCATION,EET SERVICE,EQUIPMENT,12/03/2024,9610493224,33.14,AMAZON  206-4002992-82
OXFORDSHIRE CC,CHILDREN'S & EDUCATION,MANAGEMENT,CATERING PROVISIONS,12/03/2024,9610494014,39.28,TESCO STORES 2994
OXFORDSHIRE CC,ADULTS,ASC INCOME TEAM,PAYMENT TO GOVERNMENT DEPARTMENTS,12/03/2024,9610492466,11,OXFORDSHIRE CC WEB1
OXFORDSHIRE CC,ADULTS,CSS - ABINGDON,CATERING PROVISIONS,12/03/2024,9610491970,155.44,AMAZON  205-4544467-10
OXFORDSHIRE CC,ADULTS,CSS - ABINGDON,EQUIPMENT,12/03/2024,9610491974,50.98,AMAZON  205-4544467-10
OXFORDSHIRE CC,CHILDREN'S & EDUCATION,"	DISABILITIES TEAM-N",PAYMENTS TO TRANSPORT OPERATORS,12/03/2024,9610492162,225.6,TRAINLINE
OXFORDSHIRE CC,CHILDREN'S & EDUCATION,40 THE MOORS,CATERING PROVISIONS,12/03/2024,9610492488,21.77,TESCO STORES 2788
OXFORDSHIRE CC,CUSTOMER AND CULTURE,TREE MAINT OPS,CLOTHING AND UNIFORMS,12/03/2024,9610493908,163.46,WORKWEAR EXPRESS
OXFORDSHIRE CC,CUSTOMER AND CULTURE,COUNTY PRINT FINSHRS,MATERIALS,12/03/2024,9610494038,7.5,HOBBYCRAFT
OXFORDSHIRE CC,RESOURCES,INCOME TEAM,PAYMENT TO GOVERNMENT DEPARTMENTS,12/03/2024,9610492932,"2,714.61",WWW.MONEYCLAIM.GOV
OXFORDSHIRE CC,CUSTOMER AND CULTURE,SCHOOLS FM CATERING AREA 2,CATERING PROVISIONS,12/03/2024,9610492900,13.98,AMAZON  202-6075816-42
OXFORDSHIRE CC,CHILDREN'S & EDUCATION,"	LOOKED AFTER CITY 2",OTHER TRANSPORT ARRANGEMENTS,12/03/2024,9610492942,2,OXFORD BUS COMPANY
OXFORDSHIRE CC,CHILDREN'S & EDUCATION,"	LOOKED AFTER CITY 2",OTHER TRANSPORT ARRANGEMENTS,12/03/2024,9610492970,2,STGCOACH/CTYLINK
OXFORDSHIRE CC,CUSTOMER AND CULTURE,"MARKETING, COMMUNICATIONS & ENGAGEMENT","PUBLICITY, PROMOTIONS AND ADVERTISEMENT",12/03/2024,9610493370,12,SNAP INC SNAP SNAP ADS
OXFORDSHIRE CC,CUSTOMER AND CULTURE,"MARKETING, COMMUNICATIONS & ENGAGEMENT","PUBLICITY, PROMOTIONS AND ADVERTISEMENT",12/03/2024,9610493364,12.3,SNAP INC SNAP SNAP ADS
OXFORDSHIRE CC,ADULTS,CSS - BANBURY,CATERING PROVISIONS,12/03/2024,9610491878,50.03,SAINSBURYS.CO.UK
OXFORDSHIRE CC,CUSTOMER AND CULTURE,"MARKETING, COMMUNICATIONS & ENGAGEMENT","PUBLICITY, PROMOTIONS AND ADVERTISEMENT",12/03/2024,9610493354,2.26,SNAP INC SNAP SNAP ADS
OXFORDSHIRE CC,CUSTOMER AND CULTURE,"MARKETING, COMMUNICATIONS & ENGAGEMENT","PUBLICITY, PROMOTIONS AND ADVERTISEMENT",12/03/2024,9610493380,12.52,SNAP INC SNAP SNAP ADS
OXFORDSHIRE CC,CUSTOMER AND CULTURE,"MARKETING, COMMUNICATIONS & ENGAGEMENT","PUBLICITY, PROMOTIONS AND ADVERTISEMENT",12/03/2024,9610493382,9.37,SNAP INC SNAP SNAP ADS
OXFORDSHIRE CC,ADULTS,CSS WALLINGFORD,CATERING PROVISIONS,12/03/2024,9610491912,1,WAITROSE 675
OXFORDSHIRE CC,CHILDREN'S & EDUCATION,CHILDREN IN CARE NON-STAFFING - CENTRL 2,OTHER TRANSPORT ARRANGEMENTS,12/03/2024,9610492180,6,OXFORDBUS.CO.UK
OXFORDSHIRE CC,CHILDREN'S & EDUCATION,DIDCOT MOVE-ON HOME,CLEANING MATERIALS,12/03/2024,9610493766,4.75,SAINSBURYS S/MKTS
OXFORDSHIRE CC,CHILDREN'S & EDUCATION,CHILDREN IN CARE NON-STAFFING - CENTRL 2,PAYMENTS TO TRANSPORT OPERATORS,12/03/2024,9610492190,38.2,TRAINLINE
OXFORDSHIRE CC,PUBLIC HEALTH,PUBLIC HEALTH GENERAL,PAYMENTS TO TRANSPORT OPERATORS,12/03/2024,9610492724,84.87,TRAINLINE
OXFORDSHIRE CC,ADULTS,CSS WALLINGFORD,CATERING PROVISIONS,12/03/2024,9610491906,6.2,WAITROSE 675
OXFORDSHIRE CC,CHILDREN'S & EDUCATION,"	LOOKED AFTER CITY 2",OTHER TRANSPORT ARRANGEMENTS,12/03/2024,9610492990,2,STGCOACH/CTYLINK
OXFORDSHIRE CC,ADULTS,CSS WITNEY,CATERING PROVISIONS,12/03/2024,9610493036,26.65,CO-OP GROUP 070582
OXFORDSHIRE CC,ENVIRONMENT AND PLACE,NAT TRAILS GENERAL,ROAD FUND LICENCES AND MOTS,12/03/2024,9610492998,322.5,DVLA VEHICLE TAX
OXFORDSHIRE CC,ADULTS,CSS - OXFORD,DISABILITY AIDS AND EQUIPMENT,12/03/2024,9610493100,33,AMAZON  026-7858950-89
OXFORDSHIRE CC,CUSTOMER AND CULTURE,KNIGHTS COURT,STATIONERY,12/03/2024,9610492914,576,BRYSDALES LTD
OXFORDSHIRE CC,CHILDREN'S & EDUCATION,DIDCOT MOVE-ON HOME,CATERING PROVISIONS,12/03/2024,9610493770,10.35,SAINSBURYS S/MKTS
OXFORDSHIRE CC,CHILDREN'S & EDUCATION,EET SERVICE,MATERIALS,12/03/2024,9610493234,200,AMAZON.CO.UK IG9FP9X95
OXFORDSHIRE CC,ADULTS,CSS WANTAGE,PAYMENT TO GOVERNMENT DEPARTMENTS,12/03/2024,9610493284,10,OXFORDSHIRE CC (M)
OXFORDSHIRE CC,CHILDREN'S & EDUCATION,THAME E&A HOME,CATERING PROVISIONS,12/03/2024,9610492302,175.24,TESCO STORES 2038
OXFORDSHIRE CC,CHILDREN'S & EDUCATION,FAMILY SOLUTIONS PLUS NON-STAFF � SOUTH,CATERING PROVISIONS,12/03/2024,9610492350,5.7,TESCO STORES 4377
OXFORDSHIRE CC,CHILDREN'S & EDUCATION,THAME E&A HOME,CATERING PROVISIONS,12/03/2024,9610492800,4.25,SAINSBURYS S/MKTS
OXFORDSHIRE CC,CHILDREN'S & EDUCATION,WITNEY,CATERING PROVISIONS,12/03/2024,9610492822,2.78,LIDL GB WITNEY
OXFORDSHIRE CC,CUSTOMER AND CULTURE,HARD FM,PREMISES REPAIRS,12/03/2024,9610492852,87.1,B AND Q
OXFORDSHIRE CC,CHILDREN'S & EDUCATION,"	LEAVING CARE CITY 2",PAYMENTS TO TRANSPORT OPERATORS,12/03/2024,9610492872,79.65,BKG HOTEL AT BOOKING.C
OXFORDSHIRE CC,CHILDREN'S & EDUCATION,"	LAC PUPIL PREMIUM",HIRE OF ACCOMMODATION AND FACILITIES,12/03/2024,9610493848,131.92,HOLIDAY INN BIRMINGHAM
OXFORDSHIRE CC,RESOURCES,ICT OPERATIONS & MAI,PURCHASE OF IT EQUIPMENT,12/03/2024,9610493882,206.65,AMAZON  205-0432481-18
OXFORDSHIRE CC,CHILDREN'S & EDUCATION,"	LAC PUPIL PREMIUM",HIRE OF ACCOMMODATION AND FACILITIES,12/03/2024,9610493844,101,HOTEL IBIS
OXFORDSHIRE CC,CUSTOMER AND CULTURE,MUSEUMS COLLECTIONS,CATERING PROVISIONS,12/03/2024,9610493876,27,AMAZON.CO.UK AJ3W08I05
OXFORDSHIRE CC,CHILDREN'S & EDUCATION,THAME E&A HOME,MATERIALS,12/03/2024,9610492308,7.99,TESCO SUBSCRIPTION
OXFORDSHIRE CC,CHILDREN'S & EDUCATION,THAME E&A HOME,OTHER EXPENSES,12/03/2024,9610492296,30.87,AMAZON  202-5654192-94
OXFORDSHIRE CC,CUSTOMER AND CULTURE,COMMUNITY PARTNERSHIP TEAM,CATERING PROVISIONS,12/03/2024,9610492284,7.83,AMAZON  026-3569708-88
